Workbook

Sheet TOT-1115
B2: ANEXO II al Memorandum D.T.E.E. N° 356 / 2017
A4: ENTE NACIONAL REGULADOR
A5: DE LA ELECTRICIDAD
B7: SISTEMA DE TRANSPORTE DE ENERGÍA ELÉCTRICA POR DISTRIBUCIÓN TRONCAL
B9: TRANSNOA S.A.
B11: TOTAL DE PENALIZACIONES
B13: 1
B14: Desde el 01 al 30 de noviembre de 2015
B16: Sanciones duplicadas por tasa de falla > 4 Sal. x año/100km.
C18: 1.- | D18: LÍNEAS
D19: 1.1.- | E19: Equipamiento propio | J19: ='LI-11 (2)'!AA42 -> 506370.41
C21: 2.- | D21: CONEXIÓN
D22: 2.1.- | E22: Transformación
E23: 2.1.1.- | F23: Equipamiento propio | J23: ='T-11 (3)'!AC45 -> 55345.92
E24: 2.1.2.- | F24: Equipamiento del T.I. EDESA S.A. | J24: ='T-EDESA-11 (1)'!AC45 -> 6.69
C26: 3.1.- | D26: SUPERVISIÓN del T.I. EDESA S.A. | J26: ='SUP-EDESA'!I54 -> 1.759885343
G29: TOTAL | H29: =SUM(J18:J27) -> 561724.7799
C31: Valores remuneratorios según Acuerdo SE - ENRE -TRANSNOA 2016-2017

Sheet LI-11 (1)
B2: =+'TOT-1115'!B2 -> ANEXO II al Memorandum D.T.E.E. N° 356 / 2017
A4: ENTE NACIONAL REGULADOR
A5: DE LA ELECTRICIDAD
F8: SISTEMA DE TRANSPORTE DE ENERGÍA ELÉCTRICA POR DISTRIBUCIÓN TRONCAL - TRANSNOA S.A.
F10: 1.- LÍNEAS
F12: 1.1.- Equipamiento propio
B14: ='TOT-1115'!B14 -> Desde el 01 al 30 de noviembre de 2015
F16: $/100 km-h : LINEAS 132 kV | G16: 514.204 | K16: FACTOR DE PENALIZACION K = | L16: =30*'TOT-1115'!B13 -> 30 | M16: =IF(L16=30," ",IF(L16=60,"Coeficiente duplicado por tasa de falla >4 Sal. x año/100 km.","REVISAR COEFICIENTE")) -> 
C17: 3 | D17: 4 | E17: 5 | F17: 6 | G17: 7 | H17: 8 | I17: 9 | J17: 10 | K17: 11 | L17: 12 | M17: 13 | N17: 14 | O17: 15 | P17: 16 | Q17: 17 | R17: 18 | S17: 19 | T17: 20 | U17: 21 | V17: 22 | W17: 23 | X17: 24 | Y17: 25 | Z17: 26 | AA17: 27
C18: N° | D18: INDISP | E18: ID EQUIPO | F18: LÍNEAS | G18: U [kV] | H18: Long. [km] | I18: $/h | J18: Salida | K18: Entrada | L18: Hs. Indisp | M18: Minutos Indisp. | N18: Tipo Sal.(²) | O18: C.R. % | P18: PENALIZ. PROGRAM. | Q18: REDUCC. PROGRAM. | R18: PENALIZACION FORZADA Por Salida 1ras. 3 hs. hs. Restantes | U18: REDUCC. FORZADA Por Salida 1ras. 3 hs. hs. Restantes | X18: RESTANTE FORZADA | Y18: REDUCC. RESTANTE | Z18: Informó en Térm. | AA18: TOTAL PENALIZAC.
C21: 1 | D21: 294022 | E21: 299 | F21: PALPALA - SAN JUANCITO | G21: 132 | H21: 23.89999962 | I21: =$G$16/100*IF(H21>25,H21,25) -> 128.551 | J21: 2015-11-01T07:32:00 | K21: 2015-11-01T13:41:00 | L21: =IF(F21="","",(K21-J21)*24) -> 6.15 | M21: =IF(F21="","",ROUND((K21-J21)*24*60,0)) -> 369 | N21: P | O21: =IF(F21="","","--") -> -- | P21: =IF(N21="P",ROUND(M21/60,2)*I21*$L$16*0.01,"--") -> 237.176595 | Q21: =IF(N21="RP",I21*O21*ROUND(L21/60,2)*0.01*M21/100,"--") -> -- | R21: =IF(N21="F",I21*$L$16,"--") -> -- | S21: =IF(AND(M21>10,N21="F"),I21*$L$16*IF(M21>180,3,ROUND((M21)/60,2)),"--") -> -- | T21: =IF(AND(M21>180,N21="F"),(ROUND(M21/60,2)-3)*I21*$L$16*0.1,"--") -> -- | U21: =IF(N21="R",I21*$L$16*O21/100,"--") -> -- | V21: =IF(AND(M21>10,N21="R"),I21*$L$16*O21/100*IF(M21>180,3,ROUND(M21/60,2)),"--") -> -- | W21: =IF(AND(M21>180,N21="R"),(ROUND(M21/60,2)-3)*I21*$L$16*0.1*O21/100,"--") -> -- | X21: =IF(N21="RF",ROUND(M21/60,2)*I21*$L$16*0.1,"--") -> -- | Y21: =IF(N21="RR",ROUND(M21/60,2)*I21*$L$16*0.1*O21/100,"--") -> -- | Z21: SI | AA21: =IF(F21="","",SUM(P21:Y21)*IF(Z21="SI",1,2)) -> 237.176595
C22: 2 | D22: 294023 | E22: 2623 | F22: PALPALA - JUJUY ESTE | G22: 132 | H22: 12.25 | I22: 128.551 | J22: 2015-11-01T07:33:00 | K22: 2015-11-01T13:41:00 | L22: 6.133333333 | M22: 368 | N22: P | O22: -- | P22: 236.405289 | Q22: -- | R22: -- | S22: -- | T22: -- | U22: -- | V22: -- | W22: -- | X22: -- | Y22: -- | Z22: SI | AA22: 236.405289
C23: 3 | D23: 294024 | E23: 291 | F23: LIBERTADOR NOA - PICHANAL | G23: 132 | H23: 76 | I23: 390.79504 | J23: 2015-11-01T22:00:00 | K23: 2015-11-02T00:01:00 | L23: 2.016666667 | M23: 121 | N23: F | O23: -- | P23: -- | Q23: -- | R23: 11723.8512 | S23: 23682.17942 | T23: -- | U23: -- | V23: -- | W23: -- | X23: -- | Y23: -- | Z23: SI | AA23: 35406.03062
C24: 4 | D24: 294234 | E24: 4249 | F24: PAMPA GRANDE - CABRA CORRAL | G24: 132 | H24: 60 | I24: 308.5224 | J24: 2015-11-03T07:24:00 | K24: 2015-11-03T17:38:00 | L24: 10.23333333 | M24: 614 | N24: P | O24: -- | P24: 946.8552456 | Q24: -- | R24: -- | S24: -- | T24: -- | U24: -- | V24: -- | W24: -- | X24: -- | Y24: -- | Z24: SI | AA24: 946.8552456
C25: 5 | D25: 294235 | E25: 5541 | F25: SANTIAGO - SANTIAGO SUR | G25: 132 | H25: 8.4 | I25: 128.551 | J25: 2015-11-03T09:52:00 | K25: 2015-11-03T17:45:00 | L25: 7.883333333 | M25: 473 | N25: P | O25: -- | P25: 303.894564 | Q25: -- | R25: -- | S25: -- | T25: -- | U25: -- | V25: -- | W25: -- | X25: -- | Y25: -- | Z25: SI | AA25: 303.894564
C26: 6 | D26: 294236 | E26: 299 | F26: PALPALA - SAN JUANCITO | G26: 132 | H26: 23.89999962 | I26: 128.551 | J26: 2015-11-03T11:53:00 | K26: 2015-11-03T12:05:00 | L26: 0.2 | M26: 12 | N26: F | O26: -- | P26: -- | Q26: -- | R26: 3856.53 | S26: 771.306 | T26: -- | U26: -- | V26: -- | W26: -- | X26: -- | Y26: -- | Z26: SI | AA26: 4627.836
C27: 7 | D27: 294243 | E27: 3773 | F27: LA RIOJA - RECREO 2 | G27: 132 | H27: 220 | I27: 1131.2488 | J27: 2015-11-03T22:37:00 | K27: 2015-11-03T23:38:00 | L27: 1.016666667 | M27: 61 | N27: F | O27: -- | P27: -- | Q27: -- | R27: 33937.464 | S27: 34616.21328 | T27: -- | U27: -- | V27: -- | W27: -- | X27: -- | Y27: -- | Z27: SI | AA27: 68553.67728
C28: 8 | D28: 294288 | E28: 3773 | F28: LA RIOJA - RECREO 2 | G28: 132 | H28: 220 | I28: 1131.2488 | J28: 2015-11-04T01:33:00 | K28: 2015-11-04T01:46:00 | L28: 0.2166666667 | M28: 13 | N28: F | O28: -- | P28: -- | Q28: -- | R28: 33937.464 | S28: 7466.24208 | T28: -- | U28: -- | V28: -- | W28: -- | X28: -- | Y28: -- | Z28: SI | AA28: 41403.70608
C29: 9 | D29: 294293 | E29: 4249 | F29: PAMPA GRANDE - CABRA CORRAL | G29: 132 | H29: 60 | I29: 308.5224 | J29: 2015-11-04T07:21:00 | K29: 2015-11-04T17:29:00 | L29: 10.13333333 | M29: 608 | N29: P | O29: -- | P29: 937.5995736 | Q29: -- | R29: -- | S29: -- | T29: -- | U29: -- | V29: -- | W29: -- | X29: -- | Y29: -- | Z29: SI | AA29: 937.5995736
C30: 10 | D30: 294294 | E30: 4483 | F30: SANTIAGO SUR - SANTIAGO CENTRO | G30: 132 | H30: 4 | I30: 128.551 | J30: 2015-11-04T08:44:00 | K30: 2015-11-04T16:20:00 | L30: 7.6 | M30: 456 | N30: P | O30: -- | P30: 293.09628 | Q30: -- | R30: -- | S30: -- | T30: -- | U30: -- | V30: -- | W30: -- | X30: -- | Y30: -- | Z30: SI | AA30: 293.09628
C31: 11 | D31: 294317 | E31: 5541 | F31: SANTIAGO - SANTIAGO SUR | G31: 132 | H31: 8.4 | I31: 128.551 | J31: 2015-11-05T08:48:00 | K31: 2015-11-05T11:35:00 | L31: 2.783333333 | M31: 167 | N31: P | O31: -- | P31: 107.211534 | Q31: -- | R31: -- | S31: -- | T31: -- | U31: -- | V31: -- | W31: -- | X31: -- | Y31: -- | Z31: SI | AA31: 107.211534
C32: 12 | D32: 294325 | E32: 5678 | F32: EL TABACAL - ORAN | G32: 132 | H32: 12.04 | I32: 128.551 | J32: 2015-11-06T06:25:00 | K32: 2015-11-06T06:43:00 | L32: 0.3000000001 | M32: 18 | N32: F | O32: -- | P32: -- | Q32: -- | R32: 3856.53 | S32: 1156.959 | T32: -- | U32: -- | V32: -- | W32: -- | X32: -- | Y32: -- | Z32: SI | AA32: 5013.489
C33: 13 | D33: 294330 | E33: 4249 | F33: PAMPA GRANDE - CABRA CORRAL | G33: 132 | H33: 60 | I33: 308.5224 | J33: 2015-11-06T07:01:00 | K33: 2015-11-06T10:25:00 | L33: 3.4 | M33: 204 | N33: P | O33: -- | P33: 314.692848 | Q33: -- | R33: -- | S33: -- | T33: -- | U33: -- | V33: -- | W33: -- | X33: -- | Y33: -- | Z33: SI | AA33: 314.692848
C34: 14 | D34: 294334 | E34: 299 | F34: PALPALA - SAN JUANCITO | G34: 132 | H34: 23.89999962 | I34: 128.551 | J34: 2015-11-07T05:06:00 | K34: 2015-11-07T05:18:00 | L34: 0.2 | M34: 12 | N34: F | O34: -- | P34: -- | Q34: -- | R34: 3856.53 | S34: 771.306 | T34: -- | U34: -- | V34: -- | W34: -- | X34: -- | Y34: -- | Z34: SI | AA34: 4627.836
C35: 15 | D35: 294354 | E35: 309 | F35: TUCUMAN OESTE - TUCUMAN NORTE | G35: 132 | H35: 7 | I35: 128.551 | J35: 2015-11-08T08:13:00 | K35: 2015-11-08T15:07:00 | L35: 6.9 | M35: 414 | N35: P | O35: -- | P35: 266.10057 | Q35: -- | R35: -- | S35: -- | T35: -- | U35: -- | V35: -- | W35: -- | X35: -- | Y35: -- | Z35: SI | AA35: 266.10057
C36: 16 | D36: 294717 | E36: 4249 | F36: PAMPA GRANDE - CABRA CORRAL | G36: 132 | H36: 60 | I36: 308.5224 | J36: 2015-11-10T07:08:00 | K36: 2015-11-10T16:03:00 | L36: =IF(F36="","",(K36-J36)*24) -> 8.916666667 | M36: =IF(F36="","",ROUND((K36-J36)*24*60,0)) -> 535 | N36: P | O36: =IF(F36="","","--") -> -- | P36: =IF(N36="P",ROUND(M36/60,2)*I36*$L$16*0.01,"--") -> 825.6059424 | Q36: =IF(N36="RP",I36*O36*ROUND(L36/60,2)*0.01*M36/100,"--") -> -- | R36: =IF(N36="F",I36*$L$16,"--") -> -- | S36: =IF(AND(M36>10,N36="F"),I36*$L$16*IF(M36>180,3,ROUND((M36)/60,2)),"--") -> -- | T36: =IF(AND(M36>180,N36="F"),(ROUND(M36/60,2)-3)*I36*$L$16*0.1,"--") -> -- | U36: =IF(N36="R",I36*$L$16*O36/100,"--") -> -- | V36: =IF(AND(M36>10,N36="R"),I36*$L$16*O36/100*IF(M36>180,3,ROUND(M36/60,2)),"--") -> -- | W36: =IF(AND(M36>180,N36="R"),(ROUND(M36/60,2)-3)*I36*$L$16*0.1*O36/100,"--") -> -- | X36: =IF(N36="RF",ROUND(M36/60,2)*I36*$L$16*0.1,"--") -> -- | Y36: =IF(N36="RR",ROUND(M36/60,2)*I36*$L$16*0.1*O36/100,"--") -> -- | Z36: SI | AA36: =IF(F36="","",SUM(P36:Y36)*IF(Z36="SI",1,2)) -> 825.6059424
C37: 17 | D37: 294430 | E37: 5512 | F37: QUIMILI - CAMPO GALLO | G37: 132 | H37: 140 | I37: 719.8856 | J37: 2015-11-10T08:41:00 | K37: 2015-11-10T16:58:00 | L37: =IF(F37="","",(K37-J37)*24) -> 8.283333333 | M37: =IF(F37="","",ROUND((K37-J37)*24*60,0)) -> 497 | N37: P | O37: =IF(F37="","","--") -> -- | P37: =IF(N37="P",ROUND(M37/60,2)*I37*$L$16*0.01,"--") -> 1788.19583 | Q37: =IF(N37="RP",I37*O37*ROUND(L37/60,2)*0.01*M37/100,"--") -> -- | R37: =IF(N37="F",I37*$L$16,"--") -> -- | S37: =IF(AND(M37>10,N37="F"),I37*$L$16*IF(M37>180,3,ROUND((M37)/60,2)),"--") -> -- | T37: =IF(AND(M37>180,N37="F"),(ROUND(M37/60,2)-3)*I37*$L$16*0.1,"--") -> -- | U37: =IF(N37="R",I37*$L$16*O37/100,"--") -> -- | V37: =IF(AND(M37>10,N37="R"),I37*$L$16*O37/100*IF(M37>180,3,ROUND(M37/60,2)),"--") -> -- | W37: =IF(AND(M37>180,N37="R"),(ROUND(M37/60,2)-3)*I37*$L$16*0.1*O37/100,"--") -> -- | X37: =IF(N37="RF",ROUND(M37/60,2)*I37*$L$16*0.1,"--") -> -- | Y37: =IF(N37="RR",ROUND(M37/60,2)*I37*$L$16*0.1*O37/100,"--") -> -- | Z37: SI | AA37: =IF(F37="","",SUM(P37:Y37)*IF(Z37="SI",1,2)) -> 1788.19583
C40: (²) | D40: P - PROGRAMADA ; F - FORZADA | P40: =SUM(P19:P39) -> 6256.834272 | Q40: 0 | R40: 91168.3692 | S40: 68464.20578 | T40: 0 | U40: 0 | V40: 0 | W40: 0 | X40: 0 | Y40: 0 | AA40: =ROUND(SUM(AA19:AA39),2) -> 165889.41

Sheet LI-11 (2)
B2: =+'TOT-1115'!B2 -> ANEXO II al Memorandum D.T.E.E. N° 356 / 2017
A4: ENTE NACIONAL REGULADOR
A5: DE LA ELECTRICIDAD
F8: SISTEMA DE TRANSPORTE DE ENERGÍA ELÉCTRICA POR DISTRIBUCIÓN TRONCAL - TRANSNOA S.A.
F10: 1.- LÍNEAS
F12: 1.1.- Equipamiento propio
B14: ='TOT-1115'!B14 -> Desde el 01 al 30 de noviembre de 2015
F16: $/100 km-h : LINEAS 132 kV | G16: 514.204 | K16: FACTOR DE PENALIZACION K = | L16: =30*'TOT-1115'!B13 -> 30 | M16: =IF(L16=30," ",IF(L16=60,"Coeficiente duplicado por tasa de falla >4 Sal. x año/100 km.","REVISAR COEFICIENTE")) -> 
C17: 3 | D17: 4 | E17: 5 | F17: 6 | G17: 7 | H17: 8 | I17: 9 | J17: 10 | K17: 11 | L17: 12 | M17: 13 | N17: 14 | O17: 15 | P17: 16 | Q17: 17 | R17: 18 | S17: 19 | T17: 20 | U17: 21 | V17: 22 | W17: 23 | X17: 24 | Y17: 25 | Z17: 26 | AA17: 27
C18: N° | D18: INDISP | E18: ID EQUIPO | F18: LÍNEAS | G18: U [kV] | H18: Long. [km] | I18: $/h | J18: Salida | K18: Entrada | L18: Hs. Indisp | M18: Minutos Indisp. | N18: Tipo Sal.(²) | O18: C.R. % | P18: PENALIZ. PROGRAM. | Q18: REDUCC. PROGRAM. | R18: PENALIZACION FORZADA Por Salida 1ras. 3 hs. hs. Restantes | U18: REDUCC. FORZADA Por Salida 1ras. 3 hs. hs. Restantes | X18: RESTANTE FORZADA | Y18: REDUCC. RESTANTE | Z18: Informó en Térm. | AA18: TOTAL PENALIZAC.
AA19: ='LI-11 (1)'!AA40 -> 165889.41
C21: 19 | D21: 294454 | E21: 290 | F21: LA RIOJA - RECREO 1 | G21: 132 | H21: 221 | I21: =$G$16/100*IF(H21>25,H21,25) -> 1136.39084 | J21: 2015-11-10T21:32:00 | K21: 2015-11-11T19:37:00 | L21: =IF(F21="","",(K21-J21)*24) -> 22.08333333 | M21: =IF(F21="","",ROUND((K21-J21)*24*60,0)) -> 1325 | N21: F | O21: =IF(F21="","","--") -> -- | P21: =IF(N21="P",ROUND(M21/60,2)*I21*$L$16*0.01,"--") -> -- | Q21: =IF(N21="RP",I21*O21*ROUND(L21/60,2)*0.01*M21/100,"--") -> -- | R21: =IF(N21="F",I21*$L$16,"--") -> 34091.7252 | S21: =IF(AND(M21>10,N21="F"),I21*$L$16*IF(M21>180,3,ROUND((M21)/60,2)),"--") -> 102275.1756 | T21: =IF(AND(M21>180,N21="F"),(ROUND(M21/60,2)-3)*I21*$L$16*0.1,"--") -> 65047.01168 | U21: =IF(N21="R",I21*$L$16*O21/100,"--") -> -- | V21: =IF(AND(M21>10,N21="R"),I21*$L$16*O21/100*IF(M21>180,3,ROUND(M21/60,2)),"--") -> -- | W21: =IF(AND(M21>180,N21="R"),(ROUND(M21/60,2)-3)*I21*$L$16*0.1*O21/100,"--") -> -- | X21: =IF(N21="RF",ROUND(M21/60,2)*I21*$L$16*0.1,"--") -> -- | Y21: =IF(N21="RR",ROUND(M21/60,2)*I21*$L$16*0.1*O21/100,"--") -> -- | Z21: SI | AA21: =IF(F21="","",SUM(P21:Y21)*IF(Z21="SI",1,2)) -> 201413.9125
C22: 20 | D22: 294456 | E22: 5554 | F22: STGO. CENTRO - FERNANDEZ - SUNCHO CORRAL | G22: 132 | H22: 103 | I22: =$G$16/100*IF(H22>25,H22,25) -> 529.63012 | J22: 2015-11-11T08:26:00 | K22: 2015-11-11T11:55:00 | L22: =IF(F22="","",(K22-J22)*24) -> 3.483333333 | M22: =IF(F22="","",ROUND((K22-J22)*24*60,0)) -> 209 | N22: P | O22: =IF(F22="","","--") -> -- | P22: =IF(N22="P",ROUND(M22/60,2)*I22*$L$16*0.01,"--") -> 552.9338453 | Q22: =IF(N22="RP",I22*O22*ROUND(L22/60,2)*0.01*M22/100,"--") -> -- | R22: =IF(N22="F",I22*$L$16,"--") -> -- | S22: =IF(AND(M22>10,N22="F"),I22*$L$16*IF(M22>180,3,ROUND((M22)/60,2)),"--") -> -- | T22: =IF(AND(M22>180,N22="F"),(ROUND(M22/60,2)-3)*I22*$L$16*0.1,"--") -> -- | U22: =IF(N22="R",I22*$L$16*O22/100,"--") -> -- | V22: =IF(AND(M22>10,N22="R"),I22*$L$16*O22/100*IF(M22>180,3,ROUND(M22/60,2)),"--") -> -- | W22: =IF(AND(M22>180,N22="R"),(ROUND(M22/60,2)-3)*I22*$L$16*0.1*O22/100,"--") -> -- | X22: =IF(N22="RF",ROUND(M22/60,2)*I22*$L$16*0.1,"--") -> -- | Y22: =IF(N22="RR",ROUND(M22/60,2)*I22*$L$16*0.1*O22/100,"--") -> -- | Z22: SI | AA22: =IF(F22="","",SUM(P22:Y22)*IF(Z22="SI",1,2)) -> 552.9338453
C23: 21 | D23: 294457 | E23: 305 | F23: TUCUMAN NORTE - EL BRACHO | G23: 132 | H23: 31.5 | I23: 161.97426 | J23: 2015-11-12T07:46:00 | K23: 2015-11-12T17:40:00 | L23: 9.9 | M23: 594 | N23: P | O23: -- | P23: 481.0635522 | Q23: -- | R23: -- | S23: -- | T23: -- | U23: -- | V23: -- | W23: -- | X23: -- | Y23: -- | Z23: SI | AA23: 481.0635522
C24: 22 | D24: 294465 | E24: 5436 | F24: LA RIOJA - ARAUCO | G24: 132 | H24: 84.3 | I24: 433.473972 | J24: 2015-11-14T17:12:00 | K24: 2015-11-14T17:17:00 | L24: 0.08333333326 | M24: 5 | N24: F | O24: -- | P24: -- | Q24: -- | R24: 13004.21916 | S24: -- | T24: -- | U24: -- | V24: -- | W24: -- | X24: -- | Y24: -- | Z24: SI | AA24: 13004.21916
C25: 23 | D25: 294765 | E25: 4250 | F25: PAMPA GRANDE - TRANCAS | G25: 132 | H25: 55 | I25: 282.8122 | J25: 2015-11-16T14:04:00 | K25: 2015-11-16T14:15:00 | L25: 0.1833333334 | M25: 11 | N25: F | O25: -- | P25: -- | Q25: -- | R25: 8484.366 | S25: 1527.18588 | T25: -- | U25: -- | V25: -- | W25: -- | X25: -- | Y25: -- | Z25: SI | AA25: 10011.55188
C26: 24 | D26: 294767 | E26: 5512 | F26: QUIMILI - CAMPO GALLO | G26: 132 | H26: 140 | I26: 719.8856 | J26: 2015-11-17T08:17:00 | K26: 2015-11-17T16:11:00 | L26: 7.9 | M26: 474 | N26: P | O26: -- | P26: 1706.128872 | Q26: -- | R26: -- | S26: -- | T26: -- | U26: -- | V26: -- | W26: -- | X26: -- | Y26: -- | Z26: SI | AA26: 1706.128872
C27: 25 | D27: 294773 | E27: 5061 | F27: SUNCHO CORRAL - QUIMILI | G27: 132 | H27: 108 | I27: 555.34032 | J27: 2015-11-18T08:16:00 | K27: 2015-11-18T17:16:00 | L27: 9 | M27: 540 | N27: P | O27: -- | P27: 1499.418864 | Q27: -- | R27: -- | S27: -- | T27: -- | U27: -- | V27: -- | W27: -- | X27: -- | Y27: -- | Z27: SI | AA27: 1499.418864
C28: 26 | D28: 294775 | E28: 5061 | F28: SUNCHO CORRAL - QUIMILI | G28: 132 | H28: 108 | I28: 555.34032 | J28: 2015-11-19T07:51:00 | K28: 2015-11-19T12:01:00 | L28: 4.166666667 | M28: 250 | N28: P | O28: -- | P28: 694.7307403 | Q28: -- | R28: -- | S28: -- | T28: -- | U28: -- | V28: -- | W28: -- | X28: -- | Y28: -- | Z28: SI | AA28: 694.7307403
C29: 27 | D29: 294776 | E29: 5482 | F29: EL BRACHO - TERMAS NORTE | G29: 132 | H29: 78.4 | I29: 403.135936 | J29: 2015-11-19T08:28:00 | K29: 2015-11-19T13:02:00 | L29: 4.566666667 | M29: 274 | N29: P | O29: -- | P29: 552.6993683 | Q29: -- | R29: -- | S29: -- | T29: -- | U29: -- | V29: -- | W29: -- | X29: -- | Y29: -- | Z29: SI | AA29: 552.6993683
C30: 28 | D30: 294784 | E30: 297 | F30: C.H. RIO HONDO - LA BANDA | G30: 132 | H30: 76.5 | I30: 393.36606 | J30: 2015-11-19T17:33:00 | K30: 2015-11-19T17:38:00 | L30: 0.08333333343 | M30: 5 | N30: F | O30: -- | P30: -- | Q30: -- | R30: 11800.9818 | S30: -- | T30: -- | U30: -- | V30: -- | W30: -- | X30: -- | Y30: -- | Z30: SI | AA30: 11800.9818
C31: 29 | D31: 295032 | E31: 5689 | F31: C.CORRAL - GUACHIPAS - PAMPA GRANDE | G31: 132 | H31: 71.2 | I31: 366.113248 | J31: 2015-11-23T01:03:00 | K31: 2015-11-23T01:11:00 | L31: 0.1333333334 | M31: 8 | N31: F | O31: -- | P31: -- | Q31: -- | R31: 10983.39744 | S31: -- | T31: -- | U31: -- | V31: -- | W31: -- | X31: -- | Y31: -- | Z31: SI | AA31: 10983.39744
C32: 30 | D32: 295033 | E32: 5604 | F32: SENDA HACHADA - DRAGONES | G32: 132 | H32: 65 | I32: 334.2326 | J32: 2015-11-24T09:15:00 | K32: 2015-11-24T17:19:00 | L32: 8.066666667 | M32: 484 | N32: P | O32: -- | P32: 809.1771246 | Q32: -- | R32: -- | S32: -- | T32: -- | U32: -- | V32: -- | W32: -- | X32: -- | Y32: -- | Z32: SI | AA32: 809.1771246
C33: 31 | D33: 295042 | E33: 304 | F33: SAN PEDRO JUJUY - LIBERTADOR NOA | G33: 132 | H33: 49 | I33: 251.95996 | J33: 2015-11-26T21:37:00 | K33: 2015-11-26T23:03:00 | L33: 1.433333333 | M33: 86 | N33: F | O33: -- | P33: -- | Q33: -- | R33: 7558.7988 | S33: 10809.08228 | T33: -- | U33: -- | V33: -- | W33: -- | X33: -- | Y33: -- | Z33: SI | AA33: 18367.88108
C34: 32 | D34: 295082 | E34: 5443 | F34: NONOGASTA - VILLA UNIÓN | G34: 132 | H34: 82.1 | I34: 422.161484 | J34: 2015-11-29T07:17:00 | K34: 2015-11-29T11:49:00 | L34: 4.533333333 | M34: 272 | N34: P | O34: -- | P34: 573.7174568 | Q34: -- | R34: -- | S34: -- | T34: -- | U34: -- | V34: -- | W34: -- | X34: -- | Y34: -- | Z34: SI | AA34: 573.7174568
C35: 33 | D35: 295085 | E35: 290 | F35: LA RIOJA - RECREO 1 | G35: 132 | H35: 221 | I35: 1136.39084 | J35: 2015-11-30T12:33:00 | K35: 2015-11-30T12:37:00 | L35: 0.06666666653 | M35: 4 | N35: F | O35: -- | P35: -- | Q35: -- | R35: 34091.7252 | S35: -- | T35: -- | U35: -- | V35: -- | W35: -- | X35: -- | Y35: -- | Z35: SI | AA35: 34091.7252
C36: 34 | D36: 295086 | E36: 3773 | F36: LA RIOJA - RECREO 2 | G36: 132 | H36: 220 | I36: 1131.2488 | J36: 2015-11-30T12:33:00 | K36: 2015-11-30T12:39:00 | L36: 0.09999999998 | M36: 6 | N36: F | O36: -- | P36: -- | Q36: -- | R36: 33937.464 | S36: -- | T36: -- | U36: -- | V36: -- | W36: -- | X36: -- | Y36: -- | Z36: SI | AA36: 33937.464
I37: 128.551 | P37: -- | Q37: -- | R37: -- | S37: -- | T37: -- | U37: -- | V37: -- | W37: -- | X37: -- | Y37: -- | Z37: =IF(F37="","","SI") -> 
I38: 128.551 | L38: =IF(F38="","",(K38-J38)*24) ->  | M38: =IF(F38="","",ROUND((K38-J38)*24*60,0)) ->  | O38: =IF(F38="","","--") ->  | P38: =IF(N38="P",ROUND(M38/60,2)*I38*$L$16*0.01,"--") -> -- | Q38: =IF(N38="RP",I38*O38*ROUND(L38/60,2)*0.01*M38/100,"--") -> -- | R38: =IF(N38="F",I38*$L$16,"--") -> -- | S38: =IF(AND(M38>10,N38="F"),I38*$L$16*IF(M38>180,3,ROUND((M38)/60,2)),"--") -> -- | T38: =IF(AND(M38>180,N38="F"),(ROUND(M38/60,2)-3)*I38*$L$16*0.1,"--") -> -- | U38: =IF(N38="R",I38*$L$16*O38/100,"--") -> -- | V38: =IF(AND(M38>10,N38="R"),I38*$L$16*O38/100*IF(M38>180,3,ROUND(M38/60,2)),"--") -> -- | W38: =IF(AND(M38>180,N38="R"),(ROUND(M38/60,2)-3)*I38*$L$16*0.1*O38/100,"--") -> -- | X38: =IF(N38="RF",ROUND(M38/60,2)*I38*$L$16*0.1,"--") -> -- | Y38: =IF(N38="RR",ROUND(M38/60,2)*I38*$L$16*0.1*O38/100,"--") -> -- | Z38: =IF(F38="","","SI") ->  | AA38: =IF(F38="","",SUM(P38:Y38)*IF(Z38="SI",1,2)) -> 
I39: 128.551 | L39: =IF(F39="","",(K39-J39)*24) ->  | M39: =IF(F39="","",ROUND((K39-J39)*24*60,0)) ->  | O39: =IF(F39="","","--") ->  | P39: =IF(N39="P",ROUND(M39/60,2)*I39*$L$16*0.01,"--") -> -- | Q39: =IF(N39="RP",I39*O39*ROUND(L39/60,2)*0.01*M39/100,"--") -> -- | R39: =IF(N39="F",I39*$L$16,"--") -> -- | S39: =IF(AND(M39>10,N39="F"),I39*$L$16*IF(M39>180,3,ROUND((M39)/60,2)),"--") -> -- | T39: =IF(AND(M39>180,N39="F"),(ROUND(M39/60,2)-3)*I39*$L$16*0.1,"--") -> -- | U39: =IF(N39="R",I39*$L$16*O39/100,"--") -> -- | V39: =IF(AND(M39>10,N39="R"),I39*$L$16*O39/100*IF(M39>180,3,ROUND(M39/60,2)),"--") -> -- | W39: =IF(AND(M39>180,N39="R"),(ROUND(M39/60,2)-3)*I39*$L$16*0.1*O39/100,"--") -> -- | X39: =IF(N39="RF",ROUND(M39/60,2)*I39*$L$16*0.1,"--") -> -- | Y39: =IF(N39="RR",ROUND(M39/60,2)*I39*$L$16*0.1*O39/100,"--") -> -- | Z39: =IF(F39="","","SI") ->  | AA39: =IF(F39="","",SUM(P39:Y39)*IF(Z39="SI",1,2)) -> 
I40: 128.551 | L40: =IF(F40="","",(K40-J40)*24) ->  | M40: =IF(F40="","",ROUND((K40-J40)*24*60,0)) ->  | O40: =IF(F40="","","--") ->  | P40: =IF(N40="P",ROUND(M40/60,2)*I40*$L$16*0.01,"--") -> -- | Q40: =IF(N40="RP",I40*O40*ROUND(L40/60,2)*0.01*M40/100,"--") -> -- | R40: =IF(N40="F",I40*$L$16,"--") -> -- | S40: =IF(AND(M40>10,N40="F"),I40*$L$16*IF(M40>180,3,ROUND((M40)/60,2)),"--") -> -- | T40: =IF(AND(M40>180,N40="F"),(ROUND(M40/60,2)-3)*I40*$L$16*0.1,"--") -> -- | U40: =IF(N40="R",I40*$L$16*O40/100,"--") -> -- | V40: =IF(AND(M40>10,N40="R"),I40*$L$16*O40/100*IF(M40>180,3,ROUND(M40/60,2)),"--") -> -- | W40: =IF(AND(M40>180,N40="R"),(ROUND(M40/60,2)-3)*I40*$L$16*0.1*O40/100,"--") -> -- | X40: =IF(N40="RF",ROUND(M40/60,2)*I40*$L$16*0.1,"--") -> -- | Y40: =IF(N40="RR",ROUND(M40/60,2)*I40*$L$16*0.1*O40/100,"--") -> -- | Z40: =IF(F40="","","SI") ->  | AA40: =IF(F40="","",SUM(P40:Y40)*IF(Z40="SI",1,2)) -> 
C42: (²) | D42: P - PROGRAMADA ; F - FORZADA | P42: =SUM(P19:P41) -> 6869.869823 | Q42: 0 | R42: 153952.6776 | S42: 114611.4438 | T42: 65047.01168 | U42: 0 | V42: 0 | W42: 0 | X42: 0 | Y42: 0 | AA42: =ROUND(SUM(AA19:AA41),2) -> 506370.41

Sheet T-11 (1)
B2: =+'TOT-1115'!B2 -> ANEXO II al Memorandum D.T.E.E. N° 356 / 2017
A4: ENTE NACIONAL REGULADOR
A5: DE LA ELECTRICIDAD
F8: SISTEMA DE TRANSPORTE DE ENERGÍA ELÉCTRICA POR DISTRIBUCIÓN TRONCAL - TRANSNOA S.A.
F10: 2.- CONEXIÓN
F12: 2.1.- Transformación
F14: 2.1.1.- Equipamiento propio
B16: ='TOT-1115'!B14 -> Desde el 01 al 30 de noviembre de 2015
F18: Por Transformador por MVA $ = | I18: 1.79 | K18: 0.6747 | L18: Res. SE 1/03
F19: Coeficiente de penalización por salida forzada = | I19: =30*'TOT-1115'!B13 -> 30 | K19: =IF(I19=30," ",IF(I19=60," Coeficiente duplicado por tasa de falla >4 Sal. x año/100 km.","REVISAR COEFICIENTE")) -> 
C20: 3 | D20: 4 | E20: 5 | F20: 6 | G20: 7 | H20: 8 | I20: 9 | J20: 10 | K20: 11 | L20: 12 | M20: 13 | N20: 14 | O20: 15 | P20: 16 | Q20: 17 | R20: 18 | S20: 19 | T20: 20 | U20: 21 | V20: 22 | W20: 23 | X20: 24 | Y20: 25 | Z20: 26 | AA20: 27 | AB20: 28 | AC20: 29
C21: N° | D21: INDISP | E21: ID EQUIPO | F21: ESTACIÓN TRANSFORMADORA | G21: EQUIPO | H21: POT. [MVA] | I21: U [kV] | J21: $/h | K21: Salida | L21: Entrada | M21: Hs Indisp. | N21: Mtos. Indisp. | O21: Tipo Sal.(²) | P21: AUT. | Q21: C.R. % | R21: E.N.S. | S21: K (P;ENS) | T21: PENALIZ. PROGRAM. | U21: REDUCC. PROGRAM. | V21: PENALIZAC. FORZADA Por Salida hs. Restantes | X21: REDUCC. FORZADA Por Salida hs. Restantes | Z21: RESTANTE FORZADA | AA21: REDUCC. RESTANTE | AB21: Informó en Térm. | AC21: TOTAL PENALIZAC.
C23: 35 | D23: 291078 | E23: 4228 | F23: SUNCHO CORRAL | G23: TRAFO 2 | H23: 15 | I23: 132/33/13,2 | J23: =H23*$I$18 -> 26.85 | K23: 2015-11-01 | L23: 2015-11-30T23:59:59 | M23: =IF(F23="","",(L23-K23)*24) -> 719.9997222 | N23: =IF(F23="","",ROUND((L23-K23)*24*60,0)) -> 43200 | O23: P | P23: =IF(F23="","",IF(OR(O23="P",O23="RP"),"--","NO")) -> -- | Q23: 0,000 | R23: NO | S23: =$I$19*IF(R23="SI",1,0.1)*IF(OR(O23="P",O23="RP"),0.1,1) -> 0.3 | T23: =IF(O23="P",J23*S23*ROUND(N23/60,2),"--") -> 5799.6 | U23: =IF(O23="RP",J23*S23*Q23/100*ROUND(N23/60,2),"--") -> -- | V23: =IF(AND(O23="F",P23="NO"),J23*S23,"--") -> -- | W23: =IF(O23="F",J23*S23*ROUND(N23/60,2),"--") -> -- | X23: =IF(AND(O23="R",P23="NO"),J23*S23*Q23/100,"--") -> -- | Y23: =IF(O23="R",J23*S23*ROUND(N23/60,2)*Q23/100,"--") -> -- | Z23: =IF(O23="RF",J23*S23*ROUND(N23/60,2),"--") -> -- | AA23: =IF(O23="RR",J23*S23*ROUND(N23/60,2)*Q23/100,"--") -> -- | AB23: SI | AC23: =IF(F23="","",SUM(T23:AA23)*IF(AB23="SI",1,2)) -> 5799.6
C24: 36 | D24: 291878 | E24: 562 | F24: METAN | G24: TRAFO 1 | H24: 7.5 | I24: 132/33/13,2 | J24: =H24*$I$18 -> 13.425 | K24: 2015-11-01 | L24: 2015-11-30T23:59:59 | M24: =IF(F24="","",(L24-K24)*24) -> 719.9997222 | N24: =IF(F24="","",ROUND((L24-K24)*24*60,0)) -> 43200 | O24: P | P24: =IF(F24="","",IF(OR(O24="P",O24="RP"),"--","NO")) -> -- | Q24: 0,000 | R24: NO | S24: =$I$19*IF(R24="SI",1,0.1)*IF(OR(O24="P",O24="RP"),0.1,1) -> 0.3 | T24: =IF(O24="P",J24*S24*ROUND(N24/60,2),"--") -> 2899.8 | U24: =IF(O24="RP",J24*S24*Q24/100*ROUND(N24/60,2),"--") -> -- | V24: =IF(AND(O24="F",P24="NO"),J24*S24,"--") -> -- | W24: =IF(O24="F",J24*S24*ROUND(N24/60,2),"--") -> -- | X24: =IF(AND(O24="R",P24="NO"),J24*S24*Q24/100,"--") -> -- | Y24: =IF(O24="R",J24*S24*ROUND(N24/60,2)*Q24/100,"--") -> -- | Z24: =IF(O24="RF",J24*S24*ROUND(N24/60,2),"--") -> -- | AA24: =IF(O24="RR",J24*S24*ROUND(N24/60,2)*Q24/100,"--") -> -- | AB24: SI | AC24: =IF(F24="","",SUM(T24:AA24)*IF(AB24="SI",1,2)) -> 2899.8
C25: 37 | D25: 294228 | E25: 3581 | F25: ANDALGALA | G25: TRAFO 2 | H25: 15 | I25: 132/33/13,2 | J25: =H25*$I$18 -> 26.85 | K25: 2015-11-05T00:05:00 | L25: 2015-11-30T23:59:59 | M25: =IF(F25="","",(L25-K25)*24) -> 623.9163889 | N25: =IF(F25="","",ROUND((L25-K25)*24*60,0)) -> 37435 | O25: P | P25: =IF(F25="","",IF(OR(O25="P",O25="RP"),"--","NO")) -> -- | Q25: 0,000 | R25: NO | S25: =$I$19*IF(R25="SI",1,0.1)*IF(OR(O25="P",O25="RP"),0.1,1) -> 0.3 | T25: =IF(O25="P",J25*S25*ROUND(N25/60,2),"--") -> 5025.6756 | U25: =IF(O25="RP",J25*S25*Q25/100*ROUND(N25/60,2),"--") -> -- | V25: =IF(AND(O25="F",P25="NO"),J25*S25,"--") -> -- | W25: =IF(O25="F",J25*S25*ROUND(N25/60,2),"--") -> -- | X25: =IF(AND(O25="R",P25="NO"),J25*S25*Q25/100,"--") -> -- | Y25: =IF(O25="R",J25*S25*ROUND(N25/60,2)*Q25/100,"--") -> -- | Z25: =IF(O25="RF",J25*S25*ROUND(N25/60,2),"--") -> -- | AA25: =IF(O25="RR",J25*S25*ROUND(N25/60,2)*Q25/100,"--") -> -- | AB25: SI | AC25: =IF(F25="","",SUM(T25:AA25)*IF(AB25="SI",1,2)) -> 5025.6756
C26: 38 | D26: 294005 | E26: 4993 | F26: PALPALA | G26: TRAFO 2 | H26: 15 | I26: 132/33/13,2 | J26: =H26*$I$18 -> 26.85 | K26: 2015-11-01 | L26: 2015-11-02T15:36:00 | M26: =IF(F26="","",(L26-K26)*24) -> 39.6 | N26: =IF(F26="","",ROUND((L26-K26)*24*60,0)) -> 2376 | O26: P | P26: =IF(F26="","",IF(OR(O26="P",O26="RP"),"--","NO")) -> -- | Q26: 0,000 | R26: NO | S26: =$I$19*IF(R26="SI",1,0.1)*IF(OR(O26="P",O26="RP"),0.1,1) -> 0.3 | T26: =IF(O26="P",J26*S26*ROUND(N26/60,2),"--") -> 318.978 | U26: =IF(O26="RP",J26*S26*Q26/100*ROUND(N26/60,2),"--") -> -- | V26: =IF(AND(O26="F",P26="NO"),J26*S26,"--") -> -- | W26: =IF(O26="F",J26*S26*ROUND(N26/60,2),"--") -> -- | X26: =IF(AND(O26="R",P26="NO"),J26*S26*Q26/100,"--") -> -- | Y26: =IF(O26="R",J26*S26*ROUND(N26/60,2)*Q26/100,"--") -> -- | Z26: =IF(O26="RF",J26*S26*ROUND(N26/60,2),"--") -> -- | AA26: =IF(O26="RR",J26*S26*ROUND(N26/60,2)*Q26/100,"--") -> -- | AB26: SI | AC26: =IF(F26="","",SUM(T26:AA26)*IF(AB26="SI",1,2)) -> 318.978
C27: 39 | D27: 294021 | E27: 565 | F27: PALPALA | G27: TRAFO 1 | H27: 30 | I27: 132/33/13,2 | J27: =H27*$I$18 -> 53.7 | K27: 2015-11-01T07:25:00 | L27: 2015-11-01T13:52:00 | M27: =IF(F27="","",(L27-K27)*24) -> 6.45 | N27: =IF(F27="","",ROUND((L27-K27)*24*60,0)) -> 387 | O27: P | P27: =IF(F27="","",IF(OR(O27="P",O27="RP"),"--","NO")) -> -- | Q27: 0,000 | R27: NO | S27: =$I$19*IF(R27="SI",1,0.1)*IF(OR(O27="P",O27="RP"),0.1,1) -> 0.3 | T27: =IF(O27="P",J27*S27*ROUND(N27/60,2),"--") -> 103.9095 | U27: =IF(O27="RP",J27*S27*Q27/100*ROUND(N27/60,2),"--") -> -- | V27: =IF(AND(O27="F",P27="NO"),J27*S27,"--") -> -- | W27: =IF(O27="F",J27*S27*ROUND(N27/60,2),"--") -> -- | X27: =IF(AND(O27="R",P27="NO"),J27*S27*Q27/100,"--") -> -- | Y27: =IF(O27="R",J27*S27*ROUND(N27/60,2)*Q27/100,"--") -> -- | Z27: =IF(O27="RF",J27*S27*ROUND(N27/60,2),"--") -> -- | AA27: =IF(O27="RR",J27*S27*ROUND(N27/60,2)*Q27/100,"--") -> -- | AB27: SI | AC27: =IF(F27="","",SUM(T27:AA27)*IF(AB27="SI",1,2)) -> 103.9095
C28: 40 | D28: 294045 | E28: 5333 | F28: COPO | G28: TRAFO 2 | H28: 15 | I28: 132/33/13,2 | J28: 26.85 | K28: 2015-11-01T23:36:00 | L28: 2015-11-01T23:55:00 | M28: 0.3166666668 | N28: 19 | O28: F | P28: NO | Q28: 0,000 | R28: SI | S28: 30 | T28: -- | U28: -- | V28: 805.5 | W28: 257.76 | X28: -- | Y28: -- | Z28: -- | AA28: -- | AB28: SI | AC28: 1063.26
C29: 41 | D29: 294046 | E29: 5333 | F29: COPO | G29: TRAFO 2 | H29: 15 | I29: 132/33/13,2 | J29: 26.85 | K29: 2015-11-01T23:56:00 | L29: 2015-11-02T07:39:00 | M29: 7.716666667 | N29: 463 | O29: F | P29: NO | Q29: 0,000 | R29: NO | S29: 3 | T29: -- | U29: -- | V29: 80.55 | W29: 621.846 | X29: -- | Y29: -- | Z29: -- | AA29: -- | AB29: SI | AC29: 702.396
C30: 42 | D30: 294237 | E30: 3618 | F30: TINOGASTA | G30: TRAFO 1 | H30: 7.5 | I30: 132/33/13,2 | J30: 13.425 | K30: 2015-11-03T19:58:00 | L30: 2015-11-03T21:04:00 | M30: 1.1 | N30: 66 | O30: F | P30: NO | Q30: 0,000 | R30: SI | S30: 30 | T30: -- | U30: -- | V30: 402.75 | W30: 443.025 | X30: -- | Y30: -- | Z30: -- | AA30: -- | AB30: SI | AC30: 845.775
C31: 43 | D31: 294238 | E31: 3619 | F31: TINOGASTA | G31: TRAFO 2 | H31: 7.5 | I31: 132/33/13,2 | J31: 13.425 | K31: 2015-11-03T20:02:00 | L31: 2015-11-03T21:05:00 | M31: 1.05 | N31: 63 | O31: F | P31: NO | Q31: 0,000 | R31: SI | S31: 30 | T31: -- | U31: -- | V31: 402.75 | W31: 422.8875 | X31: -- | Y31: -- | Z31: -- | AA31: -- | AB31: SI | AC31: 825.6375
C32: 44 | D32: 294289 | E32: 5446 | F32: CHAMICAL | G32: TRAFO 1 | H32: 30 | I32: 132/33/13,2 | J32: 53.7 | K32: 2015-11-04T03:19:00 | L32: 2015-11-04T04:36:00 | M32: 1.283333333 | N32: 77 | O32: R | P32: NO | Q32: 40 | R32: SI | S32: 30 | T32: -- | U32: -- | V32: -- | W32: -- | X32: 644.4 | Y32: 824.832 | Z32: -- | AA32: -- | AB32: SI | AC32: 1469.232
C33: 45 | D33: 294292 | E33: 5446 | F33: CHAMICAL | G33: TRAFO 1 | H33: 30 | I33: 132/33/13,2 | J33: 53.7 | K33: 2015-11-04T04:37:00 | L33: 2015-11-04T13:28:00 | M33: 8.85 | N33: 531 | O33: R | P33: NO | Q33: 40 | R33: NO | S33: 3 | T33: -- | U33: -- | V33: -- | W33: -- | X33: 64.44 | Y33: 570.294 | Z33: -- | AA33: -- | AB33: SI | AC33: 634.734
C34: 46 | D34: 294295 | E34: 4062 | F34: JUJUY SUR | G34: TRAFO 2 | H34: 30 | I34: 132/33/13,2 | J34: 53.7 | K34: 2015-11-04T17:26:00 | L34: 2015-11-04T17:32:00 | M34: 0.09999999998 | N34: 6 | O34: R | P34: NO | Q34: 60 | R34: SI | S34: 30 | T34: -- | U34: -- | V34: -- | W34: -- | X34: 966.6 | Y34: 96.66 | Z34: -- | AA34: -- | AB34: SI | AC34: 1063.26
C35: 47 | D35: 294304 | E35: 4062 | F35: JUJUY SUR | G35: TRAFO 2 | H35: 30 | I35: 132/33/13,2 | J35: 53.7 | K35: 2015-11-04T17:44:00 | L35: 2015-11-04T17:50:00 | M35: 0.09999999998 | N35: 6 | O35: F | P35: NO | Q35: 0,000 | R35: SI | S35: 30 | T35: -- | U35: -- | V35: 1611 | W35: 161.1 | X35: -- | Y35: -- | Z35: -- | AA35: -- | AB35: SI | AC35: 1772.1
C36: 48 | D36: 294315 | E36: 5453 | F36: CIRCUNVALACIÓN | G36: TRAFO 1 | H36: 30 | I36: 132/33/13,2 | J36: 53.7 | K36: 2015-11-04T18:35:00 | L36: 2015-11-04T19:14:00 | M36: 0.65 | N36: 39 | O36: R | P36: NO | Q36: 40 | R36: SI | S36: 30 | T36: -- | U36: -- | V36: -- | W36: -- | X36: 644.4 | Y36: 418.86 | Z36: -- | AA36: -- | AB36: SI | AC36: 1063.26
C37: 49 | D37: 294229 | E37: 4517 | F37: CATAMARCA II | G37: TRAFO 2 (Res. SE 1/03) | H37: 30 | I37: 132/33/13,2 | J37: =H37*$K$18 -> 20.241 | K37: 2015-11-05T08:35:00 | L37: 2015-11-05T18:05:00 | M37: 9.5 | N37: 570 | O37: RP | P37: -- | Q37: 40 | R37: NO | S37: 0.3 | T37: -- | U37: 23.07474 | V37: -- | W37: -- | X37: -- | Y37: -- | Z37: -- | AA37: -- | AB37: SI | AC37: 23.07474
C38: 50 | D38: 294318 | E38: 4575 | F38: LA RIOJA | G38: TRAFO 1 | H38: 30 | I38: 132/33/13,2 | J38: 53.7 | K38: 2015-11-05T23:10:00 | L38: 2015-11-06T02:02:00 | M38: 2.866666667 | N38: 172 | O38: R | P38: NO | Q38: 60 | R38: SI | S38: 30 | T38: -- | U38: -- | V38: -- | W38: -- | X38: 966.6 | Y38: 2774.142 | Z38: -- | AA38: -- | AB38: SI | AC38: 3740.742
C39: 51 | D39: 294331 | E39: 5446 | F39: CHAMICAL | G39: TRAFO 1 | H39: 30 | I39: 132/33/13,2 | J39: 53.7 | K39: 2015-11-06T12:08:00 | L39: 2015-11-06T13:47:00 | M39: 1.65 | N39: 99 | O39: R | P39: NO | Q39: 40 | R39: SI | S39: 30 | T39: -- | U39: -- | V39: -- | W39: -- | X39: 644.4 | Y39: 1063.26 | Z39: -- | AA39: -- | AB39: SI | AC39: 1707.66
C40: 52 | D40: 294230 | E40: 5266 | F40: TUCUMAN OESTE | G40: TRAFO 3 | H40: 30 | I40: 132/33/13,2 | J40: 53.7 | K40: 2015-11-08T08:03:00 | L40: 2015-11-08T15:37:00 | M40: 7.566666667 | N40: 454 | O40: P | P40: -- | Q40: 0,000 | R40: NO | S40: 0.3 | T40: 121.9527 | U40: -- | V40: -- | W40: -- | X40: -- | Y40: -- | Z40: -- | AA40: -- | AB40: SI | AC40: 121.9527
C41: 53 | D41: 294231 | E41: 2742 | F41: TUCUMAN OESTE | G41: TRAFO 2 | H41: 30 | I41: 132/33/13,2 | J41: 53.7 | K41: 2015-11-08T08:10:00 | L41: 2015-11-08T15:34:00 | M41: 7.4 | N41: 444 | O41: P | P41: -- | Q41: 0,000 | R41: NO | S41: 0.3 | T41: 119.214 | U41: -- | V41: -- | W41: -- | X41: -- | Y41: -- | Z41: -- | AA41: -- | AB41: SI | AC41: 119.214
C42: 54 | D42: 294232 | E42: 2731 | F42: TUCUMAN OESTE | G42: TRAFO 1 | H42: 30 | I42: 132/13,2 | J42: 53.7 | K42: 2015-11-08T08:13:00 | L42: 2015-11-08T15:09:00 | M42: 6.933333333 | N42: 416 | O42: P | P42: -- | Q42: 0,000 | R42: NO | S42: 0.3 | T42: 111.6423 | U42: -- | V42: -- | W42: -- | X42: -- | Y42: -- | Z42: -- | AA42: -- | AB42: SI | AC42: 111.6423
C43: 55 | D43: 294233 | E43: 4962 | F43: TUCUMAN NORTE | G43: TRAFO 3 | H43: 30 | I43: 132/33/13,2 | J43: 53.7 | K43: 2015-11-08T08:13:00 | L43: 2015-11-08T15:07:00 | M43: =IF(F43="","",(L43-K43)*24) -> 6.9 | N43: =IF(F43="","",ROUND((L43-K43)*24*60,0)) -> 414 | O43: P | P43: -- | Q43: 0,000 | R43: NO | S43: =$I$19*IF(R43="SI",1,0.1)*IF(OR(O43="P",O43="RP"),0.1,1) -> 0.3 | T43: =IF(O43="P",J43*S43*ROUND(N43/60,2),"--") -> 111.159 | U43: =IF(O43="RP",J43*S43*Q43/100*ROUND(N43/60,2),"--") -> -- | V43: =IF(AND(O43="F",P43="NO"),J43*S43,"--") -> -- | W43: =IF(O43="F",J43*S43*ROUND(N43/60,2),"--") -> -- | X43: =IF(AND(O43="R",P43="NO"),J43*S43*Q43/100,"--") -> -- | Y43: =IF(O43="R",J43*S43*ROUND(N43/60,2)*Q43/100,"--") -> -- | Z43: =IF(O43="RF",J43*S43*ROUND(N43/60,2),"--") -> -- | AA43: =IF(O43="RR",J43*S43*ROUND(N43/60,2)*Q43/100,"--") -> -- | AB43: SI | AC43: =IF(F43="","",SUM(T43:AA43)*IF(AB43="SI",1,2)) -> 111.159
C44: 56 | D44: 294422 | E44: 5410 | F44: TERMAS NORTE | G44: TRAFO 1 | H44: 15 | I44: 132/33/13,2 | J44: 26.85 | K44: 2015-11-09T20:12:00 | L44: 2015-11-09T20:46:00 | M44: =IF(F44="","",(L44-K44)*24) -> 0.5666666666 | N44: =IF(F44="","",ROUND((L44-K44)*24*60,0)) -> 34 | O44: R | P44: NO | Q44: 60 | R44: SI | S44: =$I$19*IF(R44="SI",1,0.1)*IF(OR(O44="P",O44="RP"),0.1,1) -> 30 | T44: =IF(O44="P",J44*S44*ROUND(N44/60,2),"--") -> -- | U44: =IF(O44="RP",J44*S44*Q44/100*ROUND(N44/60,2),"--") -> -- | V44: =IF(AND(O44="F",P44="NO"),J44*S44,"--") -> -- | W44: =IF(O44="F",J44*S44*ROUND(N44/60,2),"--") -> -- | X44: =IF(AND(O44="R",P44="NO"),J44*S44*Q44/100,"--") -> 483.3 | Y44: =IF(O44="R",J44*S44*ROUND(N44/60,2)*Q44/100,"--") -> 275.481 | Z44: =IF(O44="RF",J44*S44*ROUND(N44/60,2),"--") -> -- | AA44: =IF(O44="RR",J44*S44*ROUND(N44/60,2)*Q44/100,"--") -> -- | AB44: SI | AC44: =IF(F44="","",SUM(T44:AA44)*IF(AB44="SI",1,2)) -> 758.781
C45: 57 | D45: 294423 | E45: 3580 | F45: ANDALGALA | G45: TRAFO 1 | H45: 15 | I45: 132/33/13,2 | J45: 26.85 | K45: 2015-11-09T21:13:00 | L45: 2015-11-09T23:03:00 | M45: =IF(F45="","",(L45-K45)*24) -> 1.833333333 | N45: =IF(F45="","",ROUND((L45-K45)*24*60,0)) -> 110 | O45: F | P45: NO | Q45: 0,000 | R45: SI | S45: =$I$19*IF(R45="SI",1,0.1)*IF(OR(O45="P",O45="RP"),0.1,1) -> 30 | T45: =IF(O45="P",J45*S45*ROUND(N45/60,2),"--") -> -- | U45: =IF(O45="RP",J45*S45*Q45/100*ROUND(N45/60,2),"--") -> -- | V45: =IF(AND(O45="F",P45="NO"),J45*S45,"--") -> 805.5 | W45: =IF(O45="F",J45*S45*ROUND(N45/60,2),"--") -> 1474.065 | X45: =IF(AND(O45="R",P45="NO"),J45*S45*Q45/100,"--") -> -- | Y45: =IF(O45="R",J45*S45*ROUND(N45/60,2)*Q45/100,"--") -> -- | Z45: =IF(O45="RF",J45*S45*ROUND(N45/60,2),"--") -> -- | AA45: =IF(O45="RR",J45*S45*ROUND(N45/60,2)*Q45/100,"--") -> -- | AB45: SI | AC45: =IF(F45="","",SUM(T45:AA45)*IF(AB45="SI",1,2)) -> 2279.565
C47: (²) | D47: P - PROGRAMADA ; F - FORZADA ; R - REDUCCIÓN FORZADA ; RP - REDUCCIÓN PROGRAMADA | T47: =SUM(T22:T46) -> 14611.9311 | U47: 23.07474 | V47: 4108.05 | W47: 3380.6835 | X47: 4414.14 | Y47: 6023.529 | Z47: 0 | AA47: 0 | AC47: =ROUND(SUM(AC22:AC46),2) -> 32561.41

Sheet T-11 (2)
B2: =+'TOT-1115'!B2 -> ANEXO II al Memorandum D.T.E.E. N° 356 / 2017
A4: ENTE NACIONAL REGULADOR
A5: DE LA ELECTRICIDAD
F8: SISTEMA DE TRANSPORTE DE ENERGÍA ELÉCTRICA POR DISTRIBUCIÓN TRONCAL - TRANSNOA S.A.
F10: 2.- CONEXIÓN
F12: 2.1.- Transformación
F14: 2.1.1.- Equipamiento propio
B16: ='TOT-1115'!B14 -> Desde el 01 al 30 de noviembre de 2015
F18: Por Transformador por MVA $ = | I18: 1.79
F19: Coeficiente de penalización por salida forzada = | I19: =30*'TOT-1115'!B13 -> 30 | K19: =IF(I19=30," ",IF(I19=60," Coeficiente duplicado por tasa de falla >4 Sal. x año/100 km.","REVISAR COEFICIENTE")) -> 
C20: 3 | D20: 4 | E20: 5 | F20: 6 | G20: 7 | H20: 8 | I20: 9 | J20: 10 | K20: 11 | L20: 12 | M20: 13 | N20: 14 | O20: 15 | P20: 16 | Q20: 17 | R20: 18 | S20: 19 | T20: 20 | U20: 21 | V20: 22 | W20: 23 | X20: 24 | Y20: 25 | Z20: 26 | AA20: 27 | AB20: 28 | AC20: 29
C21: N° | D21: INDISP | E21: ID EQUIPO | F21: ESTACIÓN TRANSFORMADORA | G21: EQUIPO | H21: POT. [MVA] | I21: U [kV] | J21: $/h | K21: Salida | L21: Entrada | M21: Hs Indisp. | N21: Mtos. Indisp. | O21: Tipo Sal.(²) | P21: AUT. | Q21: C.R. % | R21: E.N.S. | S21: K (P;ENS) | T21: PENALIZ. PROGRAM. | U21: REDUCC. PROGRAM. | V21: PENALIZAC. FORZADA Por Salida hs. Restantes | X21: REDUCC. FORZADA Por Salida hs. Restantes | Z21: RESTANTE FORZADA | AA21: REDUCC. RESTANTE | AB21: Informó en Térm. | AC21: TOTAL PENALIZAC.
AC22: ='T-11 (1)'!AC47 -> 32561.41
C24: 58 | D24: 294428 | E24: 3580 | F24: ANDALGALA | G24: TRAFO 1 | H24: 15 | I24: 132/33/13,2 | J24: =H24*$I$18 -> 26.85 | K24: 2015-11-09T23:04:00 | L24: 2015-11-10T15:15:00 | M24: =IF(F24="","",(L24-K24)*24) -> 16.18333333 | N24: =IF(F24="","",ROUND((L24-K24)*24*60,0)) -> 971 | O24: R | P24: =IF(F24="","",IF(OR(O24="P",O24="RP"),"--","NO")) -> NO | Q24: 60 | R24: NO | S24: =$I$19*IF(R24="SI",1,0.1)*IF(OR(O24="P",O24="RP"),0.1,1) -> 3 | T24: =IF(O24="P",J24*S24*ROUND(N24/60,2),"--") -> -- | U24: =IF(O24="RP",J24*S24*Q24/100*ROUND(N24/60,2),"--") -> -- | V24: =IF(AND(O24="F",P24="NO"),J24*S24,"--") -> -- | W24: =IF(O24="F",J24*S24*ROUND(N24/60,2),"--") -> -- | X24: =IF(AND(O24="R",P24="NO"),J24*S24*Q24/100,"--") -> 48.33 | Y24: =IF(O24="R",J24*S24*ROUND(N24/60,2)*Q24/100,"--") -> 781.9794 | Z24: =IF(O24="RF",J24*S24*ROUND(N24/60,2),"--") -> -- | AA24: =IF(O24="RR",J24*S24*ROUND(N24/60,2)*Q24/100,"--") -> -- | AB24: SI | AC24: =IF(F24="","",SUM(T24:AA24)*IF(AB24="SI",1,2)) -> 830.3094
C25: 59 | D25: 294429 | E25: 5339 | F25: LA BANDA ESTE | G25: TRAFO 2 | H25: 30 | I25: 132/33/13,2 | J25: =H25*$I$18 -> 53.7 | K25: 2015-11-10T08:26:00 | L25: 2015-11-10T14:38:00 | M25: =IF(F25="","",(L25-K25)*24) -> 6.2 | N25: =IF(F25="","",ROUND((L25-K25)*24*60,0)) -> 372 | O25: P | P25: =IF(F25="","",IF(OR(O25="P",O25="RP"),"--","NO")) -> -- | Q25: 0,000 | R25: NO | S25: =$I$19*IF(R25="SI",1,0.1)*IF(OR(O25="P",O25="RP"),0.1,1) -> 0.3 | T25: =IF(O25="P",J25*S25*ROUND(N25/60,2),"--") -> 99.882 | U25: =IF(O25="RP",J25*S25*Q25/100*ROUND(N25/60,2),"--") -> -- | V25: =IF(AND(O25="F",P25="NO"),J25*S25,"--") -> -- | W25: =IF(O25="F",J25*S25*ROUND(N25/60,2),"--") -> -- | X25: =IF(AND(O25="R",P25="NO"),J25*S25*Q25/100,"--") -> -- | Y25: =IF(O25="R",J25*S25*ROUND(N25/60,2)*Q25/100,"--") -> -- | Z25: =IF(O25="RF",J25*S25*ROUND(N25/60,2),"--") -> -- | AA25: =IF(O25="RR",J25*S25*ROUND(N25/60,2)*Q25/100,"--") -> -- | AB25: SI | AC25: =IF(F25="","",SUM(T25:AA25)*IF(AB25="SI",1,2)) -> 99.882
C26: 60 | D26: 294455 | E26: 5584 | F26: FERNANDEZ | G26: TRAFO 1 | H26: 15 | I26: 132/33/13,2 | J26: 26.85 | K26: 2015-11-11T08:23:00 | L26: 2015-11-11T11:56:00 | M26: 3.55 | N26: 213 | O26: P | P26: -- | Q26: 0,000 | R26: NO | S26: 0.3 | T26: 28.59525 | U26: -- | V26: -- | W26: -- | X26: -- | Y26: -- | Z26: -- | AA26: -- | AB26: SI | AC26: 28.59525
C27: 61 | D27: 294458 | E27: 5339 | F27: LA BANDA ESTE | G27: TRAFO 2 | H27: 30 | I27: 132/33/13,2 | J27: 53.7 | K27: 2015-11-12T08:31:00 | L27: 2015-11-12T15:02:00 | M27: 6.516666667 | N27: 391 | O27: RP | P27: -- | Q27: 40 | R27: NO | S27: 0.3 | T27: -- | U27: 42.01488 | V27: -- | W27: -- | X27: -- | Y27: -- | Z27: -- | AA27: -- | AB27: SI | AC27: 42.01488
C28: 62 | D28: 294459 | E28: 5338 | F28: LA BANDA ESTE | G28: TRAFO 1 | H28: 30 | I28: 132/33/13,2 | J28: 53.7 | K28: 2015-11-13T08:35:00 | L28: 2015-11-16T14:24:00 | M28: 77.81666667 | N28: 4669 | O28: P | P28: -- | Q28: 0,000 | R28: NO | S28: 0.3 | T28: 1253.6802 | U28: -- | V28: -- | W28: -- | X28: -- | Y28: -- | Z28: -- | AA28: -- | AB28: SI | AC28: 1253.6802
C29: 63 | D29: 294464 | E29: 5410 | F29: TERMAS NORTE | G29: TRAFO 1 | H29: 15 | I29: 132/33/13,2 | J29: 26.85 | K29: 2015-11-13T10:38:00 | L29: 2015-11-13T10:43:00 | M29: 0.08333333326 | N29: 5 | O29: R | P29: NO | Q29: 60 | R29: SI | S29: 30 | T29: -- | U29: -- | V29: -- | W29: -- | X29: 483.3 | Y29: 38.664 | Z29: -- | AA29: -- | AB29: SI | AC29: 521.964
C30: 64 | D30: 294476 | E30: 4575 | F30: LA RIOJA | G30: TRAFO 1 | H30: 30 | I30: 132/33/13,2 | J30: 53.7 | K30: 2015-11-15T05:04:00 | L30: 2015-11-15T10:00:00 | M30: 4.933333333 | N30: 296 | O30: P | P30: -- | Q30: 0,000 | R30: NO | S30: 0.3 | T30: 79.4223 | U30: -- | V30: -- | W30: -- | X30: -- | Y30: -- | Z30: -- | AA30: -- | AB30: SI | AC30: 79.4223
C31: 65 | D31: 294759 | E31: 3618 | F31: TINOGASTA | G31: TRAFO 1 | H31: 7.5 | I31: 132/33/13,2 | J31: 13.425 | K31: 2015-11-16T00:13:00 | L31: 2015-11-16T03:00:00 | M31: 2.783333333 | N31: 167 | O31: P | P31: -- | Q31: 0,000 | R31: NO | S31: 0.3 | T31: 11.19645 | U31: -- | V31: -- | W31: -- | X31: -- | Y31: -- | Z31: -- | AA31: -- | AB31: SI | AC31: 11.19645
C32: 66 | D32: 294760 | E32: 3619 | F32: TINOGASTA | G32: TRAFO 2 | H32: 7.5 | I32: 132/33/13,2 | J32: 13.425 | K32: 2015-11-16T02:54:00 | L32: 2015-11-16T05:12:00 | M32: 2.3 | N32: 138 | O32: P | P32: -- | Q32: 0,000 | R32: NO | S32: 0.3 | T32: 9.26325 | U32: -- | V32: -- | W32: -- | X32: -- | Y32: -- | Z32: -- | AA32: -- | AB32: SI | AC32: 9.26325
C33: 67 | D33: 294764 | E33: 4897 | F33: BANDERA | G33: TRAFO 2 | H33: 15 | I33: 132/33/13,2 | J33: 26.85 | K33: 2015-11-16T11:31:00 | L33: 2015-11-16T11:36:00 | M33: 0.08333333326 | N33: 5 | O33: R | P33: NO | Q33: 60 | R33: SI | S33: 30 | T33: -- | U33: -- | V33: -- | W33: -- | X33: 483.3 | Y33: 38.664 | Z33: -- | AA33: -- | AB33: SI | AC33: 521.964
C34: 68 | D34: 294766 | E34: 5338 | F34: LA BANDA ESTE | G34: TRAFO 1 | H34: 30 | I34: 132/33/13,2 | J34: 53.7 | K34: 2015-11-17T00:01:00 | L34: 2015-11-17T09:34:00 | M34: 9.55 | N34: 573 | O34: RP | P34: -- | Q34: 40 | R34: NO | S34: 0.3 | T34: -- | U34: 61.5402 | V34: -- | W34: -- | X34: -- | Y34: -- | Z34: -- | AA34: -- | AB34: SI | AC34: 61.5402
C35: 69 | D35: 294769 | E35: 5584 | F35: FERNANDEZ | G35: TRAFO 1 | H35: 15 | I35: 132/33/13,2 | J35: 26.85 | K35: 2015-11-17T21:32:00 | L35: 2015-11-17T22:13:00 | M35: 0.6833333333 | N35: 41 | O35: F | P35: NO | Q35: 0,000 | R35: SI | S35: 30 | T35: -- | U35: -- | V35: 805.5 | W35: 547.74 | X35: -- | Y35: -- | Z35: -- | AA35: -- | AB35: SI | AC35: 1353.24
C36: 70 | D36: 294771 | E36: 3819 | F36: BELEN | G36: TRAFO 2 | H36: 7.5 | I36: 132/33/13,2 | J36: 13.425 | K36: 2015-11-18T07:43:00 | L36: 2015-11-21T10:34:00 | M36: 74.85 | N36: 4491 | O36: P | P36: -- | Q36: 0,000 | R36: NO | S36: 0.3 | T36: 301.458375 | U36: -- | V36: -- | W36: -- | X36: -- | Y36: -- | Z36: -- | AA36: -- | AB36: SI | AC36: 301.458375
C37: 71 | D37: 294772 | E37: 4062 | F37: JUJUY SUR | G37: TRAFO 2 | H37: 30 | I37: 132/33/13,2 | J37: 53.7 | K37: 2015-11-18T08:13:00 | L37: 2015-11-18T12:38:00 | M37: 4.416666667 | N37: 265 | O37: P | P37: -- | Q37: 0,000 | R37: NO | S37: 0.3 | T37: 71.2062 | U37: -- | V37: -- | W37: -- | X37: -- | Y37: -- | Z37: -- | AA37: -- | AB37: SI | AC37: 71.2062
C38: 72 | D38: 294774 | E38: 4897 | F38: BANDERA | G38: TRAFO 2 | H38: 15 | I38: 132/33/13,2 | J38: 26.85 | K38: 2015-11-18T11:06:00 | L38: 2015-11-18T14:55:00 | M38: 3.816666667 | N38: 229 | O38: P | P38: -- | Q38: 0,000 | R38: NO | S38: 0.3 | T38: 30.7701 | U38: -- | V38: -- | W38: -- | X38: -- | Y38: -- | Z38: -- | AA38: -- | AB38: SI | AC38: 30.7701
C39: 73 | D39: 294781 | E39: 5453 | F39: CIRCUNVALACIÓN | G39: TRAFO 1 | H39: 30 | I39: 132/33/13,2 | J39: 53.7 | K39: 2015-11-19T16:36:00 | L39: 2015-11-19T20:12:00 | M39: 3.6 | N39: 216 | O39: F | P39: NO | Q39: 0,000 | R39: SI | S39: 30 | T39: -- | U39: -- | V39: 1611 | W39: 5799.6 | X39: -- | Y39: -- | Z39: -- | AA39: -- | AB39: SI | AC39: 7410.6
C40: 74 | D40: 294783 | E40: 5454 | F40: CIRCUNVALACIÓN | G40: TRAFO 2 | H40: 30 | I40: 132/33/13,2 | J40: 53.7 | K40: 2015-11-19T16:36:00 | L40: 2015-11-19T20:12:00 | M40: 3.6 | N40: 216 | O40: F | P40: NO | Q40: 0,000 | R40: SI | S40: 30 | T40: -- | U40: -- | V40: 1611 | W40: 5799.6 | X40: -- | Y40: -- | Z40: -- | AA40: -- | AB40: SI | AC40: 7410.6
C41: 75 | D41: 294785 | E41: 5268 | F41: INDEPEND.-TUCUMAN | G41: TRAFO 3 | H41: 30 | I41: 132/33/13,2 | J41: 53.7 | K41: 2015-11-20T09:17:00 | L41: 2015-11-20T11:00:00 | M41: =IF(F41="","",(L41-K41)*24) -> 1.716666667 | N41: =IF(F41="","",ROUND((L41-K41)*24*60,0)) -> 103 | O41: P | P41: -- | Q41: 0,000 | R41: NO | S41: =$I$19*IF(R41="SI",1,0.1)*IF(OR(O41="P",O41="RP"),0.1,1) -> 0.3 | T41: =IF(O41="P",J41*S41*ROUND(N41/60,2),"--") -> 27.7092 | U41: =IF(O41="RP",J41*S41*Q41/100*ROUND(N41/60,2),"--") -> -- | V41: =IF(AND(O41="F",P41="NO"),J41*S41,"--") -> -- | W41: =IF(O41="F",J41*S41*ROUND(N41/60,2),"--") -> -- | X41: =IF(AND(O41="R",P41="NO"),J41*S41*Q41/100,"--") -> -- | Y41: =IF(O41="R",J41*S41*ROUND(N41/60,2)*Q41/100,"--") -> -- | Z41: =IF(O41="RF",J41*S41*ROUND(N41/60,2),"--") -> -- | AA41: =IF(O41="RR",J41*S41*ROUND(N41/60,2)*Q41/100,"--") -> -- | AB41: SI | AC41: =IF(F41="","",SUM(T41:AA41)*IF(AB41="SI",1,2)) -> 27.7092
C42: 76 | D42: 295034 | E42: 5605 | F42: DRAGONES | G42: TRAFO 1 | H42: 15 | I42: 132/33/13,2 | J42: 26.85 | K42: 2015-11-24T09:15:00 | L42: 2015-11-24T17:20:00 | M42: =IF(F42="","",(L42-K42)*24) -> 8.083333333 | N42: =IF(F42="","",ROUND((L42-K42)*24*60,0)) -> 485 | O42: P | P42: -- | Q42: 0,000 | R42: NO | S42: =$I$19*IF(R42="SI",1,0.1)*IF(OR(O42="P",O42="RP"),0.1,1) -> 0.3 | T42: =IF(O42="P",J42*S42*ROUND(N42/60,2),"--") -> 65.0844 | U42: =IF(O42="RP",J42*S42*Q42/100*ROUND(N42/60,2),"--") -> -- | V42: =IF(AND(O42="F",P42="NO"),J42*S42,"--") -> -- | W42: =IF(O42="F",J42*S42*ROUND(N42/60,2),"--") -> -- | X42: =IF(AND(O42="R",P42="NO"),J42*S42*Q42/100,"--") -> -- | Y42: =IF(O42="R",J42*S42*ROUND(N42/60,2)*Q42/100,"--") -> -- | Z42: =IF(O42="RF",J42*S42*ROUND(N42/60,2),"--") -> -- | AA42: =IF(O42="RR",J42*S42*ROUND(N42/60,2)*Q42/100,"--") -> -- | AB42: SI | AC42: =IF(F42="","",SUM(T42:AA42)*IF(AB42="SI",1,2)) -> 65.0844
C43: 77 | D43: 295035 | E43: 5602 | F43: SENDA HACHADA | G43: TRAFO 1 | H43: 15 | I43: 132/33/13,2 | J43: 26.85 | K43: 2015-11-25T08:08:00 | L43: 2015-11-25T12:34:00 | M43: =IF(F43="","",(L43-K43)*24) -> 4.433333333 | N43: =IF(F43="","",ROUND((L43-K43)*24*60,0)) -> 266 | O43: P | P43: -- | Q43: 0,000 | R43: NO | S43: =$I$19*IF(R43="SI",1,0.1)*IF(OR(O43="P",O43="RP"),0.1,1) -> 0.3 | T43: =IF(O43="P",J43*S43*ROUND(N43/60,2),"--") -> 35.68365 | U43: =IF(O43="RP",J43*S43*Q43/100*ROUND(N43/60,2),"--") -> -- | V43: =IF(AND(O43="F",P43="NO"),J43*S43,"--") -> -- | W43: =IF(O43="F",J43*S43*ROUND(N43/60,2),"--") -> -- | X43: =IF(AND(O43="R",P43="NO"),J43*S43*Q43/100,"--") -> -- | Y43: =IF(O43="R",J43*S43*ROUND(N43/60,2)*Q43/100,"--") -> -- | Z43: =IF(O43="RF",J43*S43*ROUND(N43/60,2),"--") -> -- | AA43: =IF(O43="RR",J43*S43*ROUND(N43/60,2)*Q43/100,"--") -> -- | AB43: SI | AC43: =IF(F43="","",SUM(T43:AA43)*IF(AB43="SI",1,2)) -> 35.68365
C45: (²) | D45: P - PROGRAMADA ; F - FORZADA ; R - REDUCCIÓN FORZADA ; RP - REDUCCIÓN PROGRAMADA | T45: =SUM(T22:T44) -> 2013.951375 | U45: 103.55508 | V45: 4027.5 | W45: 12146.94 | X45: 1014.93 | Y45: 859.3074 | Z45: 0 | AA45: 0 | AC45: =ROUND(SUM(AC22:AC44),2) -> 52727.59

Sheet T-11 (3)
B2: =+'TOT-1115'!B2 -> ANEXO II al Memorandum D.T.E.E. N° 356 / 2017
A4: ENTE NACIONAL REGULADOR
A5: DE LA ELECTRICIDAD
F8: SISTEMA DE TRANSPORTE DE ENERGÍA ELÉCTRICA POR DISTRIBUCIÓN TRONCAL - TRANSNOA S.A.
F10: 2.- CONEXIÓN
F12: 2.1.- Transformación
F14: 2.1.1.- Equipamiento propio
B16: ='TOT-1115'!B14 -> Desde el 01 al 30 de noviembre de 2015
F18: Por Transformador por MVA $ = | I18: 1.79
F19: Coeficiente de penalización por salida forzada = | I19: =30*'TOT-1115'!B13 -> 30 | K19: =IF(I19=30," ",IF(I19=60," Coeficiente duplicado por tasa de falla >4 Sal. x año/100 km.","REVISAR COEFICIENTE")) -> 
C20: 3 | D20: 4 | E20: 5 | F20: 6 | G20: 7 | H20: 8 | I20: 9 | J20: 10 | K20: 11 | L20: 12 | M20: 13 | N20: 14 | O20: 15 | P20: 16 | Q20: 17 | R20: 18 | S20: 19 | T20: 20 | U20: 21 | V20: 22 | W20: 23 | X20: 24 | Y20: 25 | Z20: 26 | AA20: 27 | AB20: 28 | AC20: 29
C21: N° | D21: INDISP | E21: ID EQUIPO | F21: ESTACIÓN TRANSFORMADORA | G21: EQUIPO | H21: POT. [MVA] | I21: U [kV] | J21: $/h | K21: Salida | L21: Entrada | M21: Hs Indisp. | N21: Mtos. Indisp. | O21: Tipo Sal.(²) | P21: AUT. | Q21: C.R. % | R21: E.N.S. | S21: K (P;ENS) | T21: PENALIZ. PROGRAM. | U21: REDUCC. PROGRAM. | V21: PENALIZAC. FORZADA Por Salida hs. Restantes | X21: REDUCC. FORZADA Por Salida hs. Restantes | Z21: RESTANTE FORZADA | AA21: REDUCC. RESTANTE | AB21: Informó en Térm. | AC21: TOTAL PENALIZAC.
AC22: ='T-11 (2)'!AC45 -> 52727.59
C24: 78 | D24: 295036 | E24: 5569 | F24: SANTIAGO ESTE | G24: TRAFO 1 | H24: 30 | I24: 132/13,2 | J24: =H24*$I$18 -> 53.7 | K24: 2015-11-25T08:25:00 | L24: 2015-11-25T11:38:00 | M24: =IF(F24="","",(L24-K24)*24) -> 3.216666667 | N24: =IF(F24="","",ROUND((L24-K24)*24*60,0)) -> 193 | O24: P | P24: =IF(F24="","",IF(OR(O24="P",O24="RP"),"--","NO")) -> -- | Q24: 0,000 | R24: NO | S24: =$I$19*IF(R24="SI",1,0.1)*IF(OR(O24="P",O24="RP"),0.1,1) -> 0.3 | T24: =IF(O24="P",J24*S24*ROUND(N24/60,2),"--") -> 51.8742 | U24: =IF(O24="RP",J24*S24*Q24/100*ROUND(N24/60,2),"--") -> -- | V24: =IF(AND(O24="F",P24="NO"),J24*S24,"--") -> -- | W24: =IF(O24="F",J24*S24*ROUND(N24/60,2),"--") -> -- | X24: =IF(AND(O24="R",P24="NO"),J24*S24*Q24/100,"--") -> -- | Y24: =IF(O24="R",J24*S24*ROUND(N24/60,2)*Q24/100,"--") -> -- | Z24: =IF(O24="RF",J24*S24*ROUND(N24/60,2),"--") -> -- | AA24: =IF(O24="RR",J24*S24*ROUND(N24/60,2)*Q24/100,"--") -> -- | AB24: SI | AC24: =IF(F24="","",SUM(T24:AA24)*IF(AB24="SI",1,2)) -> 51.8742
C25: 79 | D25: 295037 | E25: 5410 | F25: TERMAS NORTE | G25: TRAFO 1 | H25: 15 | I25: 132/33/13,2 | J25: =H25*$I$18 -> 26.85 | K25: 2015-11-25T13:16:00 | L25: 2015-11-25T13:46:00 | M25: =IF(F25="","",(L25-K25)*24) -> 0.5000000001 | N25: =IF(F25="","",ROUND((L25-K25)*24*60,0)) -> 30 | O25: P | P25: =IF(F25="","",IF(OR(O25="P",O25="RP"),"--","NO")) -> -- | Q25: 0,000 | R25: NO | S25: =$I$19*IF(R25="SI",1,0.1)*IF(OR(O25="P",O25="RP"),0.1,1) -> 0.3 | T25: =IF(O25="P",J25*S25*ROUND(N25/60,2),"--") -> 4.0275 | U25: =IF(O25="RP",J25*S25*Q25/100*ROUND(N25/60,2),"--") -> -- | V25: =IF(AND(O25="F",P25="NO"),J25*S25,"--") -> -- | W25: =IF(O25="F",J25*S25*ROUND(N25/60,2),"--") -> -- | X25: =IF(AND(O25="R",P25="NO"),J25*S25*Q25/100,"--") -> -- | Y25: =IF(O25="R",J25*S25*ROUND(N25/60,2)*Q25/100,"--") -> -- | Z25: =IF(O25="RF",J25*S25*ROUND(N25/60,2),"--") -> -- | AA25: =IF(O25="RR",J25*S25*ROUND(N25/60,2)*Q25/100,"--") -> -- | AB25: NO | AC25: =IF(F25="","",SUM(T25:AA25)*IF(AB25="SI",1,2)) -> 8.055
C26: 80 | D26: 295041 | E26: 4897 | F26: BANDERA | G26: TRAFO 2 | H26: 15 | I26: 132/33/13,2 | J26: 26.85 | K26: 2015-11-26T20:09:00 | L26: 2015-11-26T20:49:00 | M26: 0.6666666666 | N26: 40 | O26: R | P26: NO | Q26: 60 | R26: SI | S26: 30 | T26: -- | U26: -- | V26: -- | W26: -- | X26: 483.3 | Y26: 323.811 | Z26: -- | AA26: -- | AB26: SI | AC26: 807.111
C27: 81 | D27: 295077 | E27: 2040 | F27: CATAMARCA | G27: TRAFO 1 | H27: 30 | I27: 132/33/13,2 | J27: 53.7 | K27: 2015-11-27T08:36:00 | L27: 2015-11-27T14:58:00 | M27: 6.366666667 | N27: 382 | O27: P | P27: -- | Q27: 0,000 | R27: NO | S27: 0.3 | T27: 102.6207 | U27: -- | V27: -- | W27: -- | X27: -- | Y27: -- | Z27: -- | AA27: -- | AB27: SI | AC27: 102.6207
C28: 82 | D28: 295078 | E28: 5446 | F28: CHAMICAL | G28: TRAFO 1 | H28: 30 | I28: 132/33/13,2 | J28: 53.7 | K28: 2015-11-29T07:02:00 | L28: 2015-11-29T16:25:00 | M28: 9.383333333 | N28: 563 | O28: R | P28: NO | Q28: 40 | R28: NO | S28: 3 | T28: -- | U28: -- | V28: -- | W28: -- | X28: 64.44 | Y28: 604.4472 | Z28: -- | AA28: -- | AB28: SI | AC28: 668.8872
C29: 83 | D29: 295079 | E29: 5449 | F29: VILLA UNIÓN | G29: TRAFO 1 | H29: 15 | I29: 132/33/13,2 | J29: 26.85 | K29: 2015-11-29T07:11:00 | L29: 2015-11-29T11:50:00 | M29: 4.65 | N29: 279 | O29: P | P29: -- | Q29: 0,000 | R29: NO | S29: 0.3 | T29: 37.45575 | U29: -- | V29: -- | W29: -- | X29: -- | Y29: -- | Z29: -- | AA29: -- | AB29: SI | AC29: 37.45575
C30: 84 | D30: 295080 | E30: 5453 | F30: CIRCUNVALACIÓN | G30: TRAFO 1 | H30: 30 | I30: 132/33/13,2 | J30: 53.7 | K30: 2015-11-29T07:16:00 | L30: 2015-11-29T15:04:00 | M30: 7.8 | N30: 468 | O30: P | P30: -- | Q30: 0,000 | R30: NO | S30: 0.3 | T30: 125.658 | U30: -- | V30: -- | W30: -- | X30: -- | Y30: -- | Z30: -- | AA30: -- | AB30: SI | AC30: 125.658
C31: 85 | D31: 295081 | E31: 5454 | F31: CIRCUNVALACIÓN | G31: TRAFO 2 | H31: 30 | I31: 132/33/13,2 | J31: 53.7 | K31: 2015-11-29T07:16:00 | L31: 2015-11-29T15:04:00 | M31: 7.8 | N31: 468 | O31: P | P31: -- | Q31: 0,000 | R31: NO | S31: 0.3 | T31: 125.658 | U31: -- | V31: -- | W31: -- | X31: -- | Y31: -- | Z31: -- | AA31: -- | AB31: SI | AC31: 125.658
C32: 86 | D32: 295083 | E32: 5448 | F32: NONOGASTA | G32: TRAFO 2 | H32: 40 | I32: 132/66/13,2 | J32: 71.6 | K32: 2015-11-29T07:19:00 | L32: 2015-11-29T11:44:00 | M32: 4.416666667 | N32: 265 | O32: P | P32: -- | Q32: 0,000 | R32: NO | S32: 0.3 | T32: 94.9416 | U32: -- | V32: -- | W32: -- | X32: -- | Y32: -- | Z32: -- | AA32: -- | AB32: SI | AC32: 94.9416
C33: 87 | D33: 295084 | E33: 4993 | F33: PALPALA | G33: TRAFO 2 | H33: 15 | I33: 132/33/13,2 | J33: 26.85 | K33: 2015-11-29T13:31:00 | L33: 2015-11-29T19:55:00 | M33: 6.4 | N33: 384 | O33: F | P33: NO | Q33: 0,000 | R33: NO | S33: 3 | T33: -- | U33: -- | V33: 80.55 | W33: 515.52 | X33: -- | Y33: -- | Z33: -- | AA33: -- | AB33: SI | AC33: 596.07
J34: 0 | Q34: =IF(F34="","","--") ->  | S34: 3 | T34: -- | U34: -- | V34: -- | W34: -- | X34: -- | Y34: -- | Z34: -- | AA34: -- | AB34: =IF(F34="","","SI") -> 
J35: 0 | S35: 3 | T35: -- | U35: -- | V35: -- | W35: -- | X35: -- | Y35: -- | Z35: -- | AA35: --
J36: 0 | S36: 3 | T36: -- | U36: -- | V36: -- | W36: -- | X36: -- | Y36: -- | Z36: -- | AA36: --
J37: 0 | S37: 3 | T37: -- | U37: -- | V37: -- | W37: -- | X37: -- | Y37: -- | Z37: -- | AA37: --
J38: 0 | S38: 3 | T38: -- | U38: -- | V38: -- | W38: -- | X38: -- | Y38: -- | Z38: -- | AA38: --
J39: 0 | S39: 3 | T39: -- | U39: -- | V39: -- | W39: -- | X39: -- | Y39: -- | Z39: -- | AA39: --
J40: 0 | S40: 3 | T40: -- | U40: -- | V40: -- | W40: -- | X40: -- | Y40: -- | Z40: -- | AA40: --
J41: 0 | M41: =IF(F41="","",(L41-K41)*24) ->  | N41: =IF(F41="","",ROUND((L41-K41)*24*60,0)) ->  | S41: =$I$19*IF(R41="SI",1,0.1)*IF(OR(O41="P",O41="RP"),0.1,1) -> 3 | T41: =IF(O41="P",J41*S41*ROUND(N41/60,2),"--") -> -- | U41: =IF(O41="RP",J41*S41*Q41/100*ROUND(N41/60,2),"--") -> -- | V41: =IF(AND(O41="F",P41="NO"),J41*S41,"--") -> -- | W41: =IF(O41="F",J41*S41*ROUND(N41/60,2),"--") -> -- | X41: =IF(AND(O41="R",P41="NO"),J41*S41*Q41/100,"--") -> -- | Y41: =IF(O41="R",J41*S41*ROUND(N41/60,2)*Q41/100,"--") -> -- | Z41: =IF(O41="RF",J41*S41*ROUND(N41/60,2),"--") -> -- | AA41: =IF(O41="RR",J41*S41*ROUND(N41/60,2)*Q41/100,"--") -> -- | AC41: =IF(F41="","",SUM(T41:AA41)*IF(AB41="SI",1,2)) -> 
J42: 0 | M42: =IF(F42="","",(L42-K42)*24) ->  | N42: =IF(F42="","",ROUND((L42-K42)*24*60,0)) ->  | S42: =$I$19*IF(R42="SI",1,0.1)*IF(OR(O42="P",O42="RP"),0.1,1) -> 3 | T42: =IF(O42="P",J42*S42*ROUND(N42/60,2),"--") -> -- | U42: =IF(O42="RP",J42*S42*Q42/100*ROUND(N42/60,2),"--") -> -- | V42: =IF(AND(O42="F",P42="NO"),J42*S42,"--") -> -- | W42: =IF(O42="F",J42*S42*ROUND(N42/60,2),"--") -> -- | X42: =IF(AND(O42="R",P42="NO"),J42*S42*Q42/100,"--") -> -- | Y42: =IF(O42="R",J42*S42*ROUND(N42/60,2)*Q42/100,"--") -> -- | Z42: =IF(O42="RF",J42*S42*ROUND(N42/60,2),"--") -> -- | AA42: =IF(O42="RR",J42*S42*ROUND(N42/60,2)*Q42/100,"--") -> -- | AC42: =IF(F42="","",SUM(T42:AA42)*IF(AB42="SI",1,2)) -> 
J43: 0 | M43: =IF(F43="","",(L43-K43)*24) ->  | N43: =IF(F43="","",ROUND((L43-K43)*24*60,0)) ->  | S43: =$I$19*IF(R43="SI",1,0.1)*IF(OR(O43="P",O43="RP"),0.1,1) -> 3 | T43: =IF(O43="P",J43*S43*ROUND(N43/60,2),"--") -> -- | U43: =IF(O43="RP",J43*S43*Q43/100*ROUND(N43/60,2),"--") -> -- | V43: =IF(AND(O43="F",P43="NO"),J43*S43,"--") -> -- | W43: =IF(O43="F",J43*S43*ROUND(N43/60,2),"--") -> -- | X43: =IF(AND(O43="R",P43="NO"),J43*S43*Q43/100,"--") -> -- | Y43: =IF(O43="R",J43*S43*ROUND(N43/60,2)*Q43/100,"--") -> -- | Z43: =IF(O43="RF",J43*S43*ROUND(N43/60,2),"--") -> -- | AA43: =IF(O43="RR",J43*S43*ROUND(N43/60,2)*Q43/100,"--") -> -- | AC43: =IF(F43="","",SUM(T43:AA43)*IF(AB43="SI",1,2)) -> 
C45: (²) | D45: P - PROGRAMADA ; F - FORZADA ; R - REDUCCIÓN FORZADA | T45: =SUM(T22:T44) -> 542.23575 | U45: 0 | V45: 80.55 | W45: 515.52 | X45: 547.74 | Y45: 928.2582 | Z45: 0 | AA45: 0 | AC45: =ROUND(SUM(AC22:AC44),2) -> 55345.92

Sheet T-EDESA-11 (1)
B2: =+'TOT-1115'!B2 -> ANEXO II al Memorandum D.T.E.E. N° 356 / 2017
A4: ENTE NACIONAL REGULADOR
A5: DE LA ELECTRICIDAD
F8: SISTEMA DE TRANSPORTE DE ENERGÍA ELÉCTRICA POR DISTRIBUCIÓN TRONCAL - TRANSNOA S.A.
F10: 2.- CONEXIÓN
F12: 2.1.- Transformación
F14: 2.1.2.- Transportista Independiente EDESA S.A.
B16: ='TOT-1115'!B14 -> Desde el 01 al 30 de noviembre de 2015
F18: Por Transformador por MVA $ = | I18: 0.181
F19: Coeficiente de penalización por salida forzada = | I19: =30*'TOT-1115'!B13 -> 30 | K19: =IF(I19=30," ",IF(I19=60," Coeficiente duplicado por tasa de falla >4 Sal. x año/100 km.","REVISAR COEFICIENTE")) -> 
C20: 3 | D20: 4 | E20: 5 | F20: 6 | G20: 7 | H20: 8 | I20: 9 | J20: 10 | K20: 11 | L20: 12 | M20: 13 | N20: 14 | O20: 15 | P20: 16 | Q20: 17 | R20: 18 | S20: 19 | T20: 20 | U20: 21 | V20: 22 | W20: 23 | X20: 24 | Y20: 25 | Z20: 26 | AA20: 27 | AB20: 28 | AC20: 29
C21: N° | D21: INDISP | E21: ID EQUIPO | F21: ESTACIÓN TRANSFORMADORA | G21: EQUIPO | H21: POT. [MVA] | I21: U [kV] | J21: $/h | K21: Salida | L21: Entrada | M21: Hs Indisp. | N21: Mtos. Indisp. | O21: Tipo Sal.(²) | P21: AUT. | Q21: C.R. % | R21: E.N.S. | S21: K (P;ENS) | T21: PENALIZ. PROGRAM. | U21: REDUCC. PROGRAM. | V21: PENALIZAC. FORZADA Por Salida hs. Restantes | X21: REDUCC. FORZADA Por Salida hs. Restantes | Z21: RESTANTE FORZADA | AA21: REDUCC. RESTANTE | AB21: Informó en Térm. | AC21: TOTAL PENALIZAC.
C24: 88 | D24: 294777 | E24: 2716 | F24: EL TUNAL | G24: TRAFO 1 | H24: 7.5 | I24: 132/13,2 | J24: =H24*$I$18 -> 1.3575 | K24: 2015-11-19T08:57:00 | L24: 2015-11-19T18:16:00 | M24: =IF(F24="","",(L24-K24)*24) -> 9.316666667 | N24: =IF(F24="","",ROUND((L24-K24)*24*60,0)) -> 559 | O24: P | P24: =IF(F24="","",IF(OR(O24="P",O24="RP"),"--","NO")) -> -- | Q24: 0,000 | R24: NO | S24: =$I$19*IF(R24="SI",1,0.1)*IF(OR(O24="P",O24="RP"),0.1,1) -> 0.3 | T24: =IF(O24="P",J24*S24*ROUND(N24/60,2),"--") -> 3.79557 | U24: =IF(O24="RP",J24*S24*Q24/100*ROUND(N24/60,2),"--") -> -- | V24: =IF(AND(O24="F",P24="NO"),J24*S24,"--") -> -- | W24: =IF(O24="F",J24*S24*ROUND(N24/60,2),"--") -> -- | X24: =IF(AND(O24="R",P24="NO"),J24*S24*Q24/100,"--") -> -- | Y24: =IF(O24="R",J24*S24*ROUND(N24/60,2)*Q24/100,"--") -> -- | Z24: =IF(O24="RF",J24*S24*ROUND(N24/60,2),"--") -> -- | AA24: =IF(O24="RR",J24*S24*ROUND(N24/60,2)*Q24/100,"--") -> -- | AB24: SI | AC24: =IF(F24="","",SUM(T24:AA24)*IF(AB24="SI",1,2)) -> 3.79557
C25: 89 | D25: 294786 | E25: 2717 | F25: EL TUNAL | G25: TRAFO 2 | H25: 7.5 | I25: 132/13,2 | J25: =H25*$I$18 -> 1.3575 | K25: 2015-11-20T09:28:00 | L25: 2015-11-20T16:34:00 | M25: 7.1 | N25: 426 | O25: P | P25: =IF(F25="","",IF(OR(O25="P",O25="RP"),"--","NO")) -> -- | Q25: 0,000 | R25: NO | S25: 0.3 | T25: 2.891475 | U25: -- | V25: -- | W25: -- | X25: -- | Y25: -- | Z25: -- | AA25: -- | AB25: SI | AC25: 2.891475
J26: 0 | Q26: =IF(F26="","","--") ->  | S26: 3 | T26: -- | U26: -- | V26: -- | W26: -- | X26: -- | Y26: -- | Z26: -- | AA26: -- | AB26: =IF(F26="","","SI") -> 
J27: 0 | S27: 3 | T27: -- | U27: -- | V27: -- | W27: -- | X27: -- | Y27: -- | Z27: -- | AA27: --
J28: 0 | S28: 3 | T28: -- | U28: -- | V28: -- | W28: -- | X28: -- | Y28: -- | Z28: -- | AA28: --
J29: 0 | S29: 3 | T29: -- | U29: -- | V29: -- | W29: -- | X29: -- | Y29: -- | Z29: -- | AA29: --
J30: 0 | S30: 3 | T30: -- | U30: -- | V30: -- | W30: -- | X30: -- | Y30: -- | Z30: -- | AA30: --
J31: 0 | S31: 3 | T31: -- | U31: -- | V31: -- | W31: -- | X31: -- | Y31: -- | Z31: -- | AA31: --
J32: 0 | S32: 3 | T32: -- | U32: -- | V32: -- | W32: -- | X32: -- | Y32: -- | Z32: -- | AA32: --
J33: 0 | S33: 3 | T33: -- | U33: -- | V33: -- | W33: -- | X33: -- | Y33: -- | Z33: -- | AA33: --
J34: 0 | S34: 3 | T34: -- | U34: -- | V34: -- | W34: -- | X34: -- | Y34: -- | Z34: -- | AA34: --
J35: 0 | S35: 3 | T35: -- | U35: -- | V35: -- | W35: -- | X35: -- | Y35: -- | Z35: -- | AA35: --
J36: 0 | S36: 3 | T36: -- | U36: -- | V36: -- | W36: -- | X36: -- | Y36: -- | Z36: -- | AA36: --
J37: 0 | S37: 3 | T37: -- | U37: -- | V37: -- | W37: -- | X37: -- | Y37: -- | Z37: -- | AA37: --
J38: 0 | S38: 3 | T38: -- | U38: -- | V38: -- | W38: -- | X38: -- | Y38: -- | Z38: -- | AA38: --
J39: 0 | S39: 3 | T39: -- | U39: -- | V39: -- | W39: -- | X39: -- | Y39: -- | Z39: -- | AA39: --
J40: 0 | S40: 3 | T40: -- | U40: -- | V40: -- | W40: -- | X40: -- | Y40: -- | Z40: -- | AA40: --
J41: 0 | S41: 3 | T41: -- | U41: -- | V41: -- | W41: -- | X41: -- | Y41: -- | Z41: -- | AA41: --
J42: 0 | S42: 3 | T42: -- | U42: -- | V42: -- | W42: -- | X42: -- | Y42: -- | Z42: -- | AA42: --
J43: 0 | S43: 3 | T43: -- | U43: -- | V43: -- | W43: -- | X43: -- | Y43: -- | Z43: -- | AA43: --
C45: (²) | D45: P - PROGRAMADA | T45: =SUM(T22:T44) -> 6.687045 | U45: 0 | V45: 0 | W45: 0 | X45: 0 | Y45: 0 | Z45: 0 | AA45: 0 | AC45: =ROUND(SUM(AC22:AC44),2) -> 6.69

Sheet SUP-EDESA
B2: ='TOT-1115'!B2 -> ANEXO II al Memorandum D.T.E.E. N° 356 / 2017
A3: ENTE NACIONAL REGULADOR
A4: DE LA ELECTRICIDAD
D7: SISTEMA DE TRANSPORTE DE ENERGÍA ELÉCTRICA POR DISTRIBUCIÓN TRONCAL - TRANSNOA S.A.
D9: 3.1- SUPERVISIÓN - Transportista Independiente EDESA S.A.
B11: ='TOT-1115'!B14 -> Desde el 01 al 30 de noviembre de 2015
C15: a) Datos
I16: $/100 km-h : LÍNEAS 132 kV | J16: 514.204 | L16: Salida en 132 kV o 66 kV = | M16: -
D17: Tiempo de servicio = | E17: =MID(B11,16,2)*24 -> 720 | F17: hs | I17: Cargo por Transformador por MVA = | J17: 1.79 | L17: Salida en 33 kV | M17: 17.935
D18: Porcentaje por Supervisión = | E18: 0.025 | L18: Salida en 13,2 kV = | M18: 17.935
C20: b) SM: es la suma de las sanciones a que en cada mes se hiciere pasible el Transportista Independiente, valorizadas con idénticos criterios que los que se aplican a la Concesionaria.
D22: SANCIÓN al T.I. | F22: LÍNEAS | I22: 0
F23: TRANSFORMACIÓN | I23: 59.74 | L23: SEGÚN 2.1.2.
F24: SALIDAS | I24: 0
H26: SM = | I26: =SUM(I22:I25) -> 59.74
C28: c) RM : es la remuneración que mensualmente recibiría el Transportista Independiente, si su servicio fuera valorizado conforme al régimen remuneratorio que se aplica a la Concesionaria.
D30: Cargo por Capacidad de Transporte | E30: U [kV] | F30: Long [km] | H30: Cargo por C. T. | I30: ="Cargo por E.E.T." -> Cargo por E.E.T. | L30: TOTAL
D31: METAN - EL TUNAL | E31: 132 | F31: 75.6 | H31: =F31*$J$16*$E$17/100 -> 279891.5213 | I31: 2933 | J31: ="(DTE "&DATO!$G$14&DATO!$H$14&")" -> (DTE 1115) | L31: =SUM(H31:K31) -> 282824.5213
D32: EL TUNAL - J.V.GONZALEZ | E32: 132 | F32: 41.4 | H32: =F32*$J$16*$E$17/100 -> 153273.9283 | I32: 7311 | J32: ="(DTE "&DATO!$G$14&DATO!$H$14&")" -> (DTE 1115) | L32: =SUM(H32:K32) -> 160584.9283
L33: =SUM(L31:L32) -> 443409.4496
D35: Cargo por Capacidad de Transformación | E35: Equipo | F35: Pot [MVA] | H35: Cargo por C. T. | J35: E.T | L35: Salida | M35: U [kV] | N35: Cargo
D36: J.V. GONZALEZ | E36: T1 | F36: 7.5 | H36: =+F36*$J$17*$E$17 -> 9666 | J36: J.V. GONZALEZ | L36: Alimentador Tolloche | M36: 33 | N36: =$M$17*$E$17 -> 12913.2
D37: J.V. GONZALEZ | E37: T2 | F37: 7.5 | H37: =+F37*$J$17*$E$17 -> 9666 | J37: J.V. GONZALEZ | L37: Alimentador Lajitas | M37: 33 | N37: =$M$17*$E$17 -> 12913.2
D38: EL TUNAL | E38: T1 | F38: 7.5 | H38: =+F38*$J$17*$E$17 -> 9666 | J38: J.V. GONZALEZ | L38: Alimentador J. V. Gonzalez | M38: 13.2 | N38: =$M$17*$E$17 -> 12913.2
D39: EL TUNAL | E39: T2 | F39: 7.5 | H39: =+F39*$J$17*$E$17 -> 9666 | J39: J.V. GONZALEZ | L39: Alimentador El Tunal | M39: 13.2 | N39: =$M$17*$E$17 -> 12913.2
H40: =SUM(H36:H39) -> 38664 | J40: J.V. GONZALEZ | L40: Alimentador Quebrachal | M40: 13.2 | N40: =$M$17*$E$17 -> 12913.2
N41: =SUM(N36:N40) -> 64566
H43: RM = | I43: =+H40+N41+L33 -> 546639.4496 | K43: RM * = | L43: 64413.9776
C45: d) CS: Es el cargo por Supervisión de la Operación que la Transportista percibe por supervisar la operación y mantenimiento del Transportista Independiente.
D47: Cargo por Supervisión afectado a la sanción | H47: CS = | I47: =E18*L43 -> 1610.34944
C49: e) SANCIÓN
D50: Sanción Calculada | E50: =10*I26*I47/I43 -> 1.759885343
D52: TOTAL A PENALIZAR A TRANSNOA S.A. POR SUPERVISIÓN A EDESA S.A.
H54: SANCIÓN = | I54: =IF($E$50>3*I47,3*I47,$E$50) -> 1.759885343

Sheet Tasa de Falla
B2: ='TOT-1115'!B2 -> ANEXO II al Memorandum D.T.E.E. N° 356 / 2017
A3: ENTE NACIONAL REGULADOR
A4: DE LA ELECTRICIDAD
B6: SISTEMA DE TRANSPORTE DE ENERGÍA ELÉCTRICA POR DISTRIBUCIÓN TRONCAL
B8: TRANSNOA S.A.
B10: INDISPONIBILIDADES FORZADAS DE LÍNEAS - TASA DE FALLA
B13: y | D13: ='TOT-1115'!B14 -> Desde el 01 al 30 de noviembre de 2015
C15: N° | D15: LÍNEAS | E15: U [kV] | F15: Long. [km] | G15: 2014-11-01 | H15: 2014-12-01 | I15: 2015-01-01 | J15: 2015-02-01 | K15: 2015-03-01 | L15: 2015-04-01 | M15: 2015-05-01 | N15: 2015-06-01 | O15: 2015-07-01 | P15: 2015-08-01 | Q15: 2015-09-01 | R15: 2015-10-01 | S15: 2015-11-01
C17: ='[1]Tasa de Falla'!C17 -> 1 | D17: ='[1]Tasa de Falla'!D17 -> AGUA BLANCA - VILLA QUINTEROS | E17: ='[1]Tasa de Falla'!E17 -> 132 | F17: ='[1]Tasa de Falla'!F17 -> 23.8 | G17: =IF('[1]Tasa de Falla'!IR17=0,"",'[1]Tasa de Falla'!IR17) ->  | H17: =IF('[1]Tasa de Falla'!IS17=0,"",'[1]Tasa de Falla'!IS17) ->  | I17: =IF('[1]Tasa de Falla'!IT17=0,"",'[1]Tasa de Falla'!IT17) ->  | J17: =IF('[1]Tasa de Falla'!IU17=0,"",'[1]Tasa de Falla'!IU17) ->  | K17: =IF('[1]Tasa de Falla'!IV17=0,"",'[1]Tasa de Falla'!IV17) ->  | L17: =IF('[1]Tasa de Falla'!IW17=0,"",'[1]Tasa de Falla'!IW17) ->  | M17: =IF('[1]Tasa de Falla'!IX17=0,"",'[1]Tasa de Falla'!IX17) ->  | N17: =IF('[1]Tasa de Falla'!IY17=0,"",'[1]Tasa de Falla'!IY17) ->  | O17: =IF('[1]Tasa de Falla'!IZ17=0,"",'[1]Tasa de Falla'!IZ17) ->  | P17: =IF('[1]Tasa de Falla'!JA17=0,"",'[1]Tasa de Falla'!JA17) ->  | Q17: =IF('[1]Tasa de Falla'!JB17=0,"",'[1]Tasa de Falla'!JB17) ->  | R17: =IF('[1]Tasa de Falla'!JC17=0,"",'[1]Tasa de Falla'!JC17) -> 
C18: ='[1]Tasa de Falla'!C18 -> 2 | D18: ='[1]Tasa de Falla'!D18 -> AGUILARES - ESCABA | E18: ='[1]Tasa de Falla'!E18 -> 132 | F18: ='[1]Tasa de Falla'!F18 -> 27 | G18: =IF('[1]Tasa de Falla'!IR18=0,"",'[1]Tasa de Falla'!IR18) ->  | H18: =IF('[1]Tasa de Falla'!IS18=0,"",'[1]Tasa de Falla'!IS18) ->  | I18: =IF('[1]Tasa de Falla'!IT18=0,"",'[1]Tasa de Falla'!IT18) ->  | J18: =IF('[1]Tasa de Falla'!IU18=0,"",'[1]Tasa de Falla'!IU18) ->  | K18: =IF('[1]Tasa de Falla'!IV18=0,"",'[1]Tasa de Falla'!IV18) ->  | L18: =IF('[1]Tasa de Falla'!IW18=0,"",'[1]Tasa de Falla'!IW18) ->  | M18: =IF('[1]Tasa de Falla'!IX18=0,"",'[1]Tasa de Falla'!IX18) ->  | N18: =IF('[1]Tasa de Falla'!IY18=0,"",'[1]Tasa de Falla'!IY18) ->  | O18: =IF('[1]Tasa de Falla'!IZ18=0,"",'[1]Tasa de Falla'!IZ18) ->  | P18: =IF('[1]Tasa de Falla'!JA18=0,"",'[1]Tasa de Falla'!JA18) -> 2 | Q18: =IF('[1]Tasa de Falla'!JB18=0,"",'[1]Tasa de Falla'!JB18) ->  | R18: =IF('[1]Tasa de Falla'!JC18=0,"",'[1]Tasa de Falla'!JC18) -> 
C19: ='[1]Tasa de Falla'!C19 -> 3 | D19: ='[1]Tasa de Falla'!D19 -> CABRA CORRAL - SALTA SUR | E19: ='[1]Tasa de Falla'!E19 -> 132 | F19: ='[1]Tasa de Falla'!F19 -> 62 | G19: =IF('[1]Tasa de Falla'!IR19=0,"",'[1]Tasa de Falla'!IR19) -> XXXX | H19: =IF('[1]Tasa de Falla'!IS19=0,"",'[1]Tasa de Falla'!IS19) -> XXXX | I19: =IF('[1]Tasa de Falla'!IT19=0,"",'[1]Tasa de Falla'!IT19) -> XXXX | J19: =IF('[1]Tasa de Falla'!IU19=0,"",'[1]Tasa de Falla'!IU19) -> XXXX | K19: =IF('[1]Tasa de Falla'!IV19=0,"",'[1]Tasa de Falla'!IV19) -> XXXX | L19: =IF('[1]Tasa de Falla'!IW19=0,"",'[1]Tasa de Falla'!IW19) -> XXXX | M19: =IF('[1]Tasa de Falla'!IX19=0,"",'[1]Tasa de Falla'!IX19) -> XXXX | N19: =IF('[1]Tasa de Falla'!IY19=0,"",'[1]Tasa de Falla'!IY19) -> XXXX | O19: =IF('[1]Tasa de Falla'!IZ19=0,"",'[1]Tasa de Falla'!IZ19) -> XXXX | P19: =IF('[1]Tasa de Falla'!JA19=0,"",'[1]Tasa de Falla'!JA19) -> XXXX | Q19: =IF('[1]Tasa de Falla'!JB19=0,"",'[1]Tasa de Falla'!JB19) -> XXXX | R19: =IF('[1]Tasa de Falla'!JC19=0,"",'[1]Tasa de Falla'!JC19) -> XXXX
C20: ='[1]Tasa de Falla'!C20 -> 4 | D20: ='[1]Tasa de Falla'!D20 -> CEVIL POZO - TUCUMAN NORTE | E20: ='[1]Tasa de Falla'!E20 -> 132 | F20: ='[1]Tasa de Falla'!F20 -> 14.5 | G20: =IF('[1]Tasa de Falla'!IR20=0,"",'[1]Tasa de Falla'!IR20) ->  | H20: =IF('[1]Tasa de Falla'!IS20=0,"",'[1]Tasa de Falla'!IS20) ->  | I20: =IF('[1]Tasa de Falla'!IT20=0,"",'[1]Tasa de Falla'!IT20) ->  | J20: =IF('[1]Tasa de Falla'!IU20=0,"",'[1]Tasa de Falla'!IU20) ->  | K20: =IF('[1]Tasa de Falla'!IV20=0,"",'[1]Tasa de Falla'!IV20) ->  | L20: =IF('[1]Tasa de Falla'!IW20=0,"",'[1]Tasa de Falla'!IW20) ->  | M20: =IF('[1]Tasa de Falla'!IX20=0,"",'[1]Tasa de Falla'!IX20) ->  | N20: =IF('[1]Tasa de Falla'!IY20=0,"",'[1]Tasa de Falla'!IY20) ->  | O20: =IF('[1]Tasa de Falla'!IZ20=0,"",'[1]Tasa de Falla'!IZ20) ->  | P20: =IF('[1]Tasa de Falla'!JA20=0,"",'[1]Tasa de Falla'!JA20) ->  | Q20: =IF('[1]Tasa de Falla'!JB20=0,"",'[1]Tasa de Falla'!JB20) ->  | R20: =IF('[1]Tasa de Falla'!JC20=0,"",'[1]Tasa de Falla'!JC20) -> 
C21: ='[1]Tasa de Falla'!C21 -> 5 | D21: ='[1]Tasa de Falla'!D21 -> CAMPO SANTO - MINETTI | E21: ='[1]Tasa de Falla'!E21 -> 132 | F21: ='[1]Tasa de Falla'!F21 -> 29.9 | G21: =IF('[1]Tasa de Falla'!IR21=0,"",'[1]Tasa de Falla'!IR21) -> XXXX | H21: =IF('[1]Tasa de Falla'!IS21=0,"",'[1]Tasa de Falla'!IS21) -> XXXX | I21: =IF('[1]Tasa de Falla'!IT21=0,"",'[1]Tasa de Falla'!IT21) -> XXXX | J21: =IF('[1]Tasa de Falla'!IU21=0,"",'[1]Tasa de Falla'!IU21) -> XXXX | K21: =IF('[1]Tasa de Falla'!IV21=0,"",'[1]Tasa de Falla'!IV21) -> XXXX | L21: =IF('[1]Tasa de Falla'!IW21=0,"",'[1]Tasa de Falla'!IW21) -> XXXX | M21: =IF('[1]Tasa de Falla'!IX21=0,"",'[1]Tasa de Falla'!IX21) -> XXXX | N21: =IF('[1]Tasa de Falla'!IY21=0,"",'[1]Tasa de Falla'!IY21) -> XXXX | O21: =IF('[1]Tasa de Falla'!IZ21=0,"",'[1]Tasa de Falla'!IZ21) -> XXXX | P21: =IF('[1]Tasa de Falla'!JA21=0,"",'[1]Tasa de Falla'!JA21) -> XXXX | Q21: =IF('[1]Tasa de Falla'!JB21=0,"",'[1]Tasa de Falla'!JB21) -> XXXX | R21: =IF('[1]Tasa de Falla'!JC21=0,"",'[1]Tasa de Falla'!JC21) -> XXXX
C22: ='[1]Tasa de Falla'!C22 -> 6 | D22: ='[1]Tasa de Falla'!D22 -> ESCABA - HUACRA | E22: ='[1]Tasa de Falla'!E22 -> 132 | F22: ='[1]Tasa de Falla'!F22 -> 49.9 | G22: =IF('[1]Tasa de Falla'!IR22=0,"",'[1]Tasa de Falla'!IR22) -> XXXX | H22: =IF('[1]Tasa de Falla'!IS22=0,"",'[1]Tasa de Falla'!IS22) -> XXXX | I22: =IF('[1]Tasa de Falla'!IT22=0,"",'[1]Tasa de Falla'!IT22) -> XXXX | J22: =IF('[1]Tasa de Falla'!IU22=0,"",'[1]Tasa de Falla'!IU22) -> XXXX | K22: =IF('[1]Tasa de Falla'!IV22=0,"",'[1]Tasa de Falla'!IV22) -> XXXX | L22: =IF('[1]Tasa de Falla'!IW22=0,"",'[1]Tasa de Falla'!IW22) -> XXXX | M22: =IF('[1]Tasa de Falla'!IX22=0,"",'[1]Tasa de Falla'!IX22) -> XXXX | N22: =IF('[1]Tasa de Falla'!IY22=0,"",'[1]Tasa de Falla'!IY22) -> XXXX | O22: =IF('[1]Tasa de Falla'!IZ22=0,"",'[1]Tasa de Falla'!IZ22) -> XXXX | P22: =IF('[1]Tasa de Falla'!JA22=0,"",'[1]Tasa de Falla'!JA22) -> XXXX | Q22: =IF('[1]Tasa de Falla'!JB22=0,"",'[1]Tasa de Falla'!JB22) -> XXXX | R22: =IF('[1]Tasa de Falla'!JC22=0,"",'[1]Tasa de Falla'!JC22) -> XXXX
C23: ='[1]Tasa de Falla'!C23 -> 7 | D23: ='[1]Tasa de Falla'!D23 -> ESTATICA SUR - EL BRACHO | E23: ='[1]Tasa de Falla'!E23 -> 132 | F23: ='[1]Tasa de Falla'!F23 -> 19.6 | G23: =IF('[1]Tasa de Falla'!IR23=0,"",'[1]Tasa de Falla'!IR23) ->  | H23: =IF('[1]Tasa de Falla'!IS23=0,"",'[1]Tasa de Falla'!IS23) ->  | I23: =IF('[1]Tasa de Falla'!IT23=0,"",'[1]Tasa de Falla'!IT23) ->  | J23: =IF('[1]Tasa de Falla'!IU23=0,"",'[1]Tasa de Falla'!IU23) ->  | K23: =IF('[1]Tasa de Falla'!IV23=0,"",'[1]Tasa de Falla'!IV23) -> XXXX | L23: =IF('[1]Tasa de Falla'!IW23=0,"",'[1]Tasa de Falla'!IW23) -> XXXX | M23: =IF('[1]Tasa de Falla'!IX23=0,"",'[1]Tasa de Falla'!IX23) -> XXXX | N23: =IF('[1]Tasa de Falla'!IY23=0,"",'[1]Tasa de Falla'!IY23) -> XXXX | O23: =IF('[1]Tasa de Falla'!IZ23=0,"",'[1]Tasa de Falla'!IZ23) -> XXXX | P23: =IF('[1]Tasa de Falla'!JA23=0,"",'[1]Tasa de Falla'!JA23) -> XXXX | Q23: =IF('[1]Tasa de Falla'!JB23=0,"",'[1]Tasa de Falla'!JB23) -> XXXX | R23: =IF('[1]Tasa de Falla'!JC23=0,"",'[1]Tasa de Falla'!JC23) -> XXXX
C24: ='[1]Tasa de Falla'!C24 -> 8 | D24: ='[1]Tasa de Falla'!D24 -> ESTATICA SUR - INDEPENDENCIA 1 (O.F.) | E24: ='[1]Tasa de Falla'!E24 -> 132 | F24: ='[1]Tasa de Falla'!F24 -> 2.6 | G24: =IF('[1]Tasa de Falla'!IR24=0,"",'[1]Tasa de Falla'!IR24) ->  | H24: =IF('[1]Tasa de Falla'!IS24=0,"",'[1]Tasa de Falla'!IS24) ->  | I24: =IF('[1]Tasa de Falla'!IT24=0,"",'[1]Tasa de Falla'!IT24) ->  | J24: =IF('[1]Tasa de Falla'!IU24=0,"",'[1]Tasa de Falla'!IU24) ->  | K24: =IF('[1]Tasa de Falla'!IV24=0,"",'[1]Tasa de Falla'!IV24) ->  | L24: =IF('[1]Tasa de Falla'!IW24=0,"",'[1]Tasa de Falla'!IW24) ->  | M24: =IF('[1]Tasa de Falla'!IX24=0,"",'[1]Tasa de Falla'!IX24) ->  | N24: =IF('[1]Tasa de Falla'!IY24=0,"",'[1]Tasa de Falla'!IY24) ->  | O24: =IF('[1]Tasa de Falla'!IZ24=0,"",'[1]Tasa de Falla'!IZ24) -> 1 | P24: =IF('[1]Tasa de Falla'!JA24=0,"",'[1]Tasa de Falla'!JA24) ->  | Q24: =IF('[1]Tasa de Falla'!JB24=0,"",'[1]Tasa de Falla'!JB24) ->  | R24: =IF('[1]Tasa de Falla'!JC24=0,"",'[1]Tasa de Falla'!JC24) -> 
C25: ='[1]Tasa de Falla'!C25 -> 9 | D25: ='[1]Tasa de Falla'!D25 -> ESTATICA SUR - SARMIENTO "TRANSNOA S.A." | E25: ='[1]Tasa de Falla'!E25 -> 132 | F25: ='[1]Tasa de Falla'!F25 -> 4.4 | G25: =IF('[1]Tasa de Falla'!IR25=0,"",'[1]Tasa de Falla'!IR25) ->  | H25: =IF('[1]Tasa de Falla'!IS25=0,"",'[1]Tasa de Falla'!IS25) ->  | I25: =IF('[1]Tasa de Falla'!IT25=0,"",'[1]Tasa de Falla'!IT25) ->  | J25: =IF('[1]Tasa de Falla'!IU25=0,"",'[1]Tasa de Falla'!IU25) ->  | K25: =IF('[1]Tasa de Falla'!IV25=0,"",'[1]Tasa de Falla'!IV25) ->  | L25: =IF('[1]Tasa de Falla'!IW25=0,"",'[1]Tasa de Falla'!IW25) ->  | M25: =IF('[1]Tasa de Falla'!IX25=0,"",'[1]Tasa de Falla'!IX25) ->  | N25: =IF('[1]Tasa de Falla'!IY25=0,"",'[1]Tasa de Falla'!IY25) ->  | O25: =IF('[1]Tasa de Falla'!IZ25=0,"",'[1]Tasa de Falla'!IZ25) ->  | P25: =IF('[1]Tasa de Falla'!JA25=0,"",'[1]Tasa de Falla'!JA25) ->  | Q25: =IF('[1]Tasa de Falla'!JB25=0,"",'[1]Tasa de Falla'!JB25) ->  | R25: =IF('[1]Tasa de Falla'!JC25=0,"",'[1]Tasa de Falla'!JC25) -> 
C26: ='[1]Tasa de Falla'!C26 -> 10 | D26: ='[1]Tasa de Falla'!D26 -> GÜEMES - EL BRACHO | E26: ='[1]Tasa de Falla'!E26 -> 132 | F26: ='[1]Tasa de Falla'!F26 -> 308 | G26: =IF('[1]Tasa de Falla'!IR26=0,"",'[1]Tasa de Falla'!IR26) -> XXXX | H26: =IF('[1]Tasa de Falla'!IS26=0,"",'[1]Tasa de Falla'!IS26) -> XXXX | I26: =IF('[1]Tasa de Falla'!IT26=0,"",'[1]Tasa de Falla'!IT26) -> XXXX | J26: =IF('[1]Tasa de Falla'!IU26=0,"",'[1]Tasa de Falla'!IU26) -> XXXX | K26: =IF('[1]Tasa de Falla'!IV26=0,"",'[1]Tasa de Falla'!IV26) -> XXXX | L26: =IF('[1]Tasa de Falla'!IW26=0,"",'[1]Tasa de Falla'!IW26) -> XXXX | M26: =IF('[1]Tasa de Falla'!IX26=0,"",'[1]Tasa de Falla'!IX26) -> XXXX | N26: =IF('[1]Tasa de Falla'!IY26=0,"",'[1]Tasa de Falla'!IY26) -> XXXX | O26: =IF('[1]Tasa de Falla'!IZ26=0,"",'[1]Tasa de Falla'!IZ26) -> XXXX | P26: =IF('[1]Tasa de Falla'!JA26=0,"",'[1]Tasa de Falla'!JA26) -> XXXX | Q26: =IF('[1]Tasa de Falla'!JB26=0,"",'[1]Tasa de Falla'!JB26) -> XXXX | R26: =IF('[1]Tasa de Falla'!JC26=0,"",'[1]Tasa de Falla'!JC26) -> XXXX
C27: ='[1]Tasa de Falla'!C27 -> 11 | D27: ='[1]Tasa de Falla'!D27 -> CAMPO SANTO - GÜEMES | E27: ='[1]Tasa de Falla'!E27 -> 132 | F27: ='[1]Tasa de Falla'!F27 -> 6.2 | G27: =IF('[1]Tasa de Falla'!IR27=0,"",'[1]Tasa de Falla'!IR27) -> XXXX | H27: =IF('[1]Tasa de Falla'!IS27=0,"",'[1]Tasa de Falla'!IS27) -> XXXX | I27: =IF('[1]Tasa de Falla'!IT27=0,"",'[1]Tasa de Falla'!IT27) -> XXXX | J27: =IF('[1]Tasa de Falla'!IU27=0,"",'[1]Tasa de Falla'!IU27) -> XXXX | K27: =IF('[1]Tasa de Falla'!IV27=0,"",'[1]Tasa de Falla'!IV27) -> XXXX | L27: =IF('[1]Tasa de Falla'!IW27=0,"",'[1]Tasa de Falla'!IW27) -> XXXX | M27: =IF('[1]Tasa de Falla'!IX27=0,"",'[1]Tasa de Falla'!IX27) -> XXXX | N27: =IF('[1]Tasa de Falla'!IY27=0,"",'[1]Tasa de Falla'!IY27) -> XXXX | O27: =IF('[1]Tasa de Falla'!IZ27=0,"",'[1]Tasa de Falla'!IZ27) -> XXXX | P27: =IF('[1]Tasa de Falla'!JA27=0,"",'[1]Tasa de Falla'!JA27) -> XXXX | Q27: =IF('[1]Tasa de Falla'!JB27=0,"",'[1]Tasa de Falla'!JB27) -> XXXX | R27: =IF('[1]Tasa de Falla'!JC27=0,"",'[1]Tasa de Falla'!JC27) -> XXXX
C28: ='[1]Tasa de Falla'!C28 -> 12 | D28: ='[1]Tasa de Falla'!D28 -> GÜEMES - SAN JUANCITO | E28: ='[1]Tasa de Falla'!E28 -> 132 | F28: ='[1]Tasa de Falla'!F28 -> 36.24 | G28: =IF('[1]Tasa de Falla'!IR28=0,"",'[1]Tasa de Falla'!IR28) ->  | H28: =IF('[1]Tasa de Falla'!IS28=0,"",'[1]Tasa de Falla'!IS28) ->  | I28: =IF('[1]Tasa de Falla'!IT28=0,"",'[1]Tasa de Falla'!IT28) ->  | J28: =IF('[1]Tasa de Falla'!IU28=0,"",'[1]Tasa de Falla'!IU28) ->  | K28: =IF('[1]Tasa de Falla'!IV28=0,"",'[1]Tasa de Falla'!IV28) ->  | L28: =IF('[1]Tasa de Falla'!IW28=0,"",'[1]Tasa de Falla'!IW28) -> 3 | M28: =IF('[1]Tasa de Falla'!IX28=0,"",'[1]Tasa de Falla'!IX28) -> 1 | N28: =IF('[1]Tasa de Falla'!IY28=0,"",'[1]Tasa de Falla'!IY28) ->  | O28: =IF('[1]Tasa de Falla'!IZ28=0,"",'[1]Tasa de Falla'!IZ28) ->  | P28: =IF('[1]Tasa de Falla'!JA28=0,"",'[1]Tasa de Falla'!JA28) ->  | Q28: =IF('[1]Tasa de Falla'!JB28=0,"",'[1]Tasa de Falla'!JB28) ->  | R28: =IF('[1]Tasa de Falla'!JC28=0,"",'[1]Tasa de Falla'!JC28) -> 
C29: ='[1]Tasa de Falla'!C29 -> 13 | D29: ='[1]Tasa de Falla'!D29 -> CATAMARCA - HUACRA | E29: ='[1]Tasa de Falla'!E29 -> 132 | F29: ='[1]Tasa de Falla'!F29 -> 67.3 | G29: =IF('[1]Tasa de Falla'!IR29=0,"",'[1]Tasa de Falla'!IR29) ->  | H29: =IF('[1]Tasa de Falla'!IS29=0,"",'[1]Tasa de Falla'!IS29) ->  | I29: =IF('[1]Tasa de Falla'!IT29=0,"",'[1]Tasa de Falla'!IT29) ->  | J29: =IF('[1]Tasa de Falla'!IU29=0,"",'[1]Tasa de Falla'!IU29) ->  | K29: =IF('[1]Tasa de Falla'!IV29=0,"",'[1]Tasa de Falla'!IV29) ->  | L29: =IF('[1]Tasa de Falla'!IW29=0,"",'[1]Tasa de Falla'!IW29) -> 1 | M29: =IF('[1]Tasa de Falla'!IX29=0,"",'[1]Tasa de Falla'!IX29) ->  | N29: =IF('[1]Tasa de Falla'!IY29=0,"",'[1]Tasa de Falla'!IY29) ->  | O29: =IF('[1]Tasa de Falla'!IZ29=0,"",'[1]Tasa de Falla'!IZ29) ->  | P29: =IF('[1]Tasa de Falla'!JA29=0,"",'[1]Tasa de Falla'!JA29) ->  | Q29: =IF('[1]Tasa de Falla'!JB29=0,"",'[1]Tasa de Falla'!JB29) ->  | R29: =IF('[1]Tasa de Falla'!JC29=0,"",'[1]Tasa de Falla'!JC29) -> 
C30: ='[1]Tasa de Falla'!C30 -> 14 | D30: ='[1]Tasa de Falla'!D30 -> HUACRA - LA CALERA | E30: ='[1]Tasa de Falla'!E30 -> 132 | F30: ='[1]Tasa de Falla'!F30 -> 91.2 | G30: =IF('[1]Tasa de Falla'!IR30=0,"",'[1]Tasa de Falla'!IR30) ->  | H30: =IF('[1]Tasa de Falla'!IS30=0,"",'[1]Tasa de Falla'!IS30) ->  | I30: =IF('[1]Tasa de Falla'!IT30=0,"",'[1]Tasa de Falla'!IT30) ->  | J30: =IF('[1]Tasa de Falla'!IU30=0,"",'[1]Tasa de Falla'!IU30) ->  | K30: =IF('[1]Tasa de Falla'!IV30=0,"",'[1]Tasa de Falla'!IV30) ->  | L30: =IF('[1]Tasa de Falla'!IW30=0,"",'[1]Tasa de Falla'!IW30) ->  | M30: =IF('[1]Tasa de Falla'!IX30=0,"",'[1]Tasa de Falla'!IX30) -> 1 | N30: =IF('[1]Tasa de Falla'!IY30=0,"",'[1]Tasa de Falla'!IY30) ->  | O30: =IF('[1]Tasa de Falla'!IZ30=0,"",'[1]Tasa de Falla'!IZ30) ->  | P30: =IF('[1]Tasa de Falla'!JA30=0,"",'[1]Tasa de Falla'!JA30) ->  | Q30: =IF('[1]Tasa de Falla'!JB30=0,"",'[1]Tasa de Falla'!JB30) ->  | R30: =IF('[1]Tasa de Falla'!JC30=0,"",'[1]Tasa de Falla'!JC30) -> 
C31: ='[1]Tasa de Falla'!C31 -> 15 | D31: ='[1]Tasa de Falla'!D31 -> AGUA BLANCA - INDEPENDENCIA | E31: ='[1]Tasa de Falla'!E31 -> 132 | F31: ='[1]Tasa de Falla'!F31 -> 34.14 | G31: =IF('[1]Tasa de Falla'!IR31=0,"",'[1]Tasa de Falla'!IR31) ->  | H31: =IF('[1]Tasa de Falla'!IS31=0,"",'[1]Tasa de Falla'!IS31) ->  | I31: =IF('[1]Tasa de Falla'!IT31=0,"",'[1]Tasa de Falla'!IT31) -> 1 | J31: =IF('[1]Tasa de Falla'!IU31=0,"",'[1]Tasa de Falla'!IU31) ->  | K31: =IF('[1]Tasa de Falla'!IV31=0,"",'[1]Tasa de Falla'!IV31) ->  | L31: =IF('[1]Tasa de Falla'!IW31=0,"",'[1]Tasa de Falla'!IW31) ->  | M31: =IF('[1]Tasa de Falla'!IX31=0,"",'[1]Tasa de Falla'!IX31) ->  | N31: =IF('[1]Tasa de Falla'!IY31=0,"",'[1]Tasa de Falla'!IY31) ->  | O31: =IF('[1]Tasa de Falla'!IZ31=0,"",'[1]Tasa de Falla'!IZ31) ->  | P31: =IF('[1]Tasa de Falla'!JA31=0,"",'[1]Tasa de Falla'!JA31) ->  | Q31: =IF('[1]Tasa de Falla'!JB31=0,"",'[1]Tasa de Falla'!JB31) -> 1 | R31: =IF('[1]Tasa de Falla'!JC31=0,"",'[1]Tasa de Falla'!JC31) -> 
C32: ='[1]Tasa de Falla'!C32 -> 16 | D32: ='[1]Tasa de Falla'!D32 -> INDEPENDENCIA - EL BRACHO 1 | E32: ='[1]Tasa de Falla'!E32 -> 132 | F32: ='[1]Tasa de Falla'!F32 -> 17.1 | G32: =IF('[1]Tasa de Falla'!IR32=0,"",'[1]Tasa de Falla'!IR32) ->  | H32: =IF('[1]Tasa de Falla'!IS32=0,"",'[1]Tasa de Falla'!IS32) ->  | I32: =IF('[1]Tasa de Falla'!IT32=0,"",'[1]Tasa de Falla'!IT32) -> 1 | J32: =IF('[1]Tasa de Falla'!IU32=0,"",'[1]Tasa de Falla'!IU32) ->  | K32: =IF('[1]Tasa de Falla'!IV32=0,"",'[1]Tasa de Falla'!IV32) ->  | L32: =IF('[1]Tasa de Falla'!IW32=0,"",'[1]Tasa de Falla'!IW32) ->  | M32: =IF('[1]Tasa de Falla'!IX32=0,"",'[1]Tasa de Falla'!IX32) ->  | N32: =IF('[1]Tasa de Falla'!IY32=0,"",'[1]Tasa de Falla'!IY32) ->  | O32: =IF('[1]Tasa de Falla'!IZ32=0,"",'[1]Tasa de Falla'!IZ32) ->  | P32: =IF('[1]Tasa de Falla'!JA32=0,"",'[1]Tasa de Falla'!JA32) -> 1 | Q32: =IF('[1]Tasa de Falla'!JB32=0,"",'[1]Tasa de Falla'!JB32) ->  | R32: =IF('[1]Tasa de Falla'!JC32=0,"",'[1]Tasa de Falla'!JC32) -> 
C33: ='[1]Tasa de Falla'!C33 -> 17 | D33: ='[1]Tasa de Falla'!D33 -> INDEPENDENCIA - LULES - PAPEL TUCUMAN | E33: ='[1]Tasa de Falla'!E33 -> 132 | F33: ='[1]Tasa de Falla'!F33 -> 19.3 | G33: =IF('[1]Tasa de Falla'!IR33=0,"",'[1]Tasa de Falla'!IR33) ->  | H33: =IF('[1]Tasa de Falla'!IS33=0,"",'[1]Tasa de Falla'!IS33) ->  | I33: =IF('[1]Tasa de Falla'!IT33=0,"",'[1]Tasa de Falla'!IT33) ->  | J33: =IF('[1]Tasa de Falla'!IU33=0,"",'[1]Tasa de Falla'!IU33) ->  | K33: =IF('[1]Tasa de Falla'!IV33=0,"",'[1]Tasa de Falla'!IV33) ->  | L33: =IF('[1]Tasa de Falla'!IW33=0,"",'[1]Tasa de Falla'!IW33) ->  | M33: =IF('[1]Tasa de Falla'!IX33=0,"",'[1]Tasa de Falla'!IX33) ->  | N33: =IF('[1]Tasa de Falla'!IY33=0,"",'[1]Tasa de Falla'!IY33) ->  | O33: =IF('[1]Tasa de Falla'!IZ33=0,"",'[1]Tasa de Falla'!IZ33) ->  | P33: =IF('[1]Tasa de Falla'!JA33=0,"",'[1]Tasa de Falla'!JA33) ->  | Q33: =IF('[1]Tasa de Falla'!JB33=0,"",'[1]Tasa de Falla'!JB33) ->  | R33: =IF('[1]Tasa de Falla'!JC33=0,"",'[1]Tasa de Falla'!JC33) -> 
C34: ='[1]Tasa de Falla'!C34 -> 18 | D34: ='[1]Tasa de Falla'!D34 -> FRIAS - LA CALERA NOA. | E34: ='[1]Tasa de Falla'!E34 -> 132 | F34: ='[1]Tasa de Falla'!F34 -> 27.3 | G34: =IF('[1]Tasa de Falla'!IR34=0,"",'[1]Tasa de Falla'!IR34) ->  | H34: =IF('[1]Tasa de Falla'!IS34=0,"",'[1]Tasa de Falla'!IS34) -> 1 | I34: =IF('[1]Tasa de Falla'!IT34=0,"",'[1]Tasa de Falla'!IT34) ->  | J34: =IF('[1]Tasa de Falla'!IU34=0,"",'[1]Tasa de Falla'!IU34) ->  | K34: =IF('[1]Tasa de Falla'!IV34=0,"",'[1]Tasa de Falla'!IV34) ->  | L34: =IF('[1]Tasa de Falla'!IW34=0,"",'[1]Tasa de Falla'!IW34) ->  | M34: =IF('[1]Tasa de Falla'!IX34=0,"",'[1]Tasa de Falla'!IX34) ->  | N34: =IF('[1]Tasa de Falla'!IY34=0,"",'[1]Tasa de Falla'!IY34) ->  | O34: =IF('[1]Tasa de Falla'!IZ34=0,"",'[1]Tasa de Falla'!IZ34) ->  | P34: =IF('[1]Tasa de Falla'!JA34=0,"",'[1]Tasa de Falla'!JA34) ->  | Q34: =IF('[1]Tasa de Falla'!JB34=0,"",'[1]Tasa de Falla'!JB34) ->  | R34: =IF('[1]Tasa de Falla'!JC34=0,"",'[1]Tasa de Falla'!JC34) -> 
C35: ='[1]Tasa de Falla'!C35 -> 19 | D35: ='[1]Tasa de Falla'!D35 -> LA BANDA - SANTIAGO CENTRO | E35: ='[1]Tasa de Falla'!E35 -> 132 | F35: ='[1]Tasa de Falla'!F35 -> 10.91 | G35: =IF('[1]Tasa de Falla'!IR35=0,"",'[1]Tasa de Falla'!IR35) ->  | H35: =IF('[1]Tasa de Falla'!IS35=0,"",'[1]Tasa de Falla'!IS35) ->  | I35: =IF('[1]Tasa de Falla'!IT35=0,"",'[1]Tasa de Falla'!IT35) ->  | J35: =IF('[1]Tasa de Falla'!IU35=0,"",'[1]Tasa de Falla'!IU35) ->  | K35: =IF('[1]Tasa de Falla'!IV35=0,"",'[1]Tasa de Falla'!IV35) -> 1 | L35: =IF('[1]Tasa de Falla'!IW35=0,"",'[1]Tasa de Falla'!IW35) ->  | M35: =IF('[1]Tasa de Falla'!IX35=0,"",'[1]Tasa de Falla'!IX35) ->  | N35: =IF('[1]Tasa de Falla'!IY35=0,"",'[1]Tasa de Falla'!IY35) -> XXXX | O35: =IF('[1]Tasa de Falla'!IZ35=0,"",'[1]Tasa de Falla'!IZ35) -> XXXX | P35: =IF('[1]Tasa de Falla'!JA35=0,"",'[1]Tasa de Falla'!JA35) -> XXXX | Q35: =IF('[1]Tasa de Falla'!JB35=0,"",'[1]Tasa de Falla'!JB35) -> XXXX | R35: =IF('[1]Tasa de Falla'!JC35=0,"",'[1]Tasa de Falla'!JC35) -> XXXX
C36: ='[1]Tasa de Falla'!C36 -> 20 | D36: ='[1]Tasa de Falla'!D36 -> LIBERTADOR NOA. - PICHANAL | E36: ='[1]Tasa de Falla'!E36 -> 132 | F36: ='[1]Tasa de Falla'!F36 -> 76 | G36: =IF('[1]Tasa de Falla'!IR36=0,"",'[1]Tasa de Falla'!IR36) -> 2 | H36: =IF('[1]Tasa de Falla'!IS36=0,"",'[1]Tasa de Falla'!IS36) ->  | I36: =IF('[1]Tasa de Falla'!IT36=0,"",'[1]Tasa de Falla'!IT36) -> 1 | J36: =IF('[1]Tasa de Falla'!IU36=0,"",'[1]Tasa de Falla'!IU36) -> 1 | K36: =IF('[1]Tasa de Falla'!IV36=0,"",'[1]Tasa de Falla'!IV36) -> 4 | L36: =IF('[1]Tasa de Falla'!IW36=0,"",'[1]Tasa de Falla'!IW36) ->  | M36: =IF('[1]Tasa de Falla'!IX36=0,"",'[1]Tasa de Falla'!IX36) ->  | N36: =IF('[1]Tasa de Falla'!IY36=0,"",'[1]Tasa de Falla'!IY36) ->  | O36: =IF('[1]Tasa de Falla'!IZ36=0,"",'[1]Tasa de Falla'!IZ36) ->  | P36: =IF('[1]Tasa de Falla'!JA36=0,"",'[1]Tasa de Falla'!JA36) ->  | Q36: =IF('[1]Tasa de Falla'!JB36=0,"",'[1]Tasa de Falla'!JB36) ->  | R36: =IF('[1]Tasa de Falla'!JC36=0,"",'[1]Tasa de Falla'!JC36) -> 
C37: ='[1]Tasa de Falla'!C37 -> 21 | D37: ='[1]Tasa de Falla'!D37 -> GÜEMES - METAN | E37: ='[1]Tasa de Falla'!E37 -> 132 | F37: ='[1]Tasa de Falla'!F37 -> 97.13 | G37: =IF('[1]Tasa de Falla'!IR37=0,"",'[1]Tasa de Falla'!IR37) -> XXXX | H37: =IF('[1]Tasa de Falla'!IS37=0,"",'[1]Tasa de Falla'!IS37) -> XXXX | I37: =IF('[1]Tasa de Falla'!IT37=0,"",'[1]Tasa de Falla'!IT37) -> XXXX | J37: =IF('[1]Tasa de Falla'!IU37=0,"",'[1]Tasa de Falla'!IU37) -> XXXX | K37: =IF('[1]Tasa de Falla'!IV37=0,"",'[1]Tasa de Falla'!IV37) -> XXXX | L37: =IF('[1]Tasa de Falla'!IW37=0,"",'[1]Tasa de Falla'!IW37) -> XXXX | M37: =IF('[1]Tasa de Falla'!IX37=0,"",'[1]Tasa de Falla'!IX37) -> XXXX | N37: =IF('[1]Tasa de Falla'!IY37=0,"",'[1]Tasa de Falla'!IY37) -> XXXX | O37: =IF('[1]Tasa de Falla'!IZ37=0,"",'[1]Tasa de Falla'!IZ37) -> XXXX | P37: =IF('[1]Tasa de Falla'!JA37=0,"",'[1]Tasa de Falla'!JA37) -> XXXX | Q37: =IF('[1]Tasa de Falla'!JB37=0,"",'[1]Tasa de Falla'!JB37) -> XXXX | R37: =IF('[1]Tasa de Falla'!JC37=0,"",'[1]Tasa de Falla'!JC37) -> XXXX
C38: ='[1]Tasa de Falla'!C38 -> 22 | D38: ='[1]Tasa de Falla'!D38 -> MINETTI - SAN JUANCITO | E38: ='[1]Tasa de Falla'!E38 -> 132 | F38: ='[1]Tasa de Falla'!F38 -> 26 | G38: =IF('[1]Tasa de Falla'!IR38=0,"",'[1]Tasa de Falla'!IR38) ->  | H38: =IF('[1]Tasa de Falla'!IS38=0,"",'[1]Tasa de Falla'!IS38) ->  | I38: =IF('[1]Tasa de Falla'!IT38=0,"",'[1]Tasa de Falla'!IT38) ->  | J38: =IF('[1]Tasa de Falla'!IU38=0,"",'[1]Tasa de Falla'!IU38) ->  | K38: =IF('[1]Tasa de Falla'!IV38=0,"",'[1]Tasa de Falla'!IV38) ->  | L38: =IF('[1]Tasa de Falla'!IW38=0,"",'[1]Tasa de Falla'!IW38) ->  | M38: =IF('[1]Tasa de Falla'!IX38=0,"",'[1]Tasa de Falla'!IX38) -> 2 | N38: =IF('[1]Tasa de Falla'!IY38=0,"",'[1]Tasa de Falla'!IY38) ->  | O38: =IF('[1]Tasa de Falla'!IZ38=0,"",'[1]Tasa de Falla'!IZ38) ->  | P38: =IF('[1]Tasa de Falla'!JA38=0,"",'[1]Tasa de Falla'!JA38) -> 1 | Q38: =IF('[1]Tasa de Falla'!JB38=0,"",'[1]Tasa de Falla'!JB38) ->  | R38: =IF('[1]Tasa de Falla'!JC38=0,"",'[1]Tasa de Falla'!JC38) -> 
C39: ='[1]Tasa de Falla'!C39 -> 23 | D39: ='[1]Tasa de Falla'!D39 -> PALPALA - JUJUY SUR | E39: ='[1]Tasa de Falla'!E39 -> 132 | F39: ='[1]Tasa de Falla'!F39 -> 14 | G39: =IF('[1]Tasa de Falla'!IR39=0,"",'[1]Tasa de Falla'!IR39) -> XXXX | H39: =IF('[1]Tasa de Falla'!IS39=0,"",'[1]Tasa de Falla'!IS39) -> XXXX | I39: =IF('[1]Tasa de Falla'!IT39=0,"",'[1]Tasa de Falla'!IT39) -> XXXX | J39: =IF('[1]Tasa de Falla'!IU39=0,"",'[1]Tasa de Falla'!IU39) -> XXXX | K39: =IF('[1]Tasa de Falla'!IV39=0,"",'[1]Tasa de Falla'!IV39) -> XXXX | L39: =IF('[1]Tasa de Falla'!IW39=0,"",'[1]Tasa de Falla'!IW39) -> XXXX | M39: =IF('[1]Tasa de Falla'!IX39=0,"",'[1]Tasa de Falla'!IX39) -> XXXX | N39: =IF('[1]Tasa de Falla'!IY39=0,"",'[1]Tasa de Falla'!IY39) -> XXXX | O39: =IF('[1]Tasa de Falla'!IZ39=0,"",'[1]Tasa de Falla'!IZ39) -> XXXX | P39: =IF('[1]Tasa de Falla'!JA39=0,"",'[1]Tasa de Falla'!JA39) -> XXXX | Q39: =IF('[1]Tasa de Falla'!JB39=0,"",'[1]Tasa de Falla'!JB39) -> XXXX | R39: =IF('[1]Tasa de Falla'!JC39=0,"",'[1]Tasa de Falla'!JC39) -> XXXX
C40: ='[1]Tasa de Falla'!C40 -> 24 | D40: ='[1]Tasa de Falla'!D40 -> ORAN - PICHANAL | E40: ='[1]Tasa de Falla'!E40 -> 132 | F40: ='[1]Tasa de Falla'!F40 -> 17 | G40: =IF('[1]Tasa de Falla'!IR40=0,"",'[1]Tasa de Falla'!IR40) -> XXXX | H40: =IF('[1]Tasa de Falla'!IS40=0,"",'[1]Tasa de Falla'!IS40) -> XXXX | I40: =IF('[1]Tasa de Falla'!IT40=0,"",'[1]Tasa de Falla'!IT40) -> XXXX | J40: =IF('[1]Tasa de Falla'!IU40=0,"",'[1]Tasa de Falla'!IU40) -> XXXX | K40: =IF('[1]Tasa de Falla'!IV40=0,"",'[1]Tasa de Falla'!IV40) -> XXXX | L40: =IF('[1]Tasa de Falla'!IW40=0,"",'[1]Tasa de Falla'!IW40) -> XXXX | M40: =IF('[1]Tasa de Falla'!IX40=0,"",'[1]Tasa de Falla'!IX40) -> XXXX | N40: =IF('[1]Tasa de Falla'!IY40=0,"",'[1]Tasa de Falla'!IY40) -> XXXX | O40: =IF('[1]Tasa de Falla'!IZ40=0,"",'[1]Tasa de Falla'!IZ40) -> XXXX | P40: =IF('[1]Tasa de Falla'!JA40=0,"",'[1]Tasa de Falla'!JA40) -> XXXX | Q40: =IF('[1]Tasa de Falla'!JB40=0,"",'[1]Tasa de Falla'!JB40) -> XXXX | R40: =IF('[1]Tasa de Falla'!JC40=0,"",'[1]Tasa de Falla'!JC40) -> XXXX
C41: ='[1]Tasa de Falla'!C41 -> 25 | D41: ='[1]Tasa de Falla'!D41 -> PICHANAL - TARTAGAL | E41: ='[1]Tasa de Falla'!E41 -> 132 | F41: ='[1]Tasa de Falla'!F41 -> 105 | G41: =IF('[1]Tasa de Falla'!IR41=0,"",'[1]Tasa de Falla'!IR41) -> 1 | H41: =IF('[1]Tasa de Falla'!IS41=0,"",'[1]Tasa de Falla'!IS41) ->  | I41: =IF('[1]Tasa de Falla'!IT41=0,"",'[1]Tasa de Falla'!IT41) ->  | J41: =IF('[1]Tasa de Falla'!IU41=0,"",'[1]Tasa de Falla'!IU41) ->  | K41: =IF('[1]Tasa de Falla'!IV41=0,"",'[1]Tasa de Falla'!IV41) -> XXXX | L41: =IF('[1]Tasa de Falla'!IW41=0,"",'[1]Tasa de Falla'!IW41) -> XXXX | M41: =IF('[1]Tasa de Falla'!IX41=0,"",'[1]Tasa de Falla'!IX41) -> XXXX | N41: =IF('[1]Tasa de Falla'!IY41=0,"",'[1]Tasa de Falla'!IY41) -> XXXX | O41: =IF('[1]Tasa de Falla'!IZ41=0,"",'[1]Tasa de Falla'!IZ41) -> XXXX | P41: =IF('[1]Tasa de Falla'!JA41=0,"",'[1]Tasa de Falla'!JA41) -> XXXX | Q41: =IF('[1]Tasa de Falla'!JB41=0,"",'[1]Tasa de Falla'!JB41) -> XXXX | R41: =IF('[1]Tasa de Falla'!JC41=0,"",'[1]Tasa de Falla'!JC41) -> XXXX
C42: ='[1]Tasa de Falla'!C42 -> 26 | D42: ='[1]Tasa de Falla'!D42 -> C.H. RIO HONDO - LA BANDA | E42: ='[1]Tasa de Falla'!E42 -> 132 | F42: ='[1]Tasa de Falla'!F42 -> 76.5 | G42: =IF('[1]Tasa de Falla'!IR42=0,"",'[1]Tasa de Falla'!IR42) ->  | H42: =IF('[1]Tasa de Falla'!IS42=0,"",'[1]Tasa de Falla'!IS42) ->  | I42: =IF('[1]Tasa de Falla'!IT42=0,"",'[1]Tasa de Falla'!IT42) -> 2 | J42: =IF('[1]Tasa de Falla'!IU42=0,"",'[1]Tasa de Falla'!IU42) ->  | K42: =IF('[1]Tasa de Falla'!IV42=0,"",'[1]Tasa de Falla'!IV42) -> 1 | L42: =IF('[1]Tasa de Falla'!IW42=0,"",'[1]Tasa de Falla'!IW42) ->  | M42: =IF('[1]Tasa de Falla'!IX42=0,"",'[1]Tasa de Falla'!IX42) ->  | N42: =IF('[1]Tasa de Falla'!IY42=0,"",'[1]Tasa de Falla'!IY42) ->  | O42: =IF('[1]Tasa de Falla'!IZ42=0,"",'[1]Tasa de Falla'!IZ42) ->  | P42: =IF('[1]Tasa de Falla'!JA42=0,"",'[1]Tasa de Falla'!JA42) ->  | Q42: =IF('[1]Tasa de Falla'!JB42=0,"",'[1]Tasa de Falla'!JB42) ->  | R42: =IF('[1]Tasa de Falla'!JC42=0,"",'[1]Tasa de Falla'!JC42) -> 
C43: ='[1]Tasa de Falla'!C43 -> 27 | D43: ='[1]Tasa de Falla'!D43 -> LA RIOJA - RECREO 2 | E43: ='[1]Tasa de Falla'!E43 -> 132 | F43: ='[1]Tasa de Falla'!F43 -> 220 | G43: =IF('[1]Tasa de Falla'!IR43=0,"",'[1]Tasa de Falla'!IR43) -> XXXX | H43: =IF('[1]Tasa de Falla'!IS43=0,"",'[1]Tasa de Falla'!IS43) -> XXXX | I43: =IF('[1]Tasa de Falla'!IT43=0,"",'[1]Tasa de Falla'!IT43) -> XXXX | J43: =IF('[1]Tasa de Falla'!IU43=0,"",'[1]Tasa de Falla'!IU43) -> XXXX | K43: =IF('[1]Tasa de Falla'!IV43=0,"",'[1]Tasa de Falla'!IV43) -> XXXX | L43: =IF('[1]Tasa de Falla'!IW43=0,"",'[1]Tasa de Falla'!IW43) -> XXXX | M43: =IF('[1]Tasa de Falla'!IX43=0,"",'[1]Tasa de Falla'!IX43) -> XXXX | N43: =IF('[1]Tasa de Falla'!IY43=0,"",'[1]Tasa de Falla'!IY43) -> XXXX | O43: =IF('[1]Tasa de Falla'!IZ43=0,"",'[1]Tasa de Falla'!IZ43) -> XXXX | P43: =IF('[1]Tasa de Falla'!JA43=0,"",'[1]Tasa de Falla'!JA43) -> XXXX | Q43: =IF('[1]Tasa de Falla'!JB43=0,"",'[1]Tasa de Falla'!JB43) -> XXXX | R43: =IF('[1]Tasa de Falla'!JC43=0,"",'[1]Tasa de Falla'!JC43) -> XXXX
C44: ='[1]Tasa de Falla'!C44 -> 28 | D44: ='[1]Tasa de Falla'!D44 -> CAMPO SANTO - SALTA SUR | E44: ='[1]Tasa de Falla'!E44 -> 132 | F44: ='[1]Tasa de Falla'!F44 -> 40.92 | G44: =IF('[1]Tasa de Falla'!IR44=0,"",'[1]Tasa de Falla'!IR44) -> XXXX | H44: =IF('[1]Tasa de Falla'!IS44=0,"",'[1]Tasa de Falla'!IS44) -> XXXX | I44: =IF('[1]Tasa de Falla'!IT44=0,"",'[1]Tasa de Falla'!IT44) -> XXXX | J44: =IF('[1]Tasa de Falla'!IU44=0,"",'[1]Tasa de Falla'!IU44) -> XXXX | K44: =IF('[1]Tasa de Falla'!IV44=0,"",'[1]Tasa de Falla'!IV44) -> XXXX | L44: =IF('[1]Tasa de Falla'!IW44=0,"",'[1]Tasa de Falla'!IW44) -> XXXX | M44: =IF('[1]Tasa de Falla'!IX44=0,"",'[1]Tasa de Falla'!IX44) -> XXXX | N44: =IF('[1]Tasa de Falla'!IY44=0,"",'[1]Tasa de Falla'!IY44) -> XXXX | O44: =IF('[1]Tasa de Falla'!IZ44=0,"",'[1]Tasa de Falla'!IZ44) -> XXXX | P44: =IF('[1]Tasa de Falla'!JA44=0,"",'[1]Tasa de Falla'!JA44) -> XXXX | Q44: =IF('[1]Tasa de Falla'!JB44=0,"",'[1]Tasa de Falla'!JB44) -> XXXX | R44: =IF('[1]Tasa de Falla'!JC44=0,"",'[1]Tasa de Falla'!JC44) -> XXXX
C45: ='[1]Tasa de Falla'!C45 -> 29 | D45: ='[1]Tasa de Falla'!D45 -> PALPALA - SAN JUANCITO | E45: ='[1]Tasa de Falla'!E45 -> 132 | F45: ='[1]Tasa de Falla'!F45 -> 23.9 | G45: =IF('[1]Tasa de Falla'!IR45=0,"",'[1]Tasa de Falla'!IR45) ->  | H45: =IF('[1]Tasa de Falla'!IS45=0,"",'[1]Tasa de Falla'!IS45) ->  | I45: =IF('[1]Tasa de Falla'!IT45=0,"",'[1]Tasa de Falla'!IT45) -> 2 | J45: =IF('[1]Tasa de Falla'!IU45=0,"",'[1]Tasa de Falla'!IU45) ->  | K45: =IF('[1]Tasa de Falla'!IV45=0,"",'[1]Tasa de Falla'!IV45) ->  | L45: =IF('[1]Tasa de Falla'!IW45=0,"",'[1]Tasa de Falla'!IW45) -> 2 | M45: =IF('[1]Tasa de Falla'!IX45=0,"",'[1]Tasa de Falla'!IX45) -> 2 | N45: =IF('[1]Tasa de Falla'!IY45=0,"",'[1]Tasa de Falla'!IY45) ->  | O45: =IF('[1]Tasa de Falla'!IZ45=0,"",'[1]Tasa de Falla'!IZ45) ->  | P45: =IF('[1]Tasa de Falla'!JA45=0,"",'[1]Tasa de Falla'!JA45) ->  | Q45: =IF('[1]Tasa de Falla'!JB45=0,"",'[1]Tasa de Falla'!JB45) ->  | R45: =IF('[1]Tasa de Falla'!JC45=0,"",'[1]Tasa de Falla'!JC45) -> 
C46: ='[1]Tasa de Falla'!C46 -> 30 | D46: ='[1]Tasa de Falla'!D46 -> SAN JUANCITO - SAN PEDRO JUJUY | E46: ='[1]Tasa de Falla'!E46 -> 132 | F46: ='[1]Tasa de Falla'!F46 -> 27 | G46: =IF('[1]Tasa de Falla'!IR46=0,"",'[1]Tasa de Falla'!IR46) ->  | H46: =IF('[1]Tasa de Falla'!IS46=0,"",'[1]Tasa de Falla'!IS46) ->  | I46: =IF('[1]Tasa de Falla'!IT46=0,"",'[1]Tasa de Falla'!IT46) ->  | J46: =IF('[1]Tasa de Falla'!IU46=0,"",'[1]Tasa de Falla'!IU46) ->  | K46: =IF('[1]Tasa de Falla'!IV46=0,"",'[1]Tasa de Falla'!IV46) ->  | L46: =IF('[1]Tasa de Falla'!IW46=0,"",'[1]Tasa de Falla'!IW46) ->  | M46: =IF('[1]Tasa de Falla'!IX46=0,"",'[1]Tasa de Falla'!IX46) ->  | N46: =IF('[1]Tasa de Falla'!IY46=0,"",'[1]Tasa de Falla'!IY46) ->  | O46: =IF('[1]Tasa de Falla'!IZ46=0,"",'[1]Tasa de Falla'!IZ46) ->  | P46: =IF('[1]Tasa de Falla'!JA46=0,"",'[1]Tasa de Falla'!JA46) ->  | Q46: =IF('[1]Tasa de Falla'!JB46=0,"",'[1]Tasa de Falla'!JB46) ->  | R46: =IF('[1]Tasa de Falla'!JC46=0,"",'[1]Tasa de Falla'!JC46) -> 
C47: ='[1]Tasa de Falla'!C47 -> 31 | D47: ='[1]Tasa de Falla'!D47 -> SAN MARTIN - CATAMARCA | E47: ='[1]Tasa de Falla'!E47 -> 132 | F47: ='[1]Tasa de Falla'!F47 -> 88 | G47: =IF('[1]Tasa de Falla'!IR47=0,"",'[1]Tasa de Falla'!IR47) -> XXXX | H47: =IF('[1]Tasa de Falla'!IS47=0,"",'[1]Tasa de Falla'!IS47) -> XXXX | I47: =IF('[1]Tasa de Falla'!IT47=0,"",'[1]Tasa de Falla'!IT47) -> XXXX | J47: =IF('[1]Tasa de Falla'!IU47=0,"",'[1]Tasa de Falla'!IU47) -> XXXX | K47: =IF('[1]Tasa de Falla'!IV47=0,"",'[1]Tasa de Falla'!IV47) -> XXXX | L47: =IF('[1]Tasa de Falla'!IW47=0,"",'[1]Tasa de Falla'!IW47) -> XXXX | M47: =IF('[1]Tasa de Falla'!IX47=0,"",'[1]Tasa de Falla'!IX47) -> XXXX | N47: =IF('[1]Tasa de Falla'!IY47=0,"",'[1]Tasa de Falla'!IY47) -> XXXX | O47: =IF('[1]Tasa de Falla'!IZ47=0,"",'[1]Tasa de Falla'!IZ47) -> XXXX | P47: =IF('[1]Tasa de Falla'!JA47=0,"",'[1]Tasa de Falla'!JA47) -> XXXX | Q47: =IF('[1]Tasa de Falla'!JB47=0,"",'[1]Tasa de Falla'!JB47) -> XXXX | R47: =IF('[1]Tasa de Falla'!JC47=0,"",'[1]Tasa de Falla'!JC47) -> XXXX
C48: ='[1]Tasa de Falla'!C48 -> 32 | D48: ='[1]Tasa de Falla'!D48 -> SAN MARTIN - RECREO | E48: ='[1]Tasa de Falla'!E48 -> 132 | F48: ='[1]Tasa de Falla'!F48 -> 115 | G48: =IF('[1]Tasa de Falla'!IR48=0,"",'[1]Tasa de Falla'!IR48) -> XXXX | H48: =IF('[1]Tasa de Falla'!IS48=0,"",'[1]Tasa de Falla'!IS48) -> XXXX | I48: =IF('[1]Tasa de Falla'!IT48=0,"",'[1]Tasa de Falla'!IT48) -> XXXX | J48: =IF('[1]Tasa de Falla'!IU48=0,"",'[1]Tasa de Falla'!IU48) -> XXXX | K48: =IF('[1]Tasa de Falla'!IV48=0,"",'[1]Tasa de Falla'!IV48) -> XXXX | L48: =IF('[1]Tasa de Falla'!IW48=0,"",'[1]Tasa de Falla'!IW48) -> XXXX | M48: =IF('[1]Tasa de Falla'!IX48=0,"",'[1]Tasa de Falla'!IX48) -> XXXX | N48: =IF('[1]Tasa de Falla'!IY48=0,"",'[1]Tasa de Falla'!IY48) -> XXXX | O48: =IF('[1]Tasa de Falla'!IZ48=0,"",'[1]Tasa de Falla'!IZ48) -> XXXX | P48: =IF('[1]Tasa de Falla'!JA48=0,"",'[1]Tasa de Falla'!JA48) -> XXXX | Q48: =IF('[1]Tasa de Falla'!JB48=0,"",'[1]Tasa de Falla'!JB48) -> XXXX | R48: =IF('[1]Tasa de Falla'!JC48=0,"",'[1]Tasa de Falla'!JC48) -> XXXX
C49: ='[1]Tasa de Falla'!C49 -> 33 | D49: ='[1]Tasa de Falla'!D49 -> SAN MARTIN C. - LA RIOJA | E49: ='[1]Tasa de Falla'!E49 -> 132 | F49: ='[1]Tasa de Falla'!F49 -> 105 | G49: =IF('[1]Tasa de Falla'!IR49=0,"",'[1]Tasa de Falla'!IR49) -> XXXX | H49: =IF('[1]Tasa de Falla'!IS49=0,"",'[1]Tasa de Falla'!IS49) -> XXXX | I49: =IF('[1]Tasa de Falla'!IT49=0,"",'[1]Tasa de Falla'!IT49) -> XXXX | J49: =IF('[1]Tasa de Falla'!IU49=0,"",'[1]Tasa de Falla'!IU49) -> XXXX | K49: =IF('[1]Tasa de Falla'!IV49=0,"",'[1]Tasa de Falla'!IV49) -> XXXX | L49: =IF('[1]Tasa de Falla'!IW49=0,"",'[1]Tasa de Falla'!IW49) -> XXXX | M49: =IF('[1]Tasa de Falla'!IX49=0,"",'[1]Tasa de Falla'!IX49) -> XXXX | N49: =IF('[1]Tasa de Falla'!IY49=0,"",'[1]Tasa de Falla'!IY49) -> XXXX | O49: =IF('[1]Tasa de Falla'!IZ49=0,"",'[1]Tasa de Falla'!IZ49) -> XXXX | P49: =IF('[1]Tasa de Falla'!JA49=0,"",'[1]Tasa de Falla'!JA49) -> XXXX | Q49: =IF('[1]Tasa de Falla'!JB49=0,"",'[1]Tasa de Falla'!JB49) -> XXXX | R49: =IF('[1]Tasa de Falla'!JC49=0,"",'[1]Tasa de Falla'!JC49) -> XXXX
C50: ='[1]Tasa de Falla'!C50 -> 34 | D50: ='[1]Tasa de Falla'!D50 -> SAN PEDRO JUJUY - LIBERTADOR NOA. | E50: ='[1]Tasa de Falla'!E50 -> 132 | F50: ='[1]Tasa de Falla'!F50 -> 49 | G50: =IF('[1]Tasa de Falla'!IR50=0,"",'[1]Tasa de Falla'!IR50) -> 1 | H50: =IF('[1]Tasa de Falla'!IS50=0,"",'[1]Tasa de Falla'!IS50) ->  | I50: =IF('[1]Tasa de Falla'!IT50=0,"",'[1]Tasa de Falla'!IT50) ->  | J50: =IF('[1]Tasa de Falla'!IU50=0,"",'[1]Tasa de Falla'!IU50) ->  | K50: =IF('[1]Tasa de Falla'!IV50=0,"",'[1]Tasa de Falla'!IV50) ->  | L50: =IF('[1]Tasa de Falla'!IW50=0,"",'[1]Tasa de Falla'!IW50) ->  | M50: =IF('[1]Tasa de Falla'!IX50=0,"",'[1]Tasa de Falla'!IX50) ->  | N50: =IF('[1]Tasa de Falla'!IY50=0,"",'[1]Tasa de Falla'!IY50) ->  | O50: =IF('[1]Tasa de Falla'!IZ50=0,"",'[1]Tasa de Falla'!IZ50) ->  | P50: =IF('[1]Tasa de Falla'!JA50=0,"",'[1]Tasa de Falla'!JA50) ->  | Q50: =IF('[1]Tasa de Falla'!JB50=0,"",'[1]Tasa de Falla'!JB50) ->  | R50: =IF('[1]Tasa de Falla'!JC50=0,"",'[1]Tasa de Falla'!JC50) -> 
C51: ='[1]Tasa de Falla'!C51 -> 35 | D51: ='[1]Tasa de Falla'!D51 -> TUCUMAN NORTE - EL BRACHO | E51: ='[1]Tasa de Falla'!E51 -> 132 | F51: ='[1]Tasa de Falla'!F51 -> 31.5 | G51: =IF('[1]Tasa de Falla'!IR51=0,"",'[1]Tasa de Falla'!IR51) -> 1 | H51: =IF('[1]Tasa de Falla'!IS51=0,"",'[1]Tasa de Falla'!IS51) ->  | I51: =IF('[1]Tasa de Falla'!IT51=0,"",'[1]Tasa de Falla'!IT51) ->  | J51: =IF('[1]Tasa de Falla'!IU51=0,"",'[1]Tasa de Falla'!IU51) ->  | K51: =IF('[1]Tasa de Falla'!IV51=0,"",'[1]Tasa de Falla'!IV51) ->  | L51: =IF('[1]Tasa de Falla'!IW51=0,"",'[1]Tasa de Falla'!IW51) ->  | M51: =IF('[1]Tasa de Falla'!IX51=0,"",'[1]Tasa de Falla'!IX51) ->  | N51: =IF('[1]Tasa de Falla'!IY51=0,"",'[1]Tasa de Falla'!IY51) ->  | O51: =IF('[1]Tasa de Falla'!IZ51=0,"",'[1]Tasa de Falla'!IZ51) ->  | P51: =IF('[1]Tasa de Falla'!JA51=0,"",'[1]Tasa de Falla'!JA51) -> 1 | Q51: =IF('[1]Tasa de Falla'!JB51=0,"",'[1]Tasa de Falla'!JB51) ->  | R51: =IF('[1]Tasa de Falla'!JC51=0,"",'[1]Tasa de Falla'!JC51) -> 
C52: ='[1]Tasa de Falla'!C52 -> 36 | D52: ='[1]Tasa de Falla'!D52 -> C.H. EL CADILLAL - TUCUMAN NORTE | E52: ='[1]Tasa de Falla'!E52 -> 132 | F52: ='[1]Tasa de Falla'!F52 -> 21.8 | G52: =IF('[1]Tasa de Falla'!IR52=0,"",'[1]Tasa de Falla'!IR52) ->  | H52: =IF('[1]Tasa de Falla'!IS52=0,"",'[1]Tasa de Falla'!IS52) ->  | I52: =IF('[1]Tasa de Falla'!IT52=0,"",'[1]Tasa de Falla'!IT52) -> 1 | J52: =IF('[1]Tasa de Falla'!IU52=0,"",'[1]Tasa de Falla'!IU52) -> 2 | K52: =IF('[1]Tasa de Falla'!IV52=0,"",'[1]Tasa de Falla'!IV52) ->  | L52: =IF('[1]Tasa de Falla'!IW52=0,"",'[1]Tasa de Falla'!IW52) -> 1 | M52: =IF('[1]Tasa de Falla'!IX52=0,"",'[1]Tasa de Falla'!IX52) ->  | N52: =IF('[1]Tasa de Falla'!IY52=0,"",'[1]Tasa de Falla'!IY52) ->  | O52: =IF('[1]Tasa de Falla'!IZ52=0,"",'[1]Tasa de Falla'!IZ52) ->  | P52: =IF('[1]Tasa de Falla'!JA52=0,"",'[1]Tasa de Falla'!JA52) ->  | Q52: =IF('[1]Tasa de Falla'!JB52=0,"",'[1]Tasa de Falla'!JB52) ->  | R52: =IF('[1]Tasa de Falla'!JC52=0,"",'[1]Tasa de Falla'!JC52) -> 
C53: ='[1]Tasa de Falla'!C53 -> 37 | D53: ='[1]Tasa de Falla'!D53 -> TUCUMAN NORTE - CABRA CORRAL | E53: ='[1]Tasa de Falla'!E53 -> 132 | F53: ='[1]Tasa de Falla'!F53 -> 190 | G53: =IF('[1]Tasa de Falla'!IR53=0,"",'[1]Tasa de Falla'!IR53) -> XXXX | H53: =IF('[1]Tasa de Falla'!IS53=0,"",'[1]Tasa de Falla'!IS53) -> XXXX | I53: =IF('[1]Tasa de Falla'!IT53=0,"",'[1]Tasa de Falla'!IT53) -> XXXX | J53: =IF('[1]Tasa de Falla'!IU53=0,"",'[1]Tasa de Falla'!IU53) -> XXXX | K53: =IF('[1]Tasa de Falla'!IV53=0,"",'[1]Tasa de Falla'!IV53) -> XXXX | L53: =IF('[1]Tasa de Falla'!IW53=0,"",'[1]Tasa de Falla'!IW53) -> XXXX | M53: =IF('[1]Tasa de Falla'!IX53=0,"",'[1]Tasa de Falla'!IX53) -> XXXX | N53: =IF('[1]Tasa de Falla'!IY53=0,"",'[1]Tasa de Falla'!IY53) -> XXXX | O53: =IF('[1]Tasa de Falla'!IZ53=0,"",'[1]Tasa de Falla'!IZ53) -> XXXX | P53: =IF('[1]Tasa de Falla'!JA53=0,"",'[1]Tasa de Falla'!JA53) -> XXXX | Q53: =IF('[1]Tasa de Falla'!JB53=0,"",'[1]Tasa de Falla'!JB53) -> XXXX | R53: =IF('[1]Tasa de Falla'!JC53=0,"",'[1]Tasa de Falla'!JC53) -> XXXX
C54: ='[1]Tasa de Falla'!C54 -> 38 | D54: ='[1]Tasa de Falla'!D54 -> METAN - TUCUMAN NORTE | E54: ='[1]Tasa de Falla'!E54 -> 132 | F54: ='[1]Tasa de Falla'!F54 -> 155.6 | G54: =IF('[1]Tasa de Falla'!IR54=0,"",'[1]Tasa de Falla'!IR54) -> 1 | H54: =IF('[1]Tasa de Falla'!IS54=0,"",'[1]Tasa de Falla'!IS54) -> 1 | I54: =IF('[1]Tasa de Falla'!IT54=0,"",'[1]Tasa de Falla'!IT54) -> 1 | J54: =IF('[1]Tasa de Falla'!IU54=0,"",'[1]Tasa de Falla'!IU54) ->  | K54: =IF('[1]Tasa de Falla'!IV54=0,"",'[1]Tasa de Falla'!IV54) ->  | L54: =IF('[1]Tasa de Falla'!IW54=0,"",'[1]Tasa de Falla'!IW54) ->  | M54: =IF('[1]Tasa de Falla'!IX54=0,"",'[1]Tasa de Falla'!IX54) ->  | N54: =IF('[1]Tasa de Falla'!IY54=0,"",'[1]Tasa de Falla'!IY54) ->  | O54: =IF('[1]Tasa de Falla'!IZ54=0,"",'[1]Tasa de Falla'!IZ54) ->  | P54: =IF('[1]Tasa de Falla'!JA54=0,"",'[1]Tasa de Falla'!JA54) ->  | Q54: =IF('[1]Tasa de Falla'!JB54=0,"",'[1]Tasa de Falla'!JB54) ->  | R54: =IF('[1]Tasa de Falla'!JC54=0,"",'[1]Tasa de Falla'!JC54) -> 
C55: ='[1]Tasa de Falla'!C55 -> 39 | D55: ='[1]Tasa de Falla'!D55 -> SARMIENTO - TUCUMAN NORTE (O.F.) | E55: ='[1]Tasa de Falla'!E55 -> 132 | F55: ='[1]Tasa de Falla'!F55 -> 3.3 | G55: =IF('[1]Tasa de Falla'!IR55=0,"",'[1]Tasa de Falla'!IR55) ->  | H55: =IF('[1]Tasa de Falla'!IS55=0,"",'[1]Tasa de Falla'!IS55) ->  | I55: =IF('[1]Tasa de Falla'!IT55=0,"",'[1]Tasa de Falla'!IT55) ->  | J55: =IF('[1]Tasa de Falla'!IU55=0,"",'[1]Tasa de Falla'!IU55) ->  | K55: =IF('[1]Tasa de Falla'!IV55=0,"",'[1]Tasa de Falla'!IV55) ->  | L55: =IF('[1]Tasa de Falla'!IW55=0,"",'[1]Tasa de Falla'!IW55) ->  | M55: =IF('[1]Tasa de Falla'!IX55=0,"",'[1]Tasa de Falla'!IX55) ->  | N55: =IF('[1]Tasa de Falla'!IY55=0,"",'[1]Tasa de Falla'!IY55) ->  | O55: =IF('[1]Tasa de Falla'!IZ55=0,"",'[1]Tasa de Falla'!IZ55) ->  | P55: =IF('[1]Tasa de Falla'!JA55=0,"",'[1]Tasa de Falla'!JA55) ->  | Q55: =IF('[1]Tasa de Falla'!JB55=0,"",'[1]Tasa de Falla'!JB55) ->  | R55: =IF('[1]Tasa de Falla'!JC55=0,"",'[1]Tasa de Falla'!JC55) -> 
C56: ='[1]Tasa de Falla'!C56 -> 40 | D56: ='[1]Tasa de Falla'!D56 -> TUCUMAN OESTE - TUCUMAN NORTE | E56: ='[1]Tasa de Falla'!E56 -> 132 | F56: ='[1]Tasa de Falla'!F56 -> 7 | G56: =IF('[1]Tasa de Falla'!IR56=0,"",'[1]Tasa de Falla'!IR56) -> 1 | H56: =IF('[1]Tasa de Falla'!IS56=0,"",'[1]Tasa de Falla'!IS56) ->  | I56: =IF('[1]Tasa de Falla'!IT56=0,"",'[1]Tasa de Falla'!IT56) ->  | J56: =IF('[1]Tasa de Falla'!IU56=0,"",'[1]Tasa de Falla'!IU56) ->  | K56: =IF('[1]Tasa de Falla'!IV56=0,"",'[1]Tasa de Falla'!IV56) ->  | L56: =IF('[1]Tasa de Falla'!IW56=0,"",'[1]Tasa de Falla'!IW56) ->  | M56: =IF('[1]Tasa de Falla'!IX56=0,"",'[1]Tasa de Falla'!IX56) ->  | N56: =IF('[1]Tasa de Falla'!IY56=0,"",'[1]Tasa de Falla'!IY56) ->  | O56: =IF('[1]Tasa de Falla'!IZ56=0,"",'[1]Tasa de Falla'!IZ56) -> 1 | P56: =IF('[1]Tasa de Falla'!JA56=0,"",'[1]Tasa de Falla'!JA56) -> 1 | Q56: =IF('[1]Tasa de Falla'!JB56=0,"",'[1]Tasa de Falla'!JB56) ->  | R56: =IF('[1]Tasa de Falla'!JC56=0,"",'[1]Tasa de Falla'!JC56) -> 
C57: ='[1]Tasa de Falla'!C57 -> 41 | D57: ='[1]Tasa de Falla'!D57 -> AGUILARES - VILLA QUINTEROS | E57: ='[1]Tasa de Falla'!E57 -> 132 | F57: ='[1]Tasa de Falla'!F57 -> 21 | G57: =IF('[1]Tasa de Falla'!IR57=0,"",'[1]Tasa de Falla'!IR57) ->  | H57: =IF('[1]Tasa de Falla'!IS57=0,"",'[1]Tasa de Falla'!IS57) ->  | I57: =IF('[1]Tasa de Falla'!IT57=0,"",'[1]Tasa de Falla'!IT57) ->  | J57: =IF('[1]Tasa de Falla'!IU57=0,"",'[1]Tasa de Falla'!IU57) ->  | K57: =IF('[1]Tasa de Falla'!IV57=0,"",'[1]Tasa de Falla'!IV57) ->  | L57: =IF('[1]Tasa de Falla'!IW57=0,"",'[1]Tasa de Falla'!IW57) -> 1 | M57: =IF('[1]Tasa de Falla'!IX57=0,"",'[1]Tasa de Falla'!IX57) ->  | N57: =IF('[1]Tasa de Falla'!IY57=0,"",'[1]Tasa de Falla'!IY57) ->  | O57: =IF('[1]Tasa de Falla'!IZ57=0,"",'[1]Tasa de Falla'!IZ57) ->  | P57: =IF('[1]Tasa de Falla'!JA57=0,"",'[1]Tasa de Falla'!JA57) ->  | Q57: =IF('[1]Tasa de Falla'!JB57=0,"",'[1]Tasa de Falla'!JB57) ->  | R57: =IF('[1]Tasa de Falla'!JC57=0,"",'[1]Tasa de Falla'!JC57) -> 
C58: ='[1]Tasa de Falla'!C58 -> 42 | D58: ='[1]Tasa de Falla'!D58 -> C.H. PUEBLO VIEJO - VILLA QUINTEROS | E58: ='[1]Tasa de Falla'!E58 -> 132 | F58: ='[1]Tasa de Falla'!F58 -> 24.5 | G58: =IF('[1]Tasa de Falla'!IR58=0,"",'[1]Tasa de Falla'!IR58) -> 3 | H58: =IF('[1]Tasa de Falla'!IS58=0,"",'[1]Tasa de Falla'!IS58) ->  | I58: =IF('[1]Tasa de Falla'!IT58=0,"",'[1]Tasa de Falla'!IT58) ->  | J58: =IF('[1]Tasa de Falla'!IU58=0,"",'[1]Tasa de Falla'!IU58) ->  | K58: =IF('[1]Tasa de Falla'!IV58=0,"",'[1]Tasa de Falla'!IV58) -> 1 | L58: =IF('[1]Tasa de Falla'!IW58=0,"",'[1]Tasa de Falla'!IW58) ->  | M58: =IF('[1]Tasa de Falla'!IX58=0,"",'[1]Tasa de Falla'!IX58) ->  | N58: =IF('[1]Tasa de Falla'!IY58=0,"",'[1]Tasa de Falla'!IY58) ->  | O58: =IF('[1]Tasa de Falla'!IZ58=0,"",'[1]Tasa de Falla'!IZ58) ->  | P58: =IF('[1]Tasa de Falla'!JA58=0,"",'[1]Tasa de Falla'!JA58) ->  | Q58: =IF('[1]Tasa de Falla'!JB58=0,"",'[1]Tasa de Falla'!JB58) ->  | R58: =IF('[1]Tasa de Falla'!JC58=0,"",'[1]Tasa de Falla'!JC58) -> 
C59: ='[1]Tasa de Falla'!C59 -> 43 | D59: ='[1]Tasa de Falla'!D59 -> C.H. RIO HONDO - VILLA QUINTEROS | E59: ='[1]Tasa de Falla'!E59 -> 132 | F59: ='[1]Tasa de Falla'!F59 -> 75.4 | G59: =IF('[1]Tasa de Falla'!IR59=0,"",'[1]Tasa de Falla'!IR59) ->  | H59: =IF('[1]Tasa de Falla'!IS59=0,"",'[1]Tasa de Falla'!IS59) ->  | I59: =IF('[1]Tasa de Falla'!IT59=0,"",'[1]Tasa de Falla'!IT59) ->  | J59: =IF('[1]Tasa de Falla'!IU59=0,"",'[1]Tasa de Falla'!IU59) ->  | K59: =IF('[1]Tasa de Falla'!IV59=0,"",'[1]Tasa de Falla'!IV59) ->  | L59: =IF('[1]Tasa de Falla'!IW59=0,"",'[1]Tasa de Falla'!IW59) ->  | M59: =IF('[1]Tasa de Falla'!IX59=0,"",'[1]Tasa de Falla'!IX59) ->  | N59: =IF('[1]Tasa de Falla'!IY59=0,"",'[1]Tasa de Falla'!IY59) ->  | O59: =IF('[1]Tasa de Falla'!IZ59=0,"",'[1]Tasa de Falla'!IZ59) ->  | P59: =IF('[1]Tasa de Falla'!JA59=0,"",'[1]Tasa de Falla'!JA59) ->  | Q59: =IF('[1]Tasa de Falla'!JB59=0,"",'[1]Tasa de Falla'!JB59) -> 1 | R59: =IF('[1]Tasa de Falla'!JC59=0,"",'[1]Tasa de Falla'!JC59) -> 
C60: ='[1]Tasa de Falla'!C60 -> 44 | D60: ='[1]Tasa de Falla'!D60 -> C.H. RIO HONDO - SANTIAGO CENTRO | E60: ='[1]Tasa de Falla'!E60 -> 132 | F60: ='[1]Tasa de Falla'!F60 -> 79 | G60: =IF('[1]Tasa de Falla'!IR60=0,"",'[1]Tasa de Falla'!IR60) -> XXXX | H60: =IF('[1]Tasa de Falla'!IS60=0,"",'[1]Tasa de Falla'!IS60) -> XXXX | I60: =IF('[1]Tasa de Falla'!IT60=0,"",'[1]Tasa de Falla'!IT60) -> XXXX | J60: =IF('[1]Tasa de Falla'!IU60=0,"",'[1]Tasa de Falla'!IU60) -> XXXX | K60: =IF('[1]Tasa de Falla'!IV60=0,"",'[1]Tasa de Falla'!IV60) -> XXXX | L60: =IF('[1]Tasa de Falla'!IW60=0,"",'[1]Tasa de Falla'!IW60) -> XXXX | M60: =IF('[1]Tasa de Falla'!IX60=0,"",'[1]Tasa de Falla'!IX60) -> XXXX | N60: =IF('[1]Tasa de Falla'!IY60=0,"",'[1]Tasa de Falla'!IY60) -> XXXX | O60: =IF('[1]Tasa de Falla'!IZ60=0,"",'[1]Tasa de Falla'!IZ60) -> XXXX | P60: =IF('[1]Tasa de Falla'!JA60=0,"",'[1]Tasa de Falla'!JA60) -> XXXX | Q60: =IF('[1]Tasa de Falla'!JB60=0,"",'[1]Tasa de Falla'!JB60) -> XXXX | R60: =IF('[1]Tasa de Falla'!JC60=0,"",'[1]Tasa de Falla'!JC60) -> XXXX
C61: ='[1]Tasa de Falla'!C61 -> 45 | D61: ='[1]Tasa de Falla'!D61 -> C.H. RIO HONDO - EL BRACHO | E61: ='[1]Tasa de Falla'!E61 -> 132 | F61: ='[1]Tasa de Falla'!F61 -> 80.66 | G61: =IF('[1]Tasa de Falla'!IR61=0,"",'[1]Tasa de Falla'!IR61) ->  | H61: =IF('[1]Tasa de Falla'!IS61=0,"",'[1]Tasa de Falla'!IS61) -> XXXX | I61: =IF('[1]Tasa de Falla'!IT61=0,"",'[1]Tasa de Falla'!IT61) -> XXXX | J61: =IF('[1]Tasa de Falla'!IU61=0,"",'[1]Tasa de Falla'!IU61) -> XXXX | K61: =IF('[1]Tasa de Falla'!IV61=0,"",'[1]Tasa de Falla'!IV61) -> XXXX | L61: =IF('[1]Tasa de Falla'!IW61=0,"",'[1]Tasa de Falla'!IW61) -> XXXX | M61: =IF('[1]Tasa de Falla'!IX61=0,"",'[1]Tasa de Falla'!IX61) -> XXXX | N61: =IF('[1]Tasa de Falla'!IY61=0,"",'[1]Tasa de Falla'!IY61) -> XXXX | O61: =IF('[1]Tasa de Falla'!IZ61=0,"",'[1]Tasa de Falla'!IZ61) -> XXXX | P61: =IF('[1]Tasa de Falla'!JA61=0,"",'[1]Tasa de Falla'!JA61) -> XXXX | Q61: =IF('[1]Tasa de Falla'!JB61=0,"",'[1]Tasa de Falla'!JB61) -> XXXX | R61: =IF('[1]Tasa de Falla'!JC61=0,"",'[1]Tasa de Falla'!JC61) -> XXXX
C62: ='[1]Tasa de Falla'!C62 -> 46 | D62: ='[1]Tasa de Falla'!D62 -> SALTA SUR - SALTA NORTE | E62: ='[1]Tasa de Falla'!E62 -> 132 | F62: ='[1]Tasa de Falla'!F62 -> 10 | G62: =IF('[1]Tasa de Falla'!IR62=0,"",'[1]Tasa de Falla'!IR62) ->  | H62: =IF('[1]Tasa de Falla'!IS62=0,"",'[1]Tasa de Falla'!IS62) ->  | I62: =IF('[1]Tasa de Falla'!IT62=0,"",'[1]Tasa de Falla'!IT62) ->  | J62: =IF('[1]Tasa de Falla'!IU62=0,"",'[1]Tasa de Falla'!IU62) ->  | K62: =IF('[1]Tasa de Falla'!IV62=0,"",'[1]Tasa de Falla'!IV62) ->  | L62: =IF('[1]Tasa de Falla'!IW62=0,"",'[1]Tasa de Falla'!IW62) ->  | M62: =IF('[1]Tasa de Falla'!IX62=0,"",'[1]Tasa de Falla'!IX62) ->  | N62: =IF('[1]Tasa de Falla'!IY62=0,"",'[1]Tasa de Falla'!IY62) ->  | O62: =IF('[1]Tasa de Falla'!IZ62=0,"",'[1]Tasa de Falla'!IZ62) ->  | P62: =IF('[1]Tasa de Falla'!JA62=0,"",'[1]Tasa de Falla'!JA62) ->  | Q62: =IF('[1]Tasa de Falla'!JB62=0,"",'[1]Tasa de Falla'!JB62) ->  | R62: =IF('[1]Tasa de Falla'!JC62=0,"",'[1]Tasa de Falla'!JC62) -> 
C63: ='[1]Tasa de Falla'!C63 -> 47 | D63: ='[1]Tasa de Falla'!D63 -> PALPALA - JUJUY ESTE | E63: ='[1]Tasa de Falla'!E63 -> 132 | F63: ='[1]Tasa de Falla'!F63 -> 12.3 | G63: =IF('[1]Tasa de Falla'!IR63=0,"",'[1]Tasa de Falla'!IR63) ->  | H63: =IF('[1]Tasa de Falla'!IS63=0,"",'[1]Tasa de Falla'!IS63) ->  | I63: =IF('[1]Tasa de Falla'!IT63=0,"",'[1]Tasa de Falla'!IT63) -> 1 | J63: =IF('[1]Tasa de Falla'!IU63=0,"",'[1]Tasa de Falla'!IU63) ->  | K63: =IF('[1]Tasa de Falla'!IV63=0,"",'[1]Tasa de Falla'!IV63) ->  | L63: =IF('[1]Tasa de Falla'!IW63=0,"",'[1]Tasa de Falla'!IW63) -> 1 | M63: =IF('[1]Tasa de Falla'!IX63=0,"",'[1]Tasa de Falla'!IX63) ->  | N63: =IF('[1]Tasa de Falla'!IY63=0,"",'[1]Tasa de Falla'!IY63) ->  | O63: =IF('[1]Tasa de Falla'!IZ63=0,"",'[1]Tasa de Falla'!IZ63) ->  | P63: =IF('[1]Tasa de Falla'!JA63=0,"",'[1]Tasa de Falla'!JA63) ->  | Q63: =IF('[1]Tasa de Falla'!JB63=0,"",'[1]Tasa de Falla'!JB63) ->  | R63: =IF('[1]Tasa de Falla'!JC63=0,"",'[1]Tasa de Falla'!JC63) -> 
C64: ='[1]Tasa de Falla'!C64 -> 48 | D64: ='[1]Tasa de Falla'!D64 -> JUJUY ESTE - JUJUY SUR | E64: ='[1]Tasa de Falla'!E64 -> 132 | F64: ='[1]Tasa de Falla'!F64 -> 4.3 | G64: =IF('[1]Tasa de Falla'!IR64=0,"",'[1]Tasa de Falla'!IR64) ->  | H64: =IF('[1]Tasa de Falla'!IS64=0,"",'[1]Tasa de Falla'!IS64) ->  | I64: =IF('[1]Tasa de Falla'!IT64=0,"",'[1]Tasa de Falla'!IT64) ->  | J64: =IF('[1]Tasa de Falla'!IU64=0,"",'[1]Tasa de Falla'!IU64) ->  | K64: =IF('[1]Tasa de Falla'!IV64=0,"",'[1]Tasa de Falla'!IV64) ->  | L64: =IF('[1]Tasa de Falla'!IW64=0,"",'[1]Tasa de Falla'!IW64) ->  | M64: =IF('[1]Tasa de Falla'!IX64=0,"",'[1]Tasa de Falla'!IX64) ->  | N64: =IF('[1]Tasa de Falla'!IY64=0,"",'[1]Tasa de Falla'!IY64) ->  | O64: =IF('[1]Tasa de Falla'!IZ64=0,"",'[1]Tasa de Falla'!IZ64) ->  | P64: =IF('[1]Tasa de Falla'!JA64=0,"",'[1]Tasa de Falla'!JA64) ->  | Q64: =IF('[1]Tasa de Falla'!JB64=0,"",'[1]Tasa de Falla'!JB64) ->  | R64: =IF('[1]Tasa de Falla'!JC64=0,"",'[1]Tasa de Falla'!JC64) -> 
C65: ='[1]Tasa de Falla'!C65 -> 49 | D65: ='[1]Tasa de Falla'!D65 -> CEVIL POZO - GUEMES | E65: ='[1]Tasa de Falla'!E65 -> 132 | F65: ='[1]Tasa de Falla'!F65 -> 291 | G65: =IF('[1]Tasa de Falla'!IR65=0,"",'[1]Tasa de Falla'!IR65) -> XXXX | H65: =IF('[1]Tasa de Falla'!IS65=0,"",'[1]Tasa de Falla'!IS65) -> XXXX | I65: =IF('[1]Tasa de Falla'!IT65=0,"",'[1]Tasa de Falla'!IT65) -> XXXX | J65: =IF('[1]Tasa de Falla'!IU65=0,"",'[1]Tasa de Falla'!IU65) -> XXXX | K65: =IF('[1]Tasa de Falla'!IV65=0,"",'[1]Tasa de Falla'!IV65) -> XXXX | L65: =IF('[1]Tasa de Falla'!IW65=0,"",'[1]Tasa de Falla'!IW65) -> XXXX | M65: =IF('[1]Tasa de Falla'!IX65=0,"",'[1]Tasa de Falla'!IX65) -> XXXX | N65: =IF('[1]Tasa de Falla'!IY65=0,"",'[1]Tasa de Falla'!IY65) -> XXXX | O65: =IF('[1]Tasa de Falla'!IZ65=0,"",'[1]Tasa de Falla'!IZ65) -> XXXX | P65: =IF('[1]Tasa de Falla'!JA65=0,"",'[1]Tasa de Falla'!JA65) -> XXXX | Q65: =IF('[1]Tasa de Falla'!JB65=0,"",'[1]Tasa de Falla'!JB65) -> XXXX | R65: =IF('[1]Tasa de Falla'!JC65=0,"",'[1]Tasa de Falla'!JC65) -> XXXX
C66: ='[1]Tasa de Falla'!C66 -> 50 | D66: ='[1]Tasa de Falla'!D66 -> CEVIL POZO - EL BRACHO | E66: ='[1]Tasa de Falla'!E66 -> 132 | F66: ='[1]Tasa de Falla'!F66 -> 17 | G66: =IF('[1]Tasa de Falla'!IR66=0,"",'[1]Tasa de Falla'!IR66) ->  | H66: =IF('[1]Tasa de Falla'!IS66=0,"",'[1]Tasa de Falla'!IS66) ->  | I66: =IF('[1]Tasa de Falla'!IT66=0,"",'[1]Tasa de Falla'!IT66) ->  | J66: =IF('[1]Tasa de Falla'!IU66=0,"",'[1]Tasa de Falla'!IU66) ->  | K66: =IF('[1]Tasa de Falla'!IV66=0,"",'[1]Tasa de Falla'!IV66) ->  | L66: =IF('[1]Tasa de Falla'!IW66=0,"",'[1]Tasa de Falla'!IW66) ->  | M66: =IF('[1]Tasa de Falla'!IX66=0,"",'[1]Tasa de Falla'!IX66) ->  | N66: =IF('[1]Tasa de Falla'!IY66=0,"",'[1]Tasa de Falla'!IY66) ->  | O66: =IF('[1]Tasa de Falla'!IZ66=0,"",'[1]Tasa de Falla'!IZ66) ->  | P66: =IF('[1]Tasa de Falla'!JA66=0,"",'[1]Tasa de Falla'!JA66) ->  | Q66: =IF('[1]Tasa de Falla'!JB66=0,"",'[1]Tasa de Falla'!JB66) ->  | R66: =IF('[1]Tasa de Falla'!JC66=0,"",'[1]Tasa de Falla'!JC66) -> 
C67: ='[1]Tasa de Falla'!C67 -> 0 | D67: ='[1]Tasa de Falla'!D67 -> 0 | E67: ='[1]Tasa de Falla'!E67 -> 0 | F67: ='[1]Tasa de Falla'!F67 -> 0 | G67: =IF('[1]Tasa de Falla'!IR67=0,"",'[1]Tasa de Falla'!IR67) ->  | H67: =IF('[1]Tasa de Falla'!IS67=0,"",'[1]Tasa de Falla'!IS67) ->  | I67: =IF('[1]Tasa de Falla'!IT67=0,"",'[1]Tasa de Falla'!IT67) ->  | J67: =IF('[1]Tasa de Falla'!IU67=0,"",'[1]Tasa de Falla'!IU67) ->  | K67: =IF('[1]Tasa de Falla'!IV67=0,"",'[1]Tasa de Falla'!IV67) ->  | L67: =IF('[1]Tasa de Falla'!IW67=0,"",'[1]Tasa de Falla'!IW67) ->  | M67: =IF('[1]Tasa de Falla'!IX67=0,"",'[1]Tasa de Falla'!IX67) ->  | N67: =IF('[1]Tasa de Falla'!IY67=0,"",'[1]Tasa de Falla'!IY67) ->  | O67: =IF('[1]Tasa de Falla'!IZ67=0,"",'[1]Tasa de Falla'!IZ67) ->  | P67: =IF('[1]Tasa de Falla'!JA67=0,"",'[1]Tasa de Falla'!JA67) ->  | Q67: =IF('[1]Tasa de Falla'!JB67=0,"",'[1]Tasa de Falla'!JB67) ->  | R67: =IF('[1]Tasa de Falla'!JC67=0,"",'[1]Tasa de Falla'!JC67) -> 
C68: ='[1]Tasa de Falla'!C68 -> 51 | D68: ='[1]Tasa de Falla'!D68 -> METAN - EL TUNAL | E68: ='[1]Tasa de Falla'!E68 -> 132 | F68: ='[1]Tasa de Falla'!F68 -> 75.6 | G68: =IF('[1]Tasa de Falla'!IR68=0,"",'[1]Tasa de Falla'!IR68) ->  | H68: =IF('[1]Tasa de Falla'!IS68=0,"",'[1]Tasa de Falla'!IS68) ->  | I68: =IF('[1]Tasa de Falla'!IT68=0,"",'[1]Tasa de Falla'!IT68) ->  | J68: =IF('[1]Tasa de Falla'!IU68=0,"",'[1]Tasa de Falla'!IU68) ->  | K68: =IF('[1]Tasa de Falla'!IV68=0,"",'[1]Tasa de Falla'!IV68) ->  | L68: =IF('[1]Tasa de Falla'!IW68=0,"",'[1]Tasa de Falla'!IW68) ->  | M68: =IF('[1]Tasa de Falla'!IX68=0,"",'[1]Tasa de Falla'!IX68) ->  | N68: =IF('[1]Tasa de Falla'!IY68=0,"",'[1]Tasa de Falla'!IY68) ->  | O68: =IF('[1]Tasa de Falla'!IZ68=0,"",'[1]Tasa de Falla'!IZ68) ->  | P68: =IF('[1]Tasa de Falla'!JA68=0,"",'[1]Tasa de Falla'!JA68) ->  | Q68: =IF('[1]Tasa de Falla'!JB68=0,"",'[1]Tasa de Falla'!JB68) ->  | R68: =IF('[1]Tasa de Falla'!JC68=0,"",'[1]Tasa de Falla'!JC68) -> 
C69: ='[1]Tasa de Falla'!C69 -> 52 | D69: ='[1]Tasa de Falla'!D69 -> EL TUNAL - J.V. GONZALEZ | E69: ='[1]Tasa de Falla'!E69 -> 132 | F69: ='[1]Tasa de Falla'!F69 -> 41.4 | G69: =IF('[1]Tasa de Falla'!IR69=0,"",'[1]Tasa de Falla'!IR69) ->  | H69: =IF('[1]Tasa de Falla'!IS69=0,"",'[1]Tasa de Falla'!IS69) ->  | I69: =IF('[1]Tasa de Falla'!IT69=0,"",'[1]Tasa de Falla'!IT69) ->  | J69: =IF('[1]Tasa de Falla'!IU69=0,"",'[1]Tasa de Falla'!IU69) ->  | K69: =IF('[1]Tasa de Falla'!IV69=0,"",'[1]Tasa de Falla'!IV69) ->  | L69: =IF('[1]Tasa de Falla'!IW69=0,"",'[1]Tasa de Falla'!IW69) ->  | M69: =IF('[1]Tasa de Falla'!IX69=0,"",'[1]Tasa de Falla'!IX69) ->  | N69: =IF('[1]Tasa de Falla'!IY69=0,"",'[1]Tasa de Falla'!IY69) ->  | O69: =IF('[1]Tasa de Falla'!IZ69=0,"",'[1]Tasa de Falla'!IZ69) ->  | P69: =IF('[1]Tasa de Falla'!JA69=0,"",'[1]Tasa de Falla'!JA69) ->  | Q69: =IF('[1]Tasa de Falla'!JB69=0,"",'[1]Tasa de Falla'!JB69) ->  | R69: =IF('[1]Tasa de Falla'!JC69=0,"",'[1]Tasa de Falla'!JC69) -> 
C70: ='[1]Tasa de Falla'!C70 -> 0 | D70: ='[1]Tasa de Falla'!D70 -> 0 | E70: ='[1]Tasa de Falla'!E70 -> 0 | F70: ='[1]Tasa de Falla'!F70 -> 0 | G70: =IF('[1]Tasa de Falla'!IR70=0,"",'[1]Tasa de Falla'!IR70) ->  | H70: =IF('[1]Tasa de Falla'!IS70=0,"",'[1]Tasa de Falla'!IS70) ->  | I70: =IF('[1]Tasa de Falla'!IT70=0,"",'[1]Tasa de Falla'!IT70) ->  | J70: =IF('[1]Tasa de Falla'!IU70=0,"",'[1]Tasa de Falla'!IU70) ->  | K70: =IF('[1]Tasa de Falla'!IV70=0,"",'[1]Tasa de Falla'!IV70) ->  | L70: =IF('[1]Tasa de Falla'!IW70=0,"",'[1]Tasa de Falla'!IW70) ->  | M70: =IF('[1]Tasa de Falla'!IX70=0,"",'[1]Tasa de Falla'!IX70) ->  | N70: =IF('[1]Tasa de Falla'!IY70=0,"",'[1]Tasa de Falla'!IY70) ->  | O70: =IF('[1]Tasa de Falla'!IZ70=0,"",'[1]Tasa de Falla'!IZ70) ->  | P70: =IF('[1]Tasa de Falla'!JA70=0,"",'[1]Tasa de Falla'!JA70) ->  | Q70: =IF('[1]Tasa de Falla'!JB70=0,"",'[1]Tasa de Falla'!JB70) ->  | R70: =IF('[1]Tasa de Falla'!JC70=0,"",'[1]Tasa de Falla'!JC70) -> 
C71: ='[1]Tasa de Falla'!C71 -> 53 | D71: ='[1]Tasa de Falla'!D71 -> LOS PIZARROS - ESCABA | E71: ='[1]Tasa de Falla'!E71 -> 132 | F71: ='[1]Tasa de Falla'!F71 -> 21.4 | G71: =IF('[1]Tasa de Falla'!IR71=0,"",'[1]Tasa de Falla'!IR71) -> 1 | H71: =IF('[1]Tasa de Falla'!IS71=0,"",'[1]Tasa de Falla'!IS71) ->  | I71: =IF('[1]Tasa de Falla'!IT71=0,"",'[1]Tasa de Falla'!IT71) -> 1 | J71: =IF('[1]Tasa de Falla'!IU71=0,"",'[1]Tasa de Falla'!IU71) ->  | K71: =IF('[1]Tasa de Falla'!IV71=0,"",'[1]Tasa de Falla'!IV71) -> 1 | L71: =IF('[1]Tasa de Falla'!IW71=0,"",'[1]Tasa de Falla'!IW71) ->  | M71: =IF('[1]Tasa de Falla'!IX71=0,"",'[1]Tasa de Falla'!IX71) ->  | N71: =IF('[1]Tasa de Falla'!IY71=0,"",'[1]Tasa de Falla'!IY71) ->  | O71: =IF('[1]Tasa de Falla'!IZ71=0,"",'[1]Tasa de Falla'!IZ71) ->  | P71: =IF('[1]Tasa de Falla'!JA71=0,"",'[1]Tasa de Falla'!JA71) ->  | Q71: =IF('[1]Tasa de Falla'!JB71=0,"",'[1]Tasa de Falla'!JB71) -> 1 | R71: =IF('[1]Tasa de Falla'!JC71=0,"",'[1]Tasa de Falla'!JC71) -> 
C72: ='[1]Tasa de Falla'!C72 -> 54 | D72: ='[1]Tasa de Falla'!D72 -> LOS PIZARROS - LA COCHA | E72: ='[1]Tasa de Falla'!E72 -> 132 | F72: ='[1]Tasa de Falla'!F72 -> 6.5 | G72: =IF('[1]Tasa de Falla'!IR72=0,"",'[1]Tasa de Falla'!IR72) ->  | H72: =IF('[1]Tasa de Falla'!IS72=0,"",'[1]Tasa de Falla'!IS72) ->  | I72: =IF('[1]Tasa de Falla'!IT72=0,"",'[1]Tasa de Falla'!IT72) ->  | J72: =IF('[1]Tasa de Falla'!IU72=0,"",'[1]Tasa de Falla'!IU72) ->  | K72: =IF('[1]Tasa de Falla'!IV72=0,"",'[1]Tasa de Falla'!IV72) ->  | L72: =IF('[1]Tasa de Falla'!IW72=0,"",'[1]Tasa de Falla'!IW72) ->  | M72: =IF('[1]Tasa de Falla'!IX72=0,"",'[1]Tasa de Falla'!IX72) ->  | N72: =IF('[1]Tasa de Falla'!IY72=0,"",'[1]Tasa de Falla'!IY72) ->  | O72: =IF('[1]Tasa de Falla'!IZ72=0,"",'[1]Tasa de Falla'!IZ72) ->  | P72: =IF('[1]Tasa de Falla'!JA72=0,"",'[1]Tasa de Falla'!JA72) ->  | Q72: =IF('[1]Tasa de Falla'!JB72=0,"",'[1]Tasa de Falla'!JB72) ->  | R72: =IF('[1]Tasa de Falla'!JC72=0,"",'[1]Tasa de Falla'!JC72) -> 
C73: ='[1]Tasa de Falla'!C73 -> 55 | D73: ='[1]Tasa de Falla'!D73 -> HUACRA - LOS PIZARROS | E73: ='[1]Tasa de Falla'!E73 -> 132 | F73: ='[1]Tasa de Falla'!F73 -> 28.5 | G73: =IF('[1]Tasa de Falla'!IR73=0,"",'[1]Tasa de Falla'!IR73) ->  | H73: =IF('[1]Tasa de Falla'!IS73=0,"",'[1]Tasa de Falla'!IS73) ->  | I73: =IF('[1]Tasa de Falla'!IT73=0,"",'[1]Tasa de Falla'!IT73) -> 1 | J73: =IF('[1]Tasa de Falla'!IU73=0,"",'[1]Tasa de Falla'!IU73) -> 1 | K73: =IF('[1]Tasa de Falla'!IV73=0,"",'[1]Tasa de Falla'!IV73) ->  | L73: =IF('[1]Tasa de Falla'!IW73=0,"",'[1]Tasa de Falla'!IW73) ->  | M73: =IF('[1]Tasa de Falla'!IX73=0,"",'[1]Tasa de Falla'!IX73) ->  | N73: =IF('[1]Tasa de Falla'!IY73=0,"",'[1]Tasa de Falla'!IY73) ->  | O73: =IF('[1]Tasa de Falla'!IZ73=0,"",'[1]Tasa de Falla'!IZ73) ->  | P73: =IF('[1]Tasa de Falla'!JA73=0,"",'[1]Tasa de Falla'!JA73) ->  | Q73: =IF('[1]Tasa de Falla'!JB73=0,"",'[1]Tasa de Falla'!JB73) ->  | R73: =IF('[1]Tasa de Falla'!JC73=0,"",'[1]Tasa de Falla'!JC73) -> 
C74: ='[1]Tasa de Falla'!C74 -> 56 | D74: ='[1]Tasa de Falla'!D74 -> CEVIL POZO - AVELLANEDA | E74: ='[1]Tasa de Falla'!E74 -> 132 | F74: ='[1]Tasa de Falla'!F74 -> 8 | G74: =IF('[1]Tasa de Falla'!IR74=0,"",'[1]Tasa de Falla'!IR74) ->  | H74: =IF('[1]Tasa de Falla'!IS74=0,"",'[1]Tasa de Falla'!IS74) ->  | I74: =IF('[1]Tasa de Falla'!IT74=0,"",'[1]Tasa de Falla'!IT74) ->  | J74: =IF('[1]Tasa de Falla'!IU74=0,"",'[1]Tasa de Falla'!IU74) ->  | K74: =IF('[1]Tasa de Falla'!IV74=0,"",'[1]Tasa de Falla'!IV74) ->  | L74: =IF('[1]Tasa de Falla'!IW74=0,"",'[1]Tasa de Falla'!IW74) ->  | M74: =IF('[1]Tasa de Falla'!IX74=0,"",'[1]Tasa de Falla'!IX74) ->  | N74: =IF('[1]Tasa de Falla'!IY74=0,"",'[1]Tasa de Falla'!IY74) ->  | O74: =IF('[1]Tasa de Falla'!IZ74=0,"",'[1]Tasa de Falla'!IZ74) ->  | P74: =IF('[1]Tasa de Falla'!JA74=0,"",'[1]Tasa de Falla'!JA74) ->  | Q74: =IF('[1]Tasa de Falla'!JB74=0,"",'[1]Tasa de Falla'!JB74) ->  | R74: =IF('[1]Tasa de Falla'!JC74=0,"",'[1]Tasa de Falla'!JC74) -> 
C75: ='[1]Tasa de Falla'!C75 -> 57 | D75: ='[1]Tasa de Falla'!D75 -> CABRA CORRAL - SALTA ESTE | E75: ='[1]Tasa de Falla'!E75 -> 132 | F75: ='[1]Tasa de Falla'!F75 -> 55 | G75: =IF('[1]Tasa de Falla'!IR75=0,"",'[1]Tasa de Falla'!IR75) -> 1 | H75: =IF('[1]Tasa de Falla'!IS75=0,"",'[1]Tasa de Falla'!IS75) ->  | I75: =IF('[1]Tasa de Falla'!IT75=0,"",'[1]Tasa de Falla'!IT75) ->  | J75: =IF('[1]Tasa de Falla'!IU75=0,"",'[1]Tasa de Falla'!IU75) -> 1 | K75: =IF('[1]Tasa de Falla'!IV75=0,"",'[1]Tasa de Falla'!IV75) ->  | L75: =IF('[1]Tasa de Falla'!IW75=0,"",'[1]Tasa de Falla'!IW75) -> 1 | M75: =IF('[1]Tasa de Falla'!IX75=0,"",'[1]Tasa de Falla'!IX75) ->  | N75: =IF('[1]Tasa de Falla'!IY75=0,"",'[1]Tasa de Falla'!IY75) ->  | O75: =IF('[1]Tasa de Falla'!IZ75=0,"",'[1]Tasa de Falla'!IZ75) -> 1 | P75: =IF('[1]Tasa de Falla'!JA75=0,"",'[1]Tasa de Falla'!JA75) ->  | Q75: =IF('[1]Tasa de Falla'!JB75=0,"",'[1]Tasa de Falla'!JB75) ->  | R75: =IF('[1]Tasa de Falla'!JC75=0,"",'[1]Tasa de Falla'!JC75) -> 
C76: ='[1]Tasa de Falla'!C76 -> 58 | D76: ='[1]Tasa de Falla'!D76 -> SALTA ESTE - SALTA SUR | E76: ='[1]Tasa de Falla'!E76 -> 132 | F76: ='[1]Tasa de Falla'!F76 -> 7 | G76: =IF('[1]Tasa de Falla'!IR76=0,"",'[1]Tasa de Falla'!IR76) ->  | H76: =IF('[1]Tasa de Falla'!IS76=0,"",'[1]Tasa de Falla'!IS76) ->  | I76: =IF('[1]Tasa de Falla'!IT76=0,"",'[1]Tasa de Falla'!IT76) ->  | J76: =IF('[1]Tasa de Falla'!IU76=0,"",'[1]Tasa de Falla'!IU76) ->  | K76: =IF('[1]Tasa de Falla'!IV76=0,"",'[1]Tasa de Falla'!IV76) ->  | L76: =IF('[1]Tasa de Falla'!IW76=0,"",'[1]Tasa de Falla'!IW76) ->  | M76: =IF('[1]Tasa de Falla'!IX76=0,"",'[1]Tasa de Falla'!IX76) ->  | N76: =IF('[1]Tasa de Falla'!IY76=0,"",'[1]Tasa de Falla'!IY76) ->  | O76: =IF('[1]Tasa de Falla'!IZ76=0,"",'[1]Tasa de Falla'!IZ76) ->  | P76: =IF('[1]Tasa de Falla'!JA76=0,"",'[1]Tasa de Falla'!JA76) ->  | Q76: =IF('[1]Tasa de Falla'!JB76=0,"",'[1]Tasa de Falla'!JB76) ->  | R76: =IF('[1]Tasa de Falla'!JC76=0,"",'[1]Tasa de Falla'!JC76) -> 
C77: ='[1]Tasa de Falla'!C77 -> 59 | D77: ='[1]Tasa de Falla'!D77 -> V. QUINTEROS - ACONQUIJA - ANDALGALA | E77: ='[1]Tasa de Falla'!E77 -> 132 | F77: ='[1]Tasa de Falla'!F77 -> 102 | G77: =IF('[1]Tasa de Falla'!IR77=0,"",'[1]Tasa de Falla'!IR77) ->  | H77: =IF('[1]Tasa de Falla'!IS77=0,"",'[1]Tasa de Falla'!IS77) ->  | I77: =IF('[1]Tasa de Falla'!IT77=0,"",'[1]Tasa de Falla'!IT77) ->  | J77: =IF('[1]Tasa de Falla'!IU77=0,"",'[1]Tasa de Falla'!IU77) -> 2 | K77: =IF('[1]Tasa de Falla'!IV77=0,"",'[1]Tasa de Falla'!IV77) -> 1 | L77: =IF('[1]Tasa de Falla'!IW77=0,"",'[1]Tasa de Falla'!IW77) ->  | M77: =IF('[1]Tasa de Falla'!IX77=0,"",'[1]Tasa de Falla'!IX77) ->  | N77: =IF('[1]Tasa de Falla'!IY77=0,"",'[1]Tasa de Falla'!IY77) ->  | O77: =IF('[1]Tasa de Falla'!IZ77=0,"",'[1]Tasa de Falla'!IZ77) ->  | P77: =IF('[1]Tasa de Falla'!JA77=0,"",'[1]Tasa de Falla'!JA77) -> 1 | Q77: =IF('[1]Tasa de Falla'!JB77=0,"",'[1]Tasa de Falla'!JB77) ->  | R77: =IF('[1]Tasa de Falla'!JC77=0,"",'[1]Tasa de Falla'!JC77) -> 2
C78: ='[1]Tasa de Falla'!C78 -> 60 | D78: ='[1]Tasa de Falla'!D78 -> ANDALGALA - BELEN | E78: ='[1]Tasa de Falla'!E78 -> 132 | F78: ='[1]Tasa de Falla'!F78 -> 80.3 | G78: =IF('[1]Tasa de Falla'!IR78=0,"",'[1]Tasa de Falla'!IR78) ->  | H78: =IF('[1]Tasa de Falla'!IS78=0,"",'[1]Tasa de Falla'!IS78) ->  | I78: =IF('[1]Tasa de Falla'!IT78=0,"",'[1]Tasa de Falla'!IT78) ->  | J78: =IF('[1]Tasa de Falla'!IU78=0,"",'[1]Tasa de Falla'!IU78) -> 1 | K78: =IF('[1]Tasa de Falla'!IV78=0,"",'[1]Tasa de Falla'!IV78) ->  | L78: =IF('[1]Tasa de Falla'!IW78=0,"",'[1]Tasa de Falla'!IW78) ->  | M78: =IF('[1]Tasa de Falla'!IX78=0,"",'[1]Tasa de Falla'!IX78) ->  | N78: =IF('[1]Tasa de Falla'!IY78=0,"",'[1]Tasa de Falla'!IY78) ->  | O78: =IF('[1]Tasa de Falla'!IZ78=0,"",'[1]Tasa de Falla'!IZ78) ->  | P78: =IF('[1]Tasa de Falla'!JA78=0,"",'[1]Tasa de Falla'!JA78) ->  | Q78: =IF('[1]Tasa de Falla'!JB78=0,"",'[1]Tasa de Falla'!JB78) ->  | R78: =IF('[1]Tasa de Falla'!JC78=0,"",'[1]Tasa de Falla'!JC78) -> 
C79: ='[1]Tasa de Falla'!C79 -> 61 | D79: ='[1]Tasa de Falla'!D79 -> TUCUMAN NORTE - TRANCAS | E79: ='[1]Tasa de Falla'!E79 -> 132 | F79: ='[1]Tasa de Falla'!F79 -> 75 | G79: =IF('[1]Tasa de Falla'!IR79=0,"",'[1]Tasa de Falla'!IR79) ->  | H79: =IF('[1]Tasa de Falla'!IS79=0,"",'[1]Tasa de Falla'!IS79) ->  | I79: =IF('[1]Tasa de Falla'!IT79=0,"",'[1]Tasa de Falla'!IT79) ->  | J79: =IF('[1]Tasa de Falla'!IU79=0,"",'[1]Tasa de Falla'!IU79) ->  | K79: =IF('[1]Tasa de Falla'!IV79=0,"",'[1]Tasa de Falla'!IV79) ->  | L79: =IF('[1]Tasa de Falla'!IW79=0,"",'[1]Tasa de Falla'!IW79) ->  | M79: =IF('[1]Tasa de Falla'!IX79=0,"",'[1]Tasa de Falla'!IX79) ->  | N79: =IF('[1]Tasa de Falla'!IY79=0,"",'[1]Tasa de Falla'!IY79) ->  | O79: =IF('[1]Tasa de Falla'!IZ79=0,"",'[1]Tasa de Falla'!IZ79) -> 1 | P79: =IF('[1]Tasa de Falla'!JA79=0,"",'[1]Tasa de Falla'!JA79) ->  | Q79: =IF('[1]Tasa de Falla'!JB79=0,"",'[1]Tasa de Falla'!JB79) ->  | R79: =IF('[1]Tasa de Falla'!JC79=0,"",'[1]Tasa de Falla'!JC79) -> 
C80: ='[1]Tasa de Falla'!C80 -> 62 | D80: ='[1]Tasa de Falla'!D80 -> CABRA CORRAL - TRANCAS | E80: ='[1]Tasa de Falla'!E80 -> 132 | F80: ='[1]Tasa de Falla'!F80 -> 115 | G80: =IF('[1]Tasa de Falla'!IR80=0,"",'[1]Tasa de Falla'!IR80) -> XXXX | H80: =IF('[1]Tasa de Falla'!IS80=0,"",'[1]Tasa de Falla'!IS80) -> XXXX | I80: =IF('[1]Tasa de Falla'!IT80=0,"",'[1]Tasa de Falla'!IT80) -> XXXX | J80: =IF('[1]Tasa de Falla'!IU80=0,"",'[1]Tasa de Falla'!IU80) -> XXXX | K80: =IF('[1]Tasa de Falla'!IV80=0,"",'[1]Tasa de Falla'!IV80) -> XXXX | L80: =IF('[1]Tasa de Falla'!IW80=0,"",'[1]Tasa de Falla'!IW80) -> XXXX | M80: =IF('[1]Tasa de Falla'!IX80=0,"",'[1]Tasa de Falla'!IX80) -> XXXX | N80: =IF('[1]Tasa de Falla'!IY80=0,"",'[1]Tasa de Falla'!IY80) -> XXXX | O80: =IF('[1]Tasa de Falla'!IZ80=0,"",'[1]Tasa de Falla'!IZ80) -> XXXX | P80: =IF('[1]Tasa de Falla'!JA80=0,"",'[1]Tasa de Falla'!JA80) -> XXXX | Q80: =IF('[1]Tasa de Falla'!JB80=0,"",'[1]Tasa de Falla'!JB80) -> XXXX | R80: =IF('[1]Tasa de Falla'!JC80=0,"",'[1]Tasa de Falla'!JC80) -> XXXX
C81: ='[1]Tasa de Falla'!C81 -> 63 | D81: ='[1]Tasa de Falla'!D81 -> LAS MADERAS - JUJUY SUR | E81: ='[1]Tasa de Falla'!E81 -> 132 | F81: ='[1]Tasa de Falla'!F81 -> 27.6 | G81: =IF('[1]Tasa de Falla'!IR81=0,"",'[1]Tasa de Falla'!IR81) ->  | H81: =IF('[1]Tasa de Falla'!IS81=0,"",'[1]Tasa de Falla'!IS81) ->  | I81: =IF('[1]Tasa de Falla'!IT81=0,"",'[1]Tasa de Falla'!IT81) -> 1 | J81: =IF('[1]Tasa de Falla'!IU81=0,"",'[1]Tasa de Falla'!IU81) ->  | K81: =IF('[1]Tasa de Falla'!IV81=0,"",'[1]Tasa de Falla'!IV81) ->  | L81: =IF('[1]Tasa de Falla'!IW81=0,"",'[1]Tasa de Falla'!IW81) ->  | M81: =IF('[1]Tasa de Falla'!IX81=0,"",'[1]Tasa de Falla'!IX81) ->  | N81: =IF('[1]Tasa de Falla'!IY81=0,"",'[1]Tasa de Falla'!IY81) ->  | O81: =IF('[1]Tasa de Falla'!IZ81=0,"",'[1]Tasa de Falla'!IZ81) ->  | P81: =IF('[1]Tasa de Falla'!JA81=0,"",'[1]Tasa de Falla'!JA81) ->  | Q81: =IF('[1]Tasa de Falla'!JB81=0,"",'[1]Tasa de Falla'!JB81) ->  | R81: =IF('[1]Tasa de Falla'!JC81=0,"",'[1]Tasa de Falla'!JC81) -> 
C82: ='[1]Tasa de Falla'!C82 -> 64 | D82: ='[1]Tasa de Falla'!D82 -> BELEN - TINOGASTA | E82: ='[1]Tasa de Falla'!E82 -> 132 | F82: ='[1]Tasa de Falla'!F82 -> 72 | G82: =IF('[1]Tasa de Falla'!IR82=0,"",'[1]Tasa de Falla'!IR82) ->  | H82: =IF('[1]Tasa de Falla'!IS82=0,"",'[1]Tasa de Falla'!IS82) -> 1 | I82: =IF('[1]Tasa de Falla'!IT82=0,"",'[1]Tasa de Falla'!IT82) ->  | J82: =IF('[1]Tasa de Falla'!IU82=0,"",'[1]Tasa de Falla'!IU82) ->  | K82: =IF('[1]Tasa de Falla'!IV82=0,"",'[1]Tasa de Falla'!IV82) ->  | L82: =IF('[1]Tasa de Falla'!IW82=0,"",'[1]Tasa de Falla'!IW82) ->  | M82: =IF('[1]Tasa de Falla'!IX82=0,"",'[1]Tasa de Falla'!IX82) ->  | N82: =IF('[1]Tasa de Falla'!IY82=0,"",'[1]Tasa de Falla'!IY82) ->  | O82: =IF('[1]Tasa de Falla'!IZ82=0,"",'[1]Tasa de Falla'!IZ82) ->  | P82: =IF('[1]Tasa de Falla'!JA82=0,"",'[1]Tasa de Falla'!JA82) ->  | Q82: =IF('[1]Tasa de Falla'!JB82=0,"",'[1]Tasa de Falla'!JB82) ->  | R82: =IF('[1]Tasa de Falla'!JC82=0,"",'[1]Tasa de Falla'!JC82) -> 
C83: ='[1]Tasa de Falla'!C83 -> 65 | D83: ='[1]Tasa de Falla'!D83 -> BURRUYACU - CEVIL POZO | E83: ='[1]Tasa de Falla'!E83 -> 132 | F83: ='[1]Tasa de Falla'!F83 -> 56 | G83: =IF('[1]Tasa de Falla'!IR83=0,"",'[1]Tasa de Falla'!IR83) -> 1 | H83: =IF('[1]Tasa de Falla'!IS83=0,"",'[1]Tasa de Falla'!IS83) ->  | I83: =IF('[1]Tasa de Falla'!IT83=0,"",'[1]Tasa de Falla'!IT83) ->  | J83: =IF('[1]Tasa de Falla'!IU83=0,"",'[1]Tasa de Falla'!IU83) -> 1 | K83: =IF('[1]Tasa de Falla'!IV83=0,"",'[1]Tasa de Falla'!IV83) -> 1 | L83: =IF('[1]Tasa de Falla'!IW83=0,"",'[1]Tasa de Falla'!IW83) ->  | M83: =IF('[1]Tasa de Falla'!IX83=0,"",'[1]Tasa de Falla'!IX83) ->  | N83: =IF('[1]Tasa de Falla'!IY83=0,"",'[1]Tasa de Falla'!IY83) ->  | O83: =IF('[1]Tasa de Falla'!IZ83=0,"",'[1]Tasa de Falla'!IZ83) ->  | P83: =IF('[1]Tasa de Falla'!JA83=0,"",'[1]Tasa de Falla'!JA83) ->  | Q83: =IF('[1]Tasa de Falla'!JB83=0,"",'[1]Tasa de Falla'!JB83) ->  | R83: =IF('[1]Tasa de Falla'!JC83=0,"",'[1]Tasa de Falla'!JC83) -> 
C84: ='[1]Tasa de Falla'!C84 -> 66 | D84: ='[1]Tasa de Falla'!D84 -> GÜEMES - BURRUYACU | E84: ='[1]Tasa de Falla'!E84 -> 132 | F84: ='[1]Tasa de Falla'!F84 -> 235.1 | G84: =IF('[1]Tasa de Falla'!IR84=0,"",'[1]Tasa de Falla'!IR84) -> XXXX | H84: =IF('[1]Tasa de Falla'!IS84=0,"",'[1]Tasa de Falla'!IS84) -> XXXX | I84: =IF('[1]Tasa de Falla'!IT84=0,"",'[1]Tasa de Falla'!IT84) -> XXXX | J84: =IF('[1]Tasa de Falla'!IU84=0,"",'[1]Tasa de Falla'!IU84) -> XXXX | K84: =IF('[1]Tasa de Falla'!IV84=0,"",'[1]Tasa de Falla'!IV84) -> XXXX | L84: =IF('[1]Tasa de Falla'!IW84=0,"",'[1]Tasa de Falla'!IW84) -> XXXX | M84: =IF('[1]Tasa de Falla'!IX84=0,"",'[1]Tasa de Falla'!IX84) -> XXXX | N84: =IF('[1]Tasa de Falla'!IY84=0,"",'[1]Tasa de Falla'!IY84) -> XXXX | O84: =IF('[1]Tasa de Falla'!IZ84=0,"",'[1]Tasa de Falla'!IZ84) -> XXXX | P84: =IF('[1]Tasa de Falla'!JA84=0,"",'[1]Tasa de Falla'!JA84) -> XXXX | Q84: =IF('[1]Tasa de Falla'!JB84=0,"",'[1]Tasa de Falla'!JB84) -> XXXX | R84: =IF('[1]Tasa de Falla'!JC84=0,"",'[1]Tasa de Falla'!JC84) -> XXXX
C85: ='[1]Tasa de Falla'!C85 -> 67 | D85: ='[1]Tasa de Falla'!D85 -> FRIAS - RECREO | E85: ='[1]Tasa de Falla'!E85 -> 132 | F85: ='[1]Tasa de Falla'!F85 -> 74.54 | G85: =IF('[1]Tasa de Falla'!IR85=0,"",'[1]Tasa de Falla'!IR85) ->  | H85: =IF('[1]Tasa de Falla'!IS85=0,"",'[1]Tasa de Falla'!IS85) ->  | I85: =IF('[1]Tasa de Falla'!IT85=0,"",'[1]Tasa de Falla'!IT85) ->  | J85: =IF('[1]Tasa de Falla'!IU85=0,"",'[1]Tasa de Falla'!IU85) ->  | K85: =IF('[1]Tasa de Falla'!IV85=0,"",'[1]Tasa de Falla'!IV85) ->  | L85: =IF('[1]Tasa de Falla'!IW85=0,"",'[1]Tasa de Falla'!IW85) ->  | M85: =IF('[1]Tasa de Falla'!IX85=0,"",'[1]Tasa de Falla'!IX85) ->  | N85: =IF('[1]Tasa de Falla'!IY85=0,"",'[1]Tasa de Falla'!IY85) ->  | O85: =IF('[1]Tasa de Falla'!IZ85=0,"",'[1]Tasa de Falla'!IZ85) ->  | P85: =IF('[1]Tasa de Falla'!JA85=0,"",'[1]Tasa de Falla'!JA85) ->  | Q85: =IF('[1]Tasa de Falla'!JB85=0,"",'[1]Tasa de Falla'!JB85) ->  | R85: =IF('[1]Tasa de Falla'!JC85=0,"",'[1]Tasa de Falla'!JC85) -> 
C86: ='[1]Tasa de Falla'!C86 -> 68 | D86: ='[1]Tasa de Falla'!D86 -> RECREO - LA RIOJA 1 | E86: ='[1]Tasa de Falla'!E86 -> 132 | F86: ='[1]Tasa de Falla'!F86 -> 221 | G86: =IF('[1]Tasa de Falla'!IR86=0,"",'[1]Tasa de Falla'!IR86) ->  | H86: =IF('[1]Tasa de Falla'!IS86=0,"",'[1]Tasa de Falla'!IS86) ->  | I86: =IF('[1]Tasa de Falla'!IT86=0,"",'[1]Tasa de Falla'!IT86) -> 1 | J86: =IF('[1]Tasa de Falla'!IU86=0,"",'[1]Tasa de Falla'!IU86) -> 1 | K86: =IF('[1]Tasa de Falla'!IV86=0,"",'[1]Tasa de Falla'!IV86) ->  | L86: =IF('[1]Tasa de Falla'!IW86=0,"",'[1]Tasa de Falla'!IW86) ->  | M86: =IF('[1]Tasa de Falla'!IX86=0,"",'[1]Tasa de Falla'!IX86) ->  | N86: =IF('[1]Tasa de Falla'!IY86=0,"",'[1]Tasa de Falla'!IY86) -> 1 | O86: =IF('[1]Tasa de Falla'!IZ86=0,"",'[1]Tasa de Falla'!IZ86) -> 1 | P86: =IF('[1]Tasa de Falla'!JA86=0,"",'[1]Tasa de Falla'!JA86) ->  | Q86: =IF('[1]Tasa de Falla'!JB86=0,"",'[1]Tasa de Falla'!JB86) ->  | R86: =IF('[1]Tasa de Falla'!JC86=0,"",'[1]Tasa de Falla'!JC86) -> 
C87: ='[1]Tasa de Falla'!C87 -> 69 | D87: ='[1]Tasa de Falla'!D87 -> RECREO - LA RIOJA 2 | E87: ='[1]Tasa de Falla'!E87 -> 132 | F87: ='[1]Tasa de Falla'!F87 -> 220 | G87: =IF('[1]Tasa de Falla'!IR87=0,"",'[1]Tasa de Falla'!IR87) ->  | H87: =IF('[1]Tasa de Falla'!IS87=0,"",'[1]Tasa de Falla'!IS87) -> 1 | I87: =IF('[1]Tasa de Falla'!IT87=0,"",'[1]Tasa de Falla'!IT87) ->  | J87: =IF('[1]Tasa de Falla'!IU87=0,"",'[1]Tasa de Falla'!IU87) -> 1 | K87: =IF('[1]Tasa de Falla'!IV87=0,"",'[1]Tasa de Falla'!IV87) ->  | L87: =IF('[1]Tasa de Falla'!IW87=0,"",'[1]Tasa de Falla'!IW87) ->  | M87: =IF('[1]Tasa de Falla'!IX87=0,"",'[1]Tasa de Falla'!IX87) -> 1 | N87: =IF('[1]Tasa de Falla'!IY87=0,"",'[1]Tasa de Falla'!IY87) -> 1 | O87: =IF('[1]Tasa de Falla'!IZ87=0,"",'[1]Tasa de Falla'!IZ87) ->  | P87: =IF('[1]Tasa de Falla'!JA87=0,"",'[1]Tasa de Falla'!JA87) ->  | Q87: =IF('[1]Tasa de Falla'!JB87=0,"",'[1]Tasa de Falla'!JB87) ->  | R87: =IF('[1]Tasa de Falla'!JC87=0,"",'[1]Tasa de Falla'!JC87) -> 
C88: ='[1]Tasa de Falla'!C88 -> 70 | D88: ='[1]Tasa de Falla'!D88 -> RECREO - CATAMARCA | E88: ='[1]Tasa de Falla'!E88 -> 132 | F88: ='[1]Tasa de Falla'!F88 -> 203 | G88: =IF('[1]Tasa de Falla'!IR88=0,"",'[1]Tasa de Falla'!IR88) ->  | H88: =IF('[1]Tasa de Falla'!IS88=0,"",'[1]Tasa de Falla'!IS88) ->  | I88: =IF('[1]Tasa de Falla'!IT88=0,"",'[1]Tasa de Falla'!IT88) -> 2 | J88: =IF('[1]Tasa de Falla'!IU88=0,"",'[1]Tasa de Falla'!IU88) ->  | K88: =IF('[1]Tasa de Falla'!IV88=0,"",'[1]Tasa de Falla'!IV88) ->  | L88: =IF('[1]Tasa de Falla'!IW88=0,"",'[1]Tasa de Falla'!IW88) -> 1 | M88: =IF('[1]Tasa de Falla'!IX88=0,"",'[1]Tasa de Falla'!IX88) ->  | N88: =IF('[1]Tasa de Falla'!IY88=0,"",'[1]Tasa de Falla'!IY88) ->  | O88: =IF('[1]Tasa de Falla'!IZ88=0,"",'[1]Tasa de Falla'!IZ88) ->  | P88: =IF('[1]Tasa de Falla'!JA88=0,"",'[1]Tasa de Falla'!JA88) ->  | Q88: =IF('[1]Tasa de Falla'!JB88=0,"",'[1]Tasa de Falla'!JB88) ->  | R88: =IF('[1]Tasa de Falla'!JC88=0,"",'[1]Tasa de Falla'!JC88) -> 
C89: ='[1]Tasa de Falla'!C89 -> 71 | D89: ='[1]Tasa de Falla'!D89 -> CABRA CORRAL - EL CARRIL | E89: ='[1]Tasa de Falla'!E89 -> 132 | F89: ='[1]Tasa de Falla'!F89 -> 33.75 | G89: =IF('[1]Tasa de Falla'!IR89=0,"",'[1]Tasa de Falla'!IR89) -> 1 | H89: =IF('[1]Tasa de Falla'!IS89=0,"",'[1]Tasa de Falla'!IS89) ->  | I89: =IF('[1]Tasa de Falla'!IT89=0,"",'[1]Tasa de Falla'!IT89) ->  | J89: =IF('[1]Tasa de Falla'!IU89=0,"",'[1]Tasa de Falla'!IU89) ->  | K89: =IF('[1]Tasa de Falla'!IV89=0,"",'[1]Tasa de Falla'!IV89) ->  | L89: =IF('[1]Tasa de Falla'!IW89=0,"",'[1]Tasa de Falla'!IW89) ->  | M89: =IF('[1]Tasa de Falla'!IX89=0,"",'[1]Tasa de Falla'!IX89) ->  | N89: =IF('[1]Tasa de Falla'!IY89=0,"",'[1]Tasa de Falla'!IY89) ->  | O89: =IF('[1]Tasa de Falla'!IZ89=0,"",'[1]Tasa de Falla'!IZ89) -> 1 | P89: =IF('[1]Tasa de Falla'!JA89=0,"",'[1]Tasa de Falla'!JA89) ->  | Q89: =IF('[1]Tasa de Falla'!JB89=0,"",'[1]Tasa de Falla'!JB89) ->  | R89: =IF('[1]Tasa de Falla'!JC89=0,"",'[1]Tasa de Falla'!JC89) -> 
C90: ='[1]Tasa de Falla'!C90 -> 72 | D90: ='[1]Tasa de Falla'!D90 -> PAMPA GRANDE - CABRA CORRAL | E90: ='[1]Tasa de Falla'!E90 -> 132 | F90: ='[1]Tasa de Falla'!F90 -> 60 | G90: =IF('[1]Tasa de Falla'!IR90=0,"",'[1]Tasa de Falla'!IR90) ->  | H90: =IF('[1]Tasa de Falla'!IS90=0,"",'[1]Tasa de Falla'!IS90) ->  | I90: =IF('[1]Tasa de Falla'!IT90=0,"",'[1]Tasa de Falla'!IT90) ->  | J90: =IF('[1]Tasa de Falla'!IU90=0,"",'[1]Tasa de Falla'!IU90) -> 1 | K90: =IF('[1]Tasa de Falla'!IV90=0,"",'[1]Tasa de Falla'!IV90) -> 1 | L90: =IF('[1]Tasa de Falla'!IW90=0,"",'[1]Tasa de Falla'!IW90) -> 1 | M90: =IF('[1]Tasa de Falla'!IX90=0,"",'[1]Tasa de Falla'!IX90) ->  | N90: =IF('[1]Tasa de Falla'!IY90=0,"",'[1]Tasa de Falla'!IY90) ->  | O90: =IF('[1]Tasa de Falla'!IZ90=0,"",'[1]Tasa de Falla'!IZ90) -> 1 | P90: =IF('[1]Tasa de Falla'!JA90=0,"",'[1]Tasa de Falla'!JA90) ->  | Q90: =IF('[1]Tasa de Falla'!JB90=0,"",'[1]Tasa de Falla'!JB90) ->  | R90: =IF('[1]Tasa de Falla'!JC90=0,"",'[1]Tasa de Falla'!JC90) -> 
C91: ='[1]Tasa de Falla'!C91 -> 73 | D91: ='[1]Tasa de Falla'!D91 -> PAMPA GRANDE - CAFAYATE | E91: ='[1]Tasa de Falla'!E91 -> 132 | F91: ='[1]Tasa de Falla'!F91 -> 63 | G91: =IF('[1]Tasa de Falla'!IR91=0,"",'[1]Tasa de Falla'!IR91) ->  | H91: =IF('[1]Tasa de Falla'!IS91=0,"",'[1]Tasa de Falla'!IS91) ->  | I91: =IF('[1]Tasa de Falla'!IT91=0,"",'[1]Tasa de Falla'!IT91) ->  | J91: =IF('[1]Tasa de Falla'!IU91=0,"",'[1]Tasa de Falla'!IU91) ->  | K91: =IF('[1]Tasa de Falla'!IV91=0,"",'[1]Tasa de Falla'!IV91) ->  | L91: =IF('[1]Tasa de Falla'!IW91=0,"",'[1]Tasa de Falla'!IW91) ->  | M91: =IF('[1]Tasa de Falla'!IX91=0,"",'[1]Tasa de Falla'!IX91) ->  | N91: =IF('[1]Tasa de Falla'!IY91=0,"",'[1]Tasa de Falla'!IY91) ->  | O91: =IF('[1]Tasa de Falla'!IZ91=0,"",'[1]Tasa de Falla'!IZ91) ->  | P91: =IF('[1]Tasa de Falla'!JA91=0,"",'[1]Tasa de Falla'!JA91) ->  | Q91: =IF('[1]Tasa de Falla'!JB91=0,"",'[1]Tasa de Falla'!JB91) ->  | R91: =IF('[1]Tasa de Falla'!JC91=0,"",'[1]Tasa de Falla'!JC91) -> 3
C92: ='[1]Tasa de Falla'!C92 -> 74 | D92: ='[1]Tasa de Falla'!D92 -> PAMPA GRANDE - TRANCAS | E92: ='[1]Tasa de Falla'!E92 -> 132 | F92: ='[1]Tasa de Falla'!F92 -> 55 | G92: =IF('[1]Tasa de Falla'!IR92=0,"",'[1]Tasa de Falla'!IR92) ->  | H92: =IF('[1]Tasa de Falla'!IS92=0,"",'[1]Tasa de Falla'!IS92) ->  | I92: =IF('[1]Tasa de Falla'!IT92=0,"",'[1]Tasa de Falla'!IT92) ->  | J92: =IF('[1]Tasa de Falla'!IU92=0,"",'[1]Tasa de Falla'!IU92) ->  | K92: =IF('[1]Tasa de Falla'!IV92=0,"",'[1]Tasa de Falla'!IV92) ->  | L92: =IF('[1]Tasa de Falla'!IW92=0,"",'[1]Tasa de Falla'!IW92) ->  | M92: =IF('[1]Tasa de Falla'!IX92=0,"",'[1]Tasa de Falla'!IX92) ->  | N92: =IF('[1]Tasa de Falla'!IY92=0,"",'[1]Tasa de Falla'!IY92) ->  | O92: =IF('[1]Tasa de Falla'!IZ92=0,"",'[1]Tasa de Falla'!IZ92) ->  | P92: =IF('[1]Tasa de Falla'!JA92=0,"",'[1]Tasa de Falla'!JA92) -> 2 | Q92: =IF('[1]Tasa de Falla'!JB92=0,"",'[1]Tasa de Falla'!JB92) ->  | R92: =IF('[1]Tasa de Falla'!JC92=0,"",'[1]Tasa de Falla'!JC92) -> 
C93: ='[1]Tasa de Falla'!C93 -> 75 | D93: ='[1]Tasa de Falla'!D93 -> SANTIAGO CENTRO - FERNANDEZ - SUNCHO CORRAL | E93: ='[1]Tasa de Falla'!E93 -> 132 | F93: ='[1]Tasa de Falla'!F93 -> 103 | G93: =IF('[1]Tasa de Falla'!IR93=0,"",'[1]Tasa de Falla'!IR93) ->  | H93: =IF('[1]Tasa de Falla'!IS93=0,"",'[1]Tasa de Falla'!IS93) ->  | I93: =IF('[1]Tasa de Falla'!IT93=0,"",'[1]Tasa de Falla'!IT93) ->  | J93: =IF('[1]Tasa de Falla'!IU93=0,"",'[1]Tasa de Falla'!IU93) ->  | K93: =IF('[1]Tasa de Falla'!IV93=0,"",'[1]Tasa de Falla'!IV93) ->  | L93: =IF('[1]Tasa de Falla'!IW93=0,"",'[1]Tasa de Falla'!IW93) ->  | M93: =IF('[1]Tasa de Falla'!IX93=0,"",'[1]Tasa de Falla'!IX93) ->  | N93: =IF('[1]Tasa de Falla'!IY93=0,"",'[1]Tasa de Falla'!IY93) ->  | O93: =IF('[1]Tasa de Falla'!IZ93=0,"",'[1]Tasa de Falla'!IZ93) ->  | P93: =IF('[1]Tasa de Falla'!JA93=0,"",'[1]Tasa de Falla'!JA93) ->  | Q93: =IF('[1]Tasa de Falla'!JB93=0,"",'[1]Tasa de Falla'!JB93) -> 1 | R93: =IF('[1]Tasa de Falla'!JC93=0,"",'[1]Tasa de Falla'!JC93) -> 
C94: ='[1]Tasa de Falla'!C94 -> 76 | D94: ='[1]Tasa de Falla'!D94 -> SUNCHO CORRAL - ANATUYA | E94: ='[1]Tasa de Falla'!E94 -> 132 | F94: ='[1]Tasa de Falla'!F94 -> 81 | G94: =IF('[1]Tasa de Falla'!IR94=0,"",'[1]Tasa de Falla'!IR94) -> 2 | H94: =IF('[1]Tasa de Falla'!IS94=0,"",'[1]Tasa de Falla'!IS94) -> 1 | I94: =IF('[1]Tasa de Falla'!IT94=0,"",'[1]Tasa de Falla'!IT94) ->  | J94: =IF('[1]Tasa de Falla'!IU94=0,"",'[1]Tasa de Falla'!IU94) ->  | K94: =IF('[1]Tasa de Falla'!IV94=0,"",'[1]Tasa de Falla'!IV94) ->  | L94: =IF('[1]Tasa de Falla'!IW94=0,"",'[1]Tasa de Falla'!IW94) ->  | M94: =IF('[1]Tasa de Falla'!IX94=0,"",'[1]Tasa de Falla'!IX94) ->  | N94: =IF('[1]Tasa de Falla'!IY94=0,"",'[1]Tasa de Falla'!IY94) ->  | O94: =IF('[1]Tasa de Falla'!IZ94=0,"",'[1]Tasa de Falla'!IZ94) ->  | P94: =IF('[1]Tasa de Falla'!JA94=0,"",'[1]Tasa de Falla'!JA94) ->  | Q94: =IF('[1]Tasa de Falla'!JB94=0,"",'[1]Tasa de Falla'!JB94) ->  | R94: =IF('[1]Tasa de Falla'!JC94=0,"",'[1]Tasa de Falla'!JC94) -> 
C95: ='[1]Tasa de Falla'!C95 -> 77 | D95: ='[1]Tasa de Falla'!D95 -> LAS MADERAS - GÜEMES SALTA | E95: ='[1]Tasa de Falla'!E95 -> 132 | F95: ='[1]Tasa de Falla'!F95 -> 42 | G95: =IF('[1]Tasa de Falla'!IR95=0,"",'[1]Tasa de Falla'!IR95) -> 1 | H95: =IF('[1]Tasa de Falla'!IS95=0,"",'[1]Tasa de Falla'!IS95) ->  | I95: =IF('[1]Tasa de Falla'!IT95=0,"",'[1]Tasa de Falla'!IT95) ->  | J95: =IF('[1]Tasa de Falla'!IU95=0,"",'[1]Tasa de Falla'!IU95) ->  | K95: =IF('[1]Tasa de Falla'!IV95=0,"",'[1]Tasa de Falla'!IV95) ->  | L95: =IF('[1]Tasa de Falla'!IW95=0,"",'[1]Tasa de Falla'!IW95) ->  | M95: =IF('[1]Tasa de Falla'!IX95=0,"",'[1]Tasa de Falla'!IX95) ->  | N95: =IF('[1]Tasa de Falla'!IY95=0,"",'[1]Tasa de Falla'!IY95) ->  | O95: =IF('[1]Tasa de Falla'!IZ95=0,"",'[1]Tasa de Falla'!IZ95) ->  | P95: =IF('[1]Tasa de Falla'!JA95=0,"",'[1]Tasa de Falla'!JA95) ->  | Q95: =IF('[1]Tasa de Falla'!JB95=0,"",'[1]Tasa de Falla'!JB95) ->  | R95: =IF('[1]Tasa de Falla'!JC95=0,"",'[1]Tasa de Falla'!JC95) -> 
C96: ='[1]Tasa de Falla'!C96 -> 78 | D96: ='[1]Tasa de Falla'!D96 -> INDEPENDENCIA - EL BRACHO 2 | E96: ='[1]Tasa de Falla'!E96 -> 132 | F96: ='[1]Tasa de Falla'!F96 -> 17.1 | G96: =IF('[1]Tasa de Falla'!IR96=0,"",'[1]Tasa de Falla'!IR96) ->  | H96: =IF('[1]Tasa de Falla'!IS96=0,"",'[1]Tasa de Falla'!IS96) ->  | I96: =IF('[1]Tasa de Falla'!IT96=0,"",'[1]Tasa de Falla'!IT96) ->  | J96: =IF('[1]Tasa de Falla'!IU96=0,"",'[1]Tasa de Falla'!IU96) ->  | K96: =IF('[1]Tasa de Falla'!IV96=0,"",'[1]Tasa de Falla'!IV96) -> 1 | L96: =IF('[1]Tasa de Falla'!IW96=0,"",'[1]Tasa de Falla'!IW96) ->  | M96: =IF('[1]Tasa de Falla'!IX96=0,"",'[1]Tasa de Falla'!IX96) ->  | N96: =IF('[1]Tasa de Falla'!IY96=0,"",'[1]Tasa de Falla'!IY96) ->  | O96: =IF('[1]Tasa de Falla'!IZ96=0,"",'[1]Tasa de Falla'!IZ96) -> 1 | P96: =IF('[1]Tasa de Falla'!JA96=0,"",'[1]Tasa de Falla'!JA96) -> 2 | Q96: =IF('[1]Tasa de Falla'!JB96=0,"",'[1]Tasa de Falla'!JB96) ->  | R96: =IF('[1]Tasa de Falla'!JC96=0,"",'[1]Tasa de Falla'!JC96) -> 
C97: ='[1]Tasa de Falla'!C97 -> 79 | D97: ='[1]Tasa de Falla'!D97 -> GÜEMES - SALTA NORTE | E97: ='[1]Tasa de Falla'!E97 -> 132 | F97: ='[1]Tasa de Falla'!F97 -> 39 | G97: =IF('[1]Tasa de Falla'!IR97=0,"",'[1]Tasa de Falla'!IR97) -> XXXX | H97: =IF('[1]Tasa de Falla'!IS97=0,"",'[1]Tasa de Falla'!IS97) -> XXXX | I97: =IF('[1]Tasa de Falla'!IT97=0,"",'[1]Tasa de Falla'!IT97) -> XXXX | J97: =IF('[1]Tasa de Falla'!IU97=0,"",'[1]Tasa de Falla'!IU97) -> XXXX | K97: =IF('[1]Tasa de Falla'!IV97=0,"",'[1]Tasa de Falla'!IV97) -> XXXX | L97: =IF('[1]Tasa de Falla'!IW97=0,"",'[1]Tasa de Falla'!IW97) -> XXXX | M97: =IF('[1]Tasa de Falla'!IX97=0,"",'[1]Tasa de Falla'!IX97) -> XXXX | N97: =IF('[1]Tasa de Falla'!IY97=0,"",'[1]Tasa de Falla'!IY97) -> XXXX | O97: =IF('[1]Tasa de Falla'!IZ97=0,"",'[1]Tasa de Falla'!IZ97) -> XXXX | P97: =IF('[1]Tasa de Falla'!JA97=0,"",'[1]Tasa de Falla'!JA97) -> XXXX | Q97: =IF('[1]Tasa de Falla'!JB97=0,"",'[1]Tasa de Falla'!JB97) -> XXXX | R97: =IF('[1]Tasa de Falla'!JC97=0,"",'[1]Tasa de Falla'!JC97) -> XXXX
C98: ='[1]Tasa de Falla'!C98 -> 80 | D98: ='[1]Tasa de Falla'!D98 -> BURRUYACU - COBOS | E98: ='[1]Tasa de Falla'!E98 -> 132 | F98: ='[1]Tasa de Falla'!F98 -> 229.5 | G98: =IF('[1]Tasa de Falla'!IR98=0,"",'[1]Tasa de Falla'!IR98) -> XXXX | H98: =IF('[1]Tasa de Falla'!IS98=0,"",'[1]Tasa de Falla'!IS98) -> XXXX | I98: =IF('[1]Tasa de Falla'!IT98=0,"",'[1]Tasa de Falla'!IT98) -> XXXX | J98: =IF('[1]Tasa de Falla'!IU98=0,"",'[1]Tasa de Falla'!IU98) -> XXXX | K98: =IF('[1]Tasa de Falla'!IV98=0,"",'[1]Tasa de Falla'!IV98) -> XXXX | L98: =IF('[1]Tasa de Falla'!IW98=0,"",'[1]Tasa de Falla'!IW98) -> XXXX | M98: =IF('[1]Tasa de Falla'!IX98=0,"",'[1]Tasa de Falla'!IX98) -> XXXX | N98: =IF('[1]Tasa de Falla'!IY98=0,"",'[1]Tasa de Falla'!IY98) -> XXXX | O98: =IF('[1]Tasa de Falla'!IZ98=0,"",'[1]Tasa de Falla'!IZ98) -> XXXX | P98: =IF('[1]Tasa de Falla'!JA98=0,"",'[1]Tasa de Falla'!JA98) -> XXXX | Q98: =IF('[1]Tasa de Falla'!JB98=0,"",'[1]Tasa de Falla'!JB98) -> XXXX | R98: =IF('[1]Tasa de Falla'!JC98=0,"",'[1]Tasa de Falla'!JC98) -> XXXX
C99: ='[1]Tasa de Falla'!C99 -> 81 | D99: ='[1]Tasa de Falla'!D99 -> METAN - COBOS | E99: ='[1]Tasa de Falla'!E99 -> 132 | F99: ='[1]Tasa de Falla'!F99 -> 89.2 | G99: =IF('[1]Tasa de Falla'!IR99=0,"",'[1]Tasa de Falla'!IR99) ->  | H99: =IF('[1]Tasa de Falla'!IS99=0,"",'[1]Tasa de Falla'!IS99) ->  | I99: =IF('[1]Tasa de Falla'!IT99=0,"",'[1]Tasa de Falla'!IT99) ->  | J99: =IF('[1]Tasa de Falla'!IU99=0,"",'[1]Tasa de Falla'!IU99) ->  | K99: =IF('[1]Tasa de Falla'!IV99=0,"",'[1]Tasa de Falla'!IV99) ->  | L99: =IF('[1]Tasa de Falla'!IW99=0,"",'[1]Tasa de Falla'!IW99) ->  | M99: =IF('[1]Tasa de Falla'!IX99=0,"",'[1]Tasa de Falla'!IX99) ->  | N99: =IF('[1]Tasa de Falla'!IY99=0,"",'[1]Tasa de Falla'!IY99) ->  | O99: =IF('[1]Tasa de Falla'!IZ99=0,"",'[1]Tasa de Falla'!IZ99) ->  | P99: =IF('[1]Tasa de Falla'!JA99=0,"",'[1]Tasa de Falla'!JA99) ->  | Q99: =IF('[1]Tasa de Falla'!JB99=0,"",'[1]Tasa de Falla'!JB99) ->  | R99: =IF('[1]Tasa de Falla'!JC99=0,"",'[1]Tasa de Falla'!JC99) -> 
C100: ='[1]Tasa de Falla'!C100 -> 82 | D100: ='[1]Tasa de Falla'!D100 -> AÑATUYA - BANDERA | E100: ='[1]Tasa de Falla'!E100 -> 132 | F100: ='[1]Tasa de Falla'!F100 -> 76 | G100: =IF('[1]Tasa de Falla'!IR100=0,"",'[1]Tasa de Falla'!IR100) ->  | H100: =IF('[1]Tasa de Falla'!IS100=0,"",'[1]Tasa de Falla'!IS100) -> 2 | I100: =IF('[1]Tasa de Falla'!IT100=0,"",'[1]Tasa de Falla'!IT100) ->  | J100: =IF('[1]Tasa de Falla'!IU100=0,"",'[1]Tasa de Falla'!IU100) ->  | K100: =IF('[1]Tasa de Falla'!IV100=0,"",'[1]Tasa de Falla'!IV100) -> 1 | L100: =IF('[1]Tasa de Falla'!IW100=0,"",'[1]Tasa de Falla'!IW100) ->  | M100: =IF('[1]Tasa de Falla'!IX100=0,"",'[1]Tasa de Falla'!IX100) ->  | N100: =IF('[1]Tasa de Falla'!IY100=0,"",'[1]Tasa de Falla'!IY100) ->  | O100: =IF('[1]Tasa de Falla'!IZ100=0,"",'[1]Tasa de Falla'!IZ100) ->  | P100: =IF('[1]Tasa de Falla'!JA100=0,"",'[1]Tasa de Falla'!JA100) ->  | Q100: =IF('[1]Tasa de Falla'!JB100=0,"",'[1]Tasa de Falla'!JB100) ->  | R100: =IF('[1]Tasa de Falla'!JC100=0,"",'[1]Tasa de Falla'!JC100) -> 
C101: ='[1]Tasa de Falla'!C101 -> 84 | D101: ='[1]Tasa de Falla'!D101 -> GÜEMES SALTA - COBOS 1 | E101: ='[1]Tasa de Falla'!E101 -> 132 | F101: ='[1]Tasa de Falla'!F101 -> 12.1 | G101: =IF('[1]Tasa de Falla'!IR101=0,"",'[1]Tasa de Falla'!IR101) ->  | H101: =IF('[1]Tasa de Falla'!IS101=0,"",'[1]Tasa de Falla'!IS101) ->  | I101: =IF('[1]Tasa de Falla'!IT101=0,"",'[1]Tasa de Falla'!IT101) ->  | J101: =IF('[1]Tasa de Falla'!IU101=0,"",'[1]Tasa de Falla'!IU101) ->  | K101: =IF('[1]Tasa de Falla'!IV101=0,"",'[1]Tasa de Falla'!IV101) ->  | L101: =IF('[1]Tasa de Falla'!IW101=0,"",'[1]Tasa de Falla'!IW101) ->  | M101: =IF('[1]Tasa de Falla'!IX101=0,"",'[1]Tasa de Falla'!IX101) ->  | N101: =IF('[1]Tasa de Falla'!IY101=0,"",'[1]Tasa de Falla'!IY101) ->  | O101: =IF('[1]Tasa de Falla'!IZ101=0,"",'[1]Tasa de Falla'!IZ101) ->  | P101: =IF('[1]Tasa de Falla'!JA101=0,"",'[1]Tasa de Falla'!JA101) ->  | Q101: =IF('[1]Tasa de Falla'!JB101=0,"",'[1]Tasa de Falla'!JB101) ->  | R101: =IF('[1]Tasa de Falla'!JC101=0,"",'[1]Tasa de Falla'!JC101) -> 
C102: ='[1]Tasa de Falla'!C102 -> 85 | D102: ='[1]Tasa de Falla'!D102 -> GÜEMES SALTA - COBOS 2 | E102: ='[1]Tasa de Falla'!E102 -> 132 | F102: ='[1]Tasa de Falla'!F102 -> 12.1 | G102: =IF('[1]Tasa de Falla'!IR102=0,"",'[1]Tasa de Falla'!IR102) ->  | H102: =IF('[1]Tasa de Falla'!IS102=0,"",'[1]Tasa de Falla'!IS102) ->  | I102: =IF('[1]Tasa de Falla'!IT102=0,"",'[1]Tasa de Falla'!IT102) ->  | J102: =IF('[1]Tasa de Falla'!IU102=0,"",'[1]Tasa de Falla'!IU102) ->  | K102: =IF('[1]Tasa de Falla'!IV102=0,"",'[1]Tasa de Falla'!IV102) ->  | L102: =IF('[1]Tasa de Falla'!IW102=0,"",'[1]Tasa de Falla'!IW102) ->  | M102: =IF('[1]Tasa de Falla'!IX102=0,"",'[1]Tasa de Falla'!IX102) ->  | N102: =IF('[1]Tasa de Falla'!IY102=0,"",'[1]Tasa de Falla'!IY102) ->  | O102: =IF('[1]Tasa de Falla'!IZ102=0,"",'[1]Tasa de Falla'!IZ102) -> 1 | P102: =IF('[1]Tasa de Falla'!JA102=0,"",'[1]Tasa de Falla'!JA102) ->  | Q102: =IF('[1]Tasa de Falla'!JB102=0,"",'[1]Tasa de Falla'!JB102) ->  | R102: =IF('[1]Tasa de Falla'!JC102=0,"",'[1]Tasa de Falla'!JC102) -> 
C103: ='[1]Tasa de Falla'!C103 -> 86 | D103: ='[1]Tasa de Falla'!D103 -> EL BRACHO - LA BANDA | E103: ='[1]Tasa de Falla'!E103 -> 132 | F103: ='[1]Tasa de Falla'!F103 -> 133.5 | G103: =IF('[1]Tasa de Falla'!IR103=0,"",'[1]Tasa de Falla'!IR103) -> XXXX | H103: =IF('[1]Tasa de Falla'!IS103=0,"",'[1]Tasa de Falla'!IS103) -> XXXX | I103: =IF('[1]Tasa de Falla'!IT103=0,"",'[1]Tasa de Falla'!IT103) -> XXXX | J103: =IF('[1]Tasa de Falla'!IU103=0,"",'[1]Tasa de Falla'!IU103) -> XXXX | K103: =IF('[1]Tasa de Falla'!IV103=0,"",'[1]Tasa de Falla'!IV103) -> XXXX | L103: =IF('[1]Tasa de Falla'!IW103=0,"",'[1]Tasa de Falla'!IW103) -> XXXX | M103: =IF('[1]Tasa de Falla'!IX103=0,"",'[1]Tasa de Falla'!IX103) -> XXXX | N103: =IF('[1]Tasa de Falla'!IY103=0,"",'[1]Tasa de Falla'!IY103) -> XXXX | O103: =IF('[1]Tasa de Falla'!IZ103=0,"",'[1]Tasa de Falla'!IZ103) -> XXXX | P103: =IF('[1]Tasa de Falla'!JA103=0,"",'[1]Tasa de Falla'!JA103) -> XXXX | Q103: =IF('[1]Tasa de Falla'!JB103=0,"",'[1]Tasa de Falla'!JB103) -> XXXX | R103: =IF('[1]Tasa de Falla'!JC103=0,"",'[1]Tasa de Falla'!JC103) -> XXXX
C104: ='[1]Tasa de Falla'!C104 -> 87 | D104: ='[1]Tasa de Falla'!D104 -> SANTIAGO OESTE - SANTIAGO SUR | E104: ='[1]Tasa de Falla'!E104 -> 132 | F104: ='[1]Tasa de Falla'!F104 -> 10.6 | G104: =IF('[1]Tasa de Falla'!IR104=0,"",'[1]Tasa de Falla'!IR104) ->  | H104: =IF('[1]Tasa de Falla'!IS104=0,"",'[1]Tasa de Falla'!IS104) -> 1 | I104: =IF('[1]Tasa de Falla'!IT104=0,"",'[1]Tasa de Falla'!IT104) ->  | J104: =IF('[1]Tasa de Falla'!IU104=0,"",'[1]Tasa de Falla'!IU104) ->  | K104: =IF('[1]Tasa de Falla'!IV104=0,"",'[1]Tasa de Falla'!IV104) ->  | L104: =IF('[1]Tasa de Falla'!IW104=0,"",'[1]Tasa de Falla'!IW104) ->  | M104: =IF('[1]Tasa de Falla'!IX104=0,"",'[1]Tasa de Falla'!IX104) ->  | N104: =IF('[1]Tasa de Falla'!IY104=0,"",'[1]Tasa de Falla'!IY104) ->  | O104: =IF('[1]Tasa de Falla'!IZ104=0,"",'[1]Tasa de Falla'!IZ104) ->  | P104: =IF('[1]Tasa de Falla'!JA104=0,"",'[1]Tasa de Falla'!JA104) ->  | Q104: =IF('[1]Tasa de Falla'!JB104=0,"",'[1]Tasa de Falla'!JB104) ->  | R104: =IF('[1]Tasa de Falla'!JC104=0,"",'[1]Tasa de Falla'!JC104) -> 
C105: ='[1]Tasa de Falla'!C105 -> 88 | D105: ='[1]Tasa de Falla'!D105 -> SANTIAGO SUR - SANTIAGO CENTRO | E105: ='[1]Tasa de Falla'!E105 -> 132 | F105: ='[1]Tasa de Falla'!F105 -> 4 | G105: =IF('[1]Tasa de Falla'!IR105=0,"",'[1]Tasa de Falla'!IR105) ->  | H105: =IF('[1]Tasa de Falla'!IS105=0,"",'[1]Tasa de Falla'!IS105) ->  | I105: =IF('[1]Tasa de Falla'!IT105=0,"",'[1]Tasa de Falla'!IT105) ->  | J105: =IF('[1]Tasa de Falla'!IU105=0,"",'[1]Tasa de Falla'!IU105) ->  | K105: =IF('[1]Tasa de Falla'!IV105=0,"",'[1]Tasa de Falla'!IV105) ->  | L105: =IF('[1]Tasa de Falla'!IW105=0,"",'[1]Tasa de Falla'!IW105) ->  | M105: =IF('[1]Tasa de Falla'!IX105=0,"",'[1]Tasa de Falla'!IX105) ->  | N105: =IF('[1]Tasa de Falla'!IY105=0,"",'[1]Tasa de Falla'!IY105) ->  | O105: =IF('[1]Tasa de Falla'!IZ105=0,"",'[1]Tasa de Falla'!IZ105) ->  | P105: =IF('[1]Tasa de Falla'!JA105=0,"",'[1]Tasa de Falla'!JA105) ->  | Q105: =IF('[1]Tasa de Falla'!JB105=0,"",'[1]Tasa de Falla'!JB105) ->  | R105: =IF('[1]Tasa de Falla'!JC105=0,"",'[1]Tasa de Falla'!JC105) -> 
C106: ='[1]Tasa de Falla'!C106 -> 89 | D106: ='[1]Tasa de Falla'!D106 -> C.H. RIO HONDO - SANTIAGO OESTE | E106: ='[1]Tasa de Falla'!E106 -> 132 | F106: ='[1]Tasa de Falla'!F106 -> 69.8 | G106: =IF('[1]Tasa de Falla'!IR106=0,"",'[1]Tasa de Falla'!IR106) ->  | H106: =IF('[1]Tasa de Falla'!IS106=0,"",'[1]Tasa de Falla'!IS106) -> 1 | I106: =IF('[1]Tasa de Falla'!IT106=0,"",'[1]Tasa de Falla'!IT106) ->  | J106: =IF('[1]Tasa de Falla'!IU106=0,"",'[1]Tasa de Falla'!IU106) ->  | K106: =IF('[1]Tasa de Falla'!IV106=0,"",'[1]Tasa de Falla'!IV106) ->  | L106: =IF('[1]Tasa de Falla'!IW106=0,"",'[1]Tasa de Falla'!IW106) ->  | M106: =IF('[1]Tasa de Falla'!IX106=0,"",'[1]Tasa de Falla'!IX106) ->  | N106: =IF('[1]Tasa de Falla'!IY106=0,"",'[1]Tasa de Falla'!IY106) ->  | O106: =IF('[1]Tasa de Falla'!IZ106=0,"",'[1]Tasa de Falla'!IZ106) ->  | P106: =IF('[1]Tasa de Falla'!JA106=0,"",'[1]Tasa de Falla'!JA106) ->  | Q106: =IF('[1]Tasa de Falla'!JB106=0,"",'[1]Tasa de Falla'!JB106) ->  | R106: =IF('[1]Tasa de Falla'!JC106=0,"",'[1]Tasa de Falla'!JC106) -> 
C107: ='[1]Tasa de Falla'!C107 -> 90 | D107: ='[1]Tasa de Falla'!D107 -> GÜEMES - MINETTI | E107: ='[1]Tasa de Falla'!E107 -> 132 | F107: ='[1]Tasa de Falla'!F107 -> 36.1 | G107: =IF('[1]Tasa de Falla'!IR107=0,"",'[1]Tasa de Falla'!IR107) -> XXXX | H107: =IF('[1]Tasa de Falla'!IS107=0,"",'[1]Tasa de Falla'!IS107) -> XXXX | I107: =IF('[1]Tasa de Falla'!IT107=0,"",'[1]Tasa de Falla'!IT107) -> XXXX | J107: =IF('[1]Tasa de Falla'!IU107=0,"",'[1]Tasa de Falla'!IU107) -> XXXX | K107: =IF('[1]Tasa de Falla'!IV107=0,"",'[1]Tasa de Falla'!IV107) -> XXXX | L107: =IF('[1]Tasa de Falla'!IW107=0,"",'[1]Tasa de Falla'!IW107) -> XXXX | M107: =IF('[1]Tasa de Falla'!IX107=0,"",'[1]Tasa de Falla'!IX107) -> XXXX | N107: =IF('[1]Tasa de Falla'!IY107=0,"",'[1]Tasa de Falla'!IY107) -> XXXX | O107: =IF('[1]Tasa de Falla'!IZ107=0,"",'[1]Tasa de Falla'!IZ107) -> XXXX | P107: =IF('[1]Tasa de Falla'!JA107=0,"",'[1]Tasa de Falla'!JA107) -> XXXX | Q107: =IF('[1]Tasa de Falla'!JB107=0,"",'[1]Tasa de Falla'!JB107) -> XXXX | R107: =IF('[1]Tasa de Falla'!JC107=0,"",'[1]Tasa de Falla'!JC107) -> XXXX
C108: ='[1]Tasa de Falla'!C108 -> 91 | D108: ='[1]Tasa de Falla'!D108 -> GÜEMES - SALTA NORTE | E108: ='[1]Tasa de Falla'!E108 -> 132 | F108: ='[1]Tasa de Falla'!F108 -> 38.97 | G108: =IF('[1]Tasa de Falla'!IR108=0,"",'[1]Tasa de Falla'!IR108) ->  | H108: =IF('[1]Tasa de Falla'!IS108=0,"",'[1]Tasa de Falla'!IS108) ->  | I108: =IF('[1]Tasa de Falla'!IT108=0,"",'[1]Tasa de Falla'!IT108) ->  | J108: =IF('[1]Tasa de Falla'!IU108=0,"",'[1]Tasa de Falla'!IU108) ->  | K108: =IF('[1]Tasa de Falla'!IV108=0,"",'[1]Tasa de Falla'!IV108) ->  | L108: =IF('[1]Tasa de Falla'!IW108=0,"",'[1]Tasa de Falla'!IW108) ->  | M108: =IF('[1]Tasa de Falla'!IX108=0,"",'[1]Tasa de Falla'!IX108) ->  | N108: =IF('[1]Tasa de Falla'!IY108=0,"",'[1]Tasa de Falla'!IY108) ->  | O108: =IF('[1]Tasa de Falla'!IZ108=0,"",'[1]Tasa de Falla'!IZ108) ->  | P108: =IF('[1]Tasa de Falla'!JA108=0,"",'[1]Tasa de Falla'!JA108) ->  | Q108: =IF('[1]Tasa de Falla'!JB108=0,"",'[1]Tasa de Falla'!JB108) ->  | R108: =IF('[1]Tasa de Falla'!JC108=0,"",'[1]Tasa de Falla'!JC108) -> 
C109: ='[1]Tasa de Falla'!C109 -> 92 | D109: ='[1]Tasa de Falla'!D109 -> BURRUYACU - R. DE LA FRONTERA | E109: ='[1]Tasa de Falla'!E109 -> 132 | F109: ='[1]Tasa de Falla'!F109 -> 99.1 | G109: =IF('[1]Tasa de Falla'!IR109=0,"",'[1]Tasa de Falla'!IR109) ->  | H109: =IF('[1]Tasa de Falla'!IS109=0,"",'[1]Tasa de Falla'!IS109) ->  | I109: =IF('[1]Tasa de Falla'!IT109=0,"",'[1]Tasa de Falla'!IT109) ->  | J109: =IF('[1]Tasa de Falla'!IU109=0,"",'[1]Tasa de Falla'!IU109) ->  | K109: =IF('[1]Tasa de Falla'!IV109=0,"",'[1]Tasa de Falla'!IV109) ->  | L109: =IF('[1]Tasa de Falla'!IW109=0,"",'[1]Tasa de Falla'!IW109) ->  | M109: =IF('[1]Tasa de Falla'!IX109=0,"",'[1]Tasa de Falla'!IX109) ->  | N109: =IF('[1]Tasa de Falla'!IY109=0,"",'[1]Tasa de Falla'!IY109) ->  | O109: =IF('[1]Tasa de Falla'!IZ109=0,"",'[1]Tasa de Falla'!IZ109) ->  | P109: =IF('[1]Tasa de Falla'!JA109=0,"",'[1]Tasa de Falla'!JA109) -> 1 | Q109: =IF('[1]Tasa de Falla'!JB109=0,"",'[1]Tasa de Falla'!JB109) ->  | R109: =IF('[1]Tasa de Falla'!JC109=0,"",'[1]Tasa de Falla'!JC109) -> 
C110: ='[1]Tasa de Falla'!C110 -> 93 | D110: ='[1]Tasa de Falla'!D110 -> R. DE LA FRONTERA - COBOS | E110: ='[1]Tasa de Falla'!E110 -> 132 | F110: ='[1]Tasa de Falla'!F110 -> 130.4 | G110: =IF('[1]Tasa de Falla'!IR110=0,"",'[1]Tasa de Falla'!IR110) ->  | H110: =IF('[1]Tasa de Falla'!IS110=0,"",'[1]Tasa de Falla'!IS110) ->  | I110: =IF('[1]Tasa de Falla'!IT110=0,"",'[1]Tasa de Falla'!IT110) -> 1 | J110: =IF('[1]Tasa de Falla'!IU110=0,"",'[1]Tasa de Falla'!IU110) ->  | K110: =IF('[1]Tasa de Falla'!IV110=0,"",'[1]Tasa de Falla'!IV110) ->  | L110: =IF('[1]Tasa de Falla'!IW110=0,"",'[1]Tasa de Falla'!IW110) ->  | M110: =IF('[1]Tasa de Falla'!IX110=0,"",'[1]Tasa de Falla'!IX110) ->  | N110: =IF('[1]Tasa de Falla'!IY110=0,"",'[1]Tasa de Falla'!IY110) ->  | O110: =IF('[1]Tasa de Falla'!IZ110=0,"",'[1]Tasa de Falla'!IZ110) ->  | P110: =IF('[1]Tasa de Falla'!JA110=0,"",'[1]Tasa de Falla'!JA110) -> 1 | Q110: =IF('[1]Tasa de Falla'!JB110=0,"",'[1]Tasa de Falla'!JB110) ->  | R110: =IF('[1]Tasa de Falla'!JC110=0,"",'[1]Tasa de Falla'!JC110) -> 
C111: ='[1]Tasa de Falla'!C111 -> 94 | D111: ='[1]Tasa de Falla'!D111 -> J.V. GONZALEZ - APOLINARIO SARAVIA | E111: ='[1]Tasa de Falla'!E111 -> 132 | F111: ='[1]Tasa de Falla'!F111 -> 94 | G111: =IF('[1]Tasa de Falla'!IR111=0,"",'[1]Tasa de Falla'!IR111) ->  | H111: =IF('[1]Tasa de Falla'!IS111=0,"",'[1]Tasa de Falla'!IS111) ->  | I111: =IF('[1]Tasa de Falla'!IT111=0,"",'[1]Tasa de Falla'!IT111) ->  | J111: =IF('[1]Tasa de Falla'!IU111=0,"",'[1]Tasa de Falla'!IU111) ->  | K111: =IF('[1]Tasa de Falla'!IV111=0,"",'[1]Tasa de Falla'!IV111) ->  | L111: =IF('[1]Tasa de Falla'!IW111=0,"",'[1]Tasa de Falla'!IW111) ->  | M111: =IF('[1]Tasa de Falla'!IX111=0,"",'[1]Tasa de Falla'!IX111) ->  | N111: =IF('[1]Tasa de Falla'!IY111=0,"",'[1]Tasa de Falla'!IY111) ->  | O111: =IF('[1]Tasa de Falla'!IZ111=0,"",'[1]Tasa de Falla'!IZ111) ->  | P111: =IF('[1]Tasa de Falla'!JA111=0,"",'[1]Tasa de Falla'!JA111) ->  | Q111: =IF('[1]Tasa de Falla'!JB111=0,"",'[1]Tasa de Falla'!JB111) ->  | R111: =IF('[1]Tasa de Falla'!JC111=0,"",'[1]Tasa de Falla'!JC111) -> 1
C112: ='[1]Tasa de Falla'!C112 -> 95 | D112: ='[1]Tasa de Falla'!D112 -> ANDALGALA - SAULIL | E112: ='[1]Tasa de Falla'!E112 -> 132 | F112: ='[1]Tasa de Falla'!F112 -> 76 | G112: =IF('[1]Tasa de Falla'!IR112=0,"",'[1]Tasa de Falla'!IR112) ->  | H112: =IF('[1]Tasa de Falla'!IS112=0,"",'[1]Tasa de Falla'!IS112) ->  | I112: =IF('[1]Tasa de Falla'!IT112=0,"",'[1]Tasa de Falla'!IT112) ->  | J112: =IF('[1]Tasa de Falla'!IU112=0,"",'[1]Tasa de Falla'!IU112) ->  | K112: =IF('[1]Tasa de Falla'!IV112=0,"",'[1]Tasa de Falla'!IV112) ->  | L112: =IF('[1]Tasa de Falla'!IW112=0,"",'[1]Tasa de Falla'!IW112) ->  | M112: =IF('[1]Tasa de Falla'!IX112=0,"",'[1]Tasa de Falla'!IX112) ->  | N112: =IF('[1]Tasa de Falla'!IY112=0,"",'[1]Tasa de Falla'!IY112) ->  | O112: =IF('[1]Tasa de Falla'!IZ112=0,"",'[1]Tasa de Falla'!IZ112) ->  | P112: =IF('[1]Tasa de Falla'!JA112=0,"",'[1]Tasa de Falla'!JA112) ->  | Q112: =IF('[1]Tasa de Falla'!JB112=0,"",'[1]Tasa de Falla'!JB112) ->  | R112: =IF('[1]Tasa de Falla'!JC112=0,"",'[1]Tasa de Falla'!JC112) -> 1
C113: ='[1]Tasa de Falla'!C113 -> 96 | D113: ='[1]Tasa de Falla'!D113 -> SANTIAGO OESTE - SANT. SUR - SANT. CENTRO | E113: ='[1]Tasa de Falla'!E113 -> 132 | F113: ='[1]Tasa de Falla'!F113 -> 14.6 | G113: =IF('[1]Tasa de Falla'!IR113=0,"",'[1]Tasa de Falla'!IR113) -> XXXX | H113: =IF('[1]Tasa de Falla'!IS113=0,"",'[1]Tasa de Falla'!IS113) -> XXXX | I113: =IF('[1]Tasa de Falla'!IT113=0,"",'[1]Tasa de Falla'!IT113) -> XXXX | J113: =IF('[1]Tasa de Falla'!IU113=0,"",'[1]Tasa de Falla'!IU113) -> XXXX | K113: =IF('[1]Tasa de Falla'!IV113=0,"",'[1]Tasa de Falla'!IV113) -> XXXX | L113: =IF('[1]Tasa de Falla'!IW113=0,"",'[1]Tasa de Falla'!IW113) -> XXXX | M113: =IF('[1]Tasa de Falla'!IX113=0,"",'[1]Tasa de Falla'!IX113) -> XXXX | N113: =IF('[1]Tasa de Falla'!IY113=0,"",'[1]Tasa de Falla'!IY113) -> XXXX | O113: =IF('[1]Tasa de Falla'!IZ113=0,"",'[1]Tasa de Falla'!IZ113) -> XXXX | P113: =IF('[1]Tasa de Falla'!JA113=0,"",'[1]Tasa de Falla'!JA113) -> XXXX | Q113: =IF('[1]Tasa de Falla'!JB113=0,"",'[1]Tasa de Falla'!JB113) -> XXXX | R113: =IF('[1]Tasa de Falla'!JC113=0,"",'[1]Tasa de Falla'!JC113) -> XXXX
C114: ='[1]Tasa de Falla'!C114 -> 97 | D114: ='[1]Tasa de Falla'!D114 -> SUNCHO CORRAL - QUIMILI | E114: ='[1]Tasa de Falla'!E114 -> 132 | F114: ='[1]Tasa de Falla'!F114 -> 108 | G114: =IF('[1]Tasa de Falla'!IR114=0,"",'[1]Tasa de Falla'!IR114) ->  | H114: =IF('[1]Tasa de Falla'!IS114=0,"",'[1]Tasa de Falla'!IS114) ->  | I114: =IF('[1]Tasa de Falla'!IT114=0,"",'[1]Tasa de Falla'!IT114) ->  | J114: =IF('[1]Tasa de Falla'!IU114=0,"",'[1]Tasa de Falla'!IU114) ->  | K114: =IF('[1]Tasa de Falla'!IV114=0,"",'[1]Tasa de Falla'!IV114) ->  | L114: =IF('[1]Tasa de Falla'!IW114=0,"",'[1]Tasa de Falla'!IW114) ->  | M114: =IF('[1]Tasa de Falla'!IX114=0,"",'[1]Tasa de Falla'!IX114) ->  | N114: =IF('[1]Tasa de Falla'!IY114=0,"",'[1]Tasa de Falla'!IY114) ->  | O114: =IF('[1]Tasa de Falla'!IZ114=0,"",'[1]Tasa de Falla'!IZ114) ->  | P114: =IF('[1]Tasa de Falla'!JA114=0,"",'[1]Tasa de Falla'!JA114) ->  | Q114: =IF('[1]Tasa de Falla'!JB114=0,"",'[1]Tasa de Falla'!JB114) ->  | R114: =IF('[1]Tasa de Falla'!JC114=0,"",'[1]Tasa de Falla'!JC114) -> 
C115: ='[1]Tasa de Falla'!C115 -> 98 | D115: ='[1]Tasa de Falla'!D115 -> EL BRACHO - LA BANDA ESTE | E115: ='[1]Tasa de Falla'!E115 -> 132 | F115: ='[1]Tasa de Falla'!F115 -> 140.9 | G115: =IF('[1]Tasa de Falla'!IR115=0,"",'[1]Tasa de Falla'!IR115) ->  | H115: =IF('[1]Tasa de Falla'!IS115=0,"",'[1]Tasa de Falla'!IS115) ->  | I115: =IF('[1]Tasa de Falla'!IT115=0,"",'[1]Tasa de Falla'!IT115) -> 1 | J115: =IF('[1]Tasa de Falla'!IU115=0,"",'[1]Tasa de Falla'!IU115) ->  | K115: =IF('[1]Tasa de Falla'!IV115=0,"",'[1]Tasa de Falla'!IV115) -> 1 | L115: =IF('[1]Tasa de Falla'!IW115=0,"",'[1]Tasa de Falla'!IW115) ->  | M115: =IF('[1]Tasa de Falla'!IX115=0,"",'[1]Tasa de Falla'!IX115) ->  | N115: =IF('[1]Tasa de Falla'!IY115=0,"",'[1]Tasa de Falla'!IY115) ->  | O115: =IF('[1]Tasa de Falla'!IZ115=0,"",'[1]Tasa de Falla'!IZ115) ->  | P115: =IF('[1]Tasa de Falla'!JA115=0,"",'[1]Tasa de Falla'!JA115) ->  | Q115: =IF('[1]Tasa de Falla'!JB115=0,"",'[1]Tasa de Falla'!JB115) ->  | R115: =IF('[1]Tasa de Falla'!JC115=0,"",'[1]Tasa de Falla'!JC115) -> 1
C116: ='[1]Tasa de Falla'!C116 -> 99 | D116: ='[1]Tasa de Falla'!D116 -> LA BANDA ESTE - LA BANDA | E116: ='[1]Tasa de Falla'!E116 -> 132 | F116: ='[1]Tasa de Falla'!F116 -> 16.2 | G116: =IF('[1]Tasa de Falla'!IR116=0,"",'[1]Tasa de Falla'!IR116) ->  | H116: =IF('[1]Tasa de Falla'!IS116=0,"",'[1]Tasa de Falla'!IS116) ->  | I116: =IF('[1]Tasa de Falla'!IT116=0,"",'[1]Tasa de Falla'!IT116) ->  | J116: =IF('[1]Tasa de Falla'!IU116=0,"",'[1]Tasa de Falla'!IU116) ->  | K116: =IF('[1]Tasa de Falla'!IV116=0,"",'[1]Tasa de Falla'!IV116) ->  | L116: =IF('[1]Tasa de Falla'!IW116=0,"",'[1]Tasa de Falla'!IW116) ->  | M116: =IF('[1]Tasa de Falla'!IX116=0,"",'[1]Tasa de Falla'!IX116) ->  | N116: =IF('[1]Tasa de Falla'!IY116=0,"",'[1]Tasa de Falla'!IY116) ->  | O116: =IF('[1]Tasa de Falla'!IZ116=0,"",'[1]Tasa de Falla'!IZ116) ->  | P116: =IF('[1]Tasa de Falla'!JA116=0,"",'[1]Tasa de Falla'!JA116) ->  | Q116: =IF('[1]Tasa de Falla'!JB116=0,"",'[1]Tasa de Falla'!JB116) ->  | R116: =IF('[1]Tasa de Falla'!JC116=0,"",'[1]Tasa de Falla'!JC116) -> 
C117: ='[1]Tasa de Falla'!C117 -> 100 | D117: ='[1]Tasa de Falla'!D117 -> TABACAL - PICHANAL | E117: ='[1]Tasa de Falla'!E117 -> 132 | F117: ='[1]Tasa de Falla'!F117 -> 9.04 | G117: =IF('[1]Tasa de Falla'!IR117=0,"",'[1]Tasa de Falla'!IR117) ->  | H117: =IF('[1]Tasa de Falla'!IS117=0,"",'[1]Tasa de Falla'!IS117) ->  | I117: =IF('[1]Tasa de Falla'!IT117=0,"",'[1]Tasa de Falla'!IT117) ->  | J117: =IF('[1]Tasa de Falla'!IU117=0,"",'[1]Tasa de Falla'!IU117) ->  | K117: =IF('[1]Tasa de Falla'!IV117=0,"",'[1]Tasa de Falla'!IV117) ->  | L117: =IF('[1]Tasa de Falla'!IW117=0,"",'[1]Tasa de Falla'!IW117) ->  | M117: =IF('[1]Tasa de Falla'!IX117=0,"",'[1]Tasa de Falla'!IX117) ->  | N117: =IF('[1]Tasa de Falla'!IY117=0,"",'[1]Tasa de Falla'!IY117) ->  | O117: =IF('[1]Tasa de Falla'!IZ117=0,"",'[1]Tasa de Falla'!IZ117) ->  | P117: =IF('[1]Tasa de Falla'!JA117=0,"",'[1]Tasa de Falla'!JA117) ->  | Q117: =IF('[1]Tasa de Falla'!JB117=0,"",'[1]Tasa de Falla'!JB117) ->  | R117: =IF('[1]Tasa de Falla'!JC117=0,"",'[1]Tasa de Falla'!JC117) -> 
C118: ='[1]Tasa de Falla'!C118 -> 101 | D118: ='[1]Tasa de Falla'!D118 -> ORAN - TABACAL | E118: ='[1]Tasa de Falla'!E118 -> 132 | F118: ='[1]Tasa de Falla'!F118 -> 10 | G118: =IF('[1]Tasa de Falla'!IR118=0,"",'[1]Tasa de Falla'!IR118) ->  | H118: =IF('[1]Tasa de Falla'!IS118=0,"",'[1]Tasa de Falla'!IS118) ->  | I118: =IF('[1]Tasa de Falla'!IT118=0,"",'[1]Tasa de Falla'!IT118) ->  | J118: =IF('[1]Tasa de Falla'!IU118=0,"",'[1]Tasa de Falla'!IU118) ->  | K118: =IF('[1]Tasa de Falla'!IV118=0,"",'[1]Tasa de Falla'!IV118) ->  | L118: =IF('[1]Tasa de Falla'!IW118=0,"",'[1]Tasa de Falla'!IW118) ->  | M118: =IF('[1]Tasa de Falla'!IX118=0,"",'[1]Tasa de Falla'!IX118) ->  | N118: =IF('[1]Tasa de Falla'!IY118=0,"",'[1]Tasa de Falla'!IY118) -> 1 | O118: =IF('[1]Tasa de Falla'!IZ118=0,"",'[1]Tasa de Falla'!IZ118) ->  | P118: =IF('[1]Tasa de Falla'!JA118=0,"",'[1]Tasa de Falla'!JA118) ->  | Q118: =IF('[1]Tasa de Falla'!JB118=0,"",'[1]Tasa de Falla'!JB118) ->  | R118: =IF('[1]Tasa de Falla'!JC118=0,"",'[1]Tasa de Falla'!JC118) -> 
C119: ='[1]Tasa de Falla'!C119 -> 102 | D119: ='[1]Tasa de Falla'!D119 -> MONTE QUEMADO -COPO - QUIMILI | E119: ='[1]Tasa de Falla'!E119 -> 132 | F119: ='[1]Tasa de Falla'!F119 -> 218 | G119: =IF('[1]Tasa de Falla'!IR119=0,"",'[1]Tasa de Falla'!IR119) ->  | H119: =IF('[1]Tasa de Falla'!IS119=0,"",'[1]Tasa de Falla'!IS119) ->  | I119: =IF('[1]Tasa de Falla'!IT119=0,"",'[1]Tasa de Falla'!IT119) -> 1 | J119: =IF('[1]Tasa de Falla'!IU119=0,"",'[1]Tasa de Falla'!IU119) ->  | K119: =IF('[1]Tasa de Falla'!IV119=0,"",'[1]Tasa de Falla'!IV119) ->  | L119: =IF('[1]Tasa de Falla'!IW119=0,"",'[1]Tasa de Falla'!IW119) ->  | M119: =IF('[1]Tasa de Falla'!IX119=0,"",'[1]Tasa de Falla'!IX119) ->  | N119: =IF('[1]Tasa de Falla'!IY119=0,"",'[1]Tasa de Falla'!IY119) ->  | O119: =IF('[1]Tasa de Falla'!IZ119=0,"",'[1]Tasa de Falla'!IZ119) ->  | P119: =IF('[1]Tasa de Falla'!JA119=0,"",'[1]Tasa de Falla'!JA119) ->  | Q119: =IF('[1]Tasa de Falla'!JB119=0,"",'[1]Tasa de Falla'!JB119) ->  | R119: =IF('[1]Tasa de Falla'!JC119=0,"",'[1]Tasa de Falla'!JC119) -> 
C120: ='[1]Tasa de Falla'!C120 -> 103 | D120: ='[1]Tasa de Falla'!D120 -> PI. CIRCUNVALACIÓN - LARIOJA N. 1 | E120: ='[1]Tasa de Falla'!E120 -> 132 | F120: ='[1]Tasa de Falla'!F120 -> 16.65 | G120: =IF('[1]Tasa de Falla'!IR120=0,"",'[1]Tasa de Falla'!IR120) ->  | H120: =IF('[1]Tasa de Falla'!IS120=0,"",'[1]Tasa de Falla'!IS120) -> 1 | I120: =IF('[1]Tasa de Falla'!IT120=0,"",'[1]Tasa de Falla'!IT120) ->  | J120: =IF('[1]Tasa de Falla'!IU120=0,"",'[1]Tasa de Falla'!IU120) ->  | K120: =IF('[1]Tasa de Falla'!IV120=0,"",'[1]Tasa de Falla'!IV120) ->  | L120: =IF('[1]Tasa de Falla'!IW120=0,"",'[1]Tasa de Falla'!IW120) ->  | M120: =IF('[1]Tasa de Falla'!IX120=0,"",'[1]Tasa de Falla'!IX120) ->  | N120: =IF('[1]Tasa de Falla'!IY120=0,"",'[1]Tasa de Falla'!IY120) ->  | O120: =IF('[1]Tasa de Falla'!IZ120=0,"",'[1]Tasa de Falla'!IZ120) ->  | P120: =IF('[1]Tasa de Falla'!JA120=0,"",'[1]Tasa de Falla'!JA120) ->  | Q120: =IF('[1]Tasa de Falla'!JB120=0,"",'[1]Tasa de Falla'!JB120) ->  | R120: =IF('[1]Tasa de Falla'!JC120=0,"",'[1]Tasa de Falla'!JC120) -> 
C121: ='[1]Tasa de Falla'!C121 -> 104 | D121: ='[1]Tasa de Falla'!D121 -> PATQUIA NONOGASTA 132 1 | E121: ='[1]Tasa de Falla'!E121 -> 132 | F121: ='[1]Tasa de Falla'!F121 -> 108.3 | G121: =IF('[1]Tasa de Falla'!IR121=0,"",'[1]Tasa de Falla'!IR121) ->  | H121: =IF('[1]Tasa de Falla'!IS121=0,"",'[1]Tasa de Falla'!IS121) ->  | I121: =IF('[1]Tasa de Falla'!IT121=0,"",'[1]Tasa de Falla'!IT121) ->  | J121: =IF('[1]Tasa de Falla'!IU121=0,"",'[1]Tasa de Falla'!IU121) ->  | K121: =IF('[1]Tasa de Falla'!IV121=0,"",'[1]Tasa de Falla'!IV121) ->  | L121: =IF('[1]Tasa de Falla'!IW121=0,"",'[1]Tasa de Falla'!IW121) ->  | M121: =IF('[1]Tasa de Falla'!IX121=0,"",'[1]Tasa de Falla'!IX121) ->  | N121: =IF('[1]Tasa de Falla'!IY121=0,"",'[1]Tasa de Falla'!IY121) ->  | O121: =IF('[1]Tasa de Falla'!IZ121=0,"",'[1]Tasa de Falla'!IZ121) ->  | P121: =IF('[1]Tasa de Falla'!JA121=0,"",'[1]Tasa de Falla'!JA121) ->  | Q121: =IF('[1]Tasa de Falla'!JB121=0,"",'[1]Tasa de Falla'!JB121) ->  | R121: =IF('[1]Tasa de Falla'!JC121=0,"",'[1]Tasa de Falla'!JC121) -> 
C122: ='[1]Tasa de Falla'!C122 -> 105 | D122: ='[1]Tasa de Falla'!D122 -> NONOGASTA - VILLA UNION 132 1 | E122: ='[1]Tasa de Falla'!E122 -> 132 | F122: ='[1]Tasa de Falla'!F122 -> 82.1 | G122: =IF('[1]Tasa de Falla'!IR122=0,"",'[1]Tasa de Falla'!IR122) ->  | H122: =IF('[1]Tasa de Falla'!IS122=0,"",'[1]Tasa de Falla'!IS122) ->  | I122: =IF('[1]Tasa de Falla'!IT122=0,"",'[1]Tasa de Falla'!IT122) ->  | J122: =IF('[1]Tasa de Falla'!IU122=0,"",'[1]Tasa de Falla'!IU122) ->  | K122: =IF('[1]Tasa de Falla'!IV122=0,"",'[1]Tasa de Falla'!IV122) ->  | L122: =IF('[1]Tasa de Falla'!IW122=0,"",'[1]Tasa de Falla'!IW122) ->  | M122: =IF('[1]Tasa de Falla'!IX122=0,"",'[1]Tasa de Falla'!IX122) ->  | N122: =IF('[1]Tasa de Falla'!IY122=0,"",'[1]Tasa de Falla'!IY122) ->  | O122: =IF('[1]Tasa de Falla'!IZ122=0,"",'[1]Tasa de Falla'!IZ122) ->  | P122: =IF('[1]Tasa de Falla'!JA122=0,"",'[1]Tasa de Falla'!JA122) ->  | Q122: =IF('[1]Tasa de Falla'!JB122=0,"",'[1]Tasa de Falla'!JB122) ->  | R122: =IF('[1]Tasa de Falla'!JC122=0,"",'[1]Tasa de Falla'!JC122) -> 
C123: ='[1]Tasa de Falla'!C123 -> 106 | D123: ='[1]Tasa de Falla'!D123 -> ARAUCO - AIMOGASTA 132 1 | E123: ='[1]Tasa de Falla'!E123 -> 132 | F123: ='[1]Tasa de Falla'!F123 -> 20 | G123: =IF('[1]Tasa de Falla'!IR123=0,"",'[1]Tasa de Falla'!IR123) ->  | H123: =IF('[1]Tasa de Falla'!IS123=0,"",'[1]Tasa de Falla'!IS123) ->  | I123: =IF('[1]Tasa de Falla'!IT123=0,"",'[1]Tasa de Falla'!IT123) ->  | J123: =IF('[1]Tasa de Falla'!IU123=0,"",'[1]Tasa de Falla'!IU123) ->  | K123: =IF('[1]Tasa de Falla'!IV123=0,"",'[1]Tasa de Falla'!IV123) ->  | L123: =IF('[1]Tasa de Falla'!IW123=0,"",'[1]Tasa de Falla'!IW123) ->  | M123: =IF('[1]Tasa de Falla'!IX123=0,"",'[1]Tasa de Falla'!IX123) ->  | N123: =IF('[1]Tasa de Falla'!IY123=0,"",'[1]Tasa de Falla'!IY123) ->  | O123: =IF('[1]Tasa de Falla'!IZ123=0,"",'[1]Tasa de Falla'!IZ123) ->  | P123: =IF('[1]Tasa de Falla'!JA123=0,"",'[1]Tasa de Falla'!JA123) ->  | Q123: =IF('[1]Tasa de Falla'!JB123=0,"",'[1]Tasa de Falla'!JB123) ->  | R123: =IF('[1]Tasa de Falla'!JC123=0,"",'[1]Tasa de Falla'!JC123) -> 
C124: ='[1]Tasa de Falla'!C124 -> 107 | D124: ='[1]Tasa de Falla'!D124 -> PATQUIA - CHAMICAL 132 1 | E124: ='[1]Tasa de Falla'!E124 -> 132 | F124: ='[1]Tasa de Falla'!F124 -> 67.4 | G124: =IF('[1]Tasa de Falla'!IR124=0,"",'[1]Tasa de Falla'!IR124) ->  | H124: =IF('[1]Tasa de Falla'!IS124=0,"",'[1]Tasa de Falla'!IS124) ->  | I124: =IF('[1]Tasa de Falla'!IT124=0,"",'[1]Tasa de Falla'!IT124) ->  | J124: =IF('[1]Tasa de Falla'!IU124=0,"",'[1]Tasa de Falla'!IU124) ->  | K124: =IF('[1]Tasa de Falla'!IV124=0,"",'[1]Tasa de Falla'!IV124) ->  | L124: =IF('[1]Tasa de Falla'!IW124=0,"",'[1]Tasa de Falla'!IW124) ->  | M124: =IF('[1]Tasa de Falla'!IX124=0,"",'[1]Tasa de Falla'!IX124) ->  | N124: =IF('[1]Tasa de Falla'!IY124=0,"",'[1]Tasa de Falla'!IY124) ->  | O124: =IF('[1]Tasa de Falla'!IZ124=0,"",'[1]Tasa de Falla'!IZ124) ->  | P124: =IF('[1]Tasa de Falla'!JA124=0,"",'[1]Tasa de Falla'!JA124) ->  | Q124: =IF('[1]Tasa de Falla'!JB124=0,"",'[1]Tasa de Falla'!JB124) ->  | R124: =IF('[1]Tasa de Falla'!JC124=0,"",'[1]Tasa de Falla'!JC124) -> 
C125: ='[1]Tasa de Falla'!C125 -> 108 | D125: ='[1]Tasa de Falla'!D125 -> LA RIOJA - ARAUCO 132 1 | E125: ='[1]Tasa de Falla'!E125 -> 132 | F125: ='[1]Tasa de Falla'!F125 -> 84.3 | G125: =IF('[1]Tasa de Falla'!IR125=0,"",'[1]Tasa de Falla'!IR125) ->  | H125: =IF('[1]Tasa de Falla'!IS125=0,"",'[1]Tasa de Falla'!IS125) ->  | I125: =IF('[1]Tasa de Falla'!IT125=0,"",'[1]Tasa de Falla'!IT125) ->  | J125: =IF('[1]Tasa de Falla'!IU125=0,"",'[1]Tasa de Falla'!IU125) ->  | K125: =IF('[1]Tasa de Falla'!IV125=0,"",'[1]Tasa de Falla'!IV125) ->  | L125: =IF('[1]Tasa de Falla'!IW125=0,"",'[1]Tasa de Falla'!IW125) -> 1 | M125: =IF('[1]Tasa de Falla'!IX125=0,"",'[1]Tasa de Falla'!IX125) ->  | N125: =IF('[1]Tasa de Falla'!IY125=0,"",'[1]Tasa de Falla'!IY125) ->  | O125: =IF('[1]Tasa de Falla'!IZ125=0,"",'[1]Tasa de Falla'!IZ125) ->  | P125: =IF('[1]Tasa de Falla'!JA125=0,"",'[1]Tasa de Falla'!JA125) ->  | Q125: =IF('[1]Tasa de Falla'!JB125=0,"",'[1]Tasa de Falla'!JB125) ->  | R125: =IF('[1]Tasa de Falla'!JC125=0,"",'[1]Tasa de Falla'!JC125) -> 
C126: ='[1]Tasa de Falla'!C126 -> 109 | D126: ='[1]Tasa de Falla'!D126 -> PI PATQUIA - PATQUIA 132 1 | E126: ='[1]Tasa de Falla'!E126 -> 132 | F126: ='[1]Tasa de Falla'!F126 -> 58.65 | G126: =IF('[1]Tasa de Falla'!IR126=0,"",'[1]Tasa de Falla'!IR126) ->  | H126: =IF('[1]Tasa de Falla'!IS126=0,"",'[1]Tasa de Falla'!IS126) ->  | I126: =IF('[1]Tasa de Falla'!IT126=0,"",'[1]Tasa de Falla'!IT126) ->  | J126: =IF('[1]Tasa de Falla'!IU126=0,"",'[1]Tasa de Falla'!IU126) ->  | K126: =IF('[1]Tasa de Falla'!IV126=0,"",'[1]Tasa de Falla'!IV126) ->  | L126: =IF('[1]Tasa de Falla'!IW126=0,"",'[1]Tasa de Falla'!IW126) ->  | M126: =IF('[1]Tasa de Falla'!IX126=0,"",'[1]Tasa de Falla'!IX126) ->  | N126: =IF('[1]Tasa de Falla'!IY126=0,"",'[1]Tasa de Falla'!IY126) ->  | O126: =IF('[1]Tasa de Falla'!IZ126=0,"",'[1]Tasa de Falla'!IZ126) ->  | P126: =IF('[1]Tasa de Falla'!JA126=0,"",'[1]Tasa de Falla'!JA126) ->  | Q126: =IF('[1]Tasa de Falla'!JB126=0,"",'[1]Tasa de Falla'!JB126) ->  | R126: =IF('[1]Tasa de Falla'!JC126=0,"",'[1]Tasa de Falla'!JC126) -> 
C127: ='[1]Tasa de Falla'!C127 -> 110 | D127: ='[1]Tasa de Falla'!D127 -> RIO HONDO - TERMAS NORTE | E127: ='[1]Tasa de Falla'!E127 -> 132 | F127: ='[1]Tasa de Falla'!F127 -> 5.8 | G127: =IF('[1]Tasa de Falla'!IR127=0,"",'[1]Tasa de Falla'!IR127) -> XXXX | H127: =IF('[1]Tasa de Falla'!IS127=0,"",'[1]Tasa de Falla'!IS127) ->  | I127: =IF('[1]Tasa de Falla'!IT127=0,"",'[1]Tasa de Falla'!IT127) ->  | J127: =IF('[1]Tasa de Falla'!IU127=0,"",'[1]Tasa de Falla'!IU127) ->  | K127: =IF('[1]Tasa de Falla'!IV127=0,"",'[1]Tasa de Falla'!IV127) ->  | L127: =IF('[1]Tasa de Falla'!IW127=0,"",'[1]Tasa de Falla'!IW127) ->  | M127: =IF('[1]Tasa de Falla'!IX127=0,"",'[1]Tasa de Falla'!IX127) ->  | N127: =IF('[1]Tasa de Falla'!IY127=0,"",'[1]Tasa de Falla'!IY127) ->  | O127: =IF('[1]Tasa de Falla'!IZ127=0,"",'[1]Tasa de Falla'!IZ127) ->  | P127: =IF('[1]Tasa de Falla'!JA127=0,"",'[1]Tasa de Falla'!JA127) ->  | Q127: =IF('[1]Tasa de Falla'!JB127=0,"",'[1]Tasa de Falla'!JB127) ->  | R127: =IF('[1]Tasa de Falla'!JC127=0,"",'[1]Tasa de Falla'!JC127) -> 
C128: ='[1]Tasa de Falla'!C128 -> 111 | D128: ='[1]Tasa de Falla'!D128 -> EL BRACHO - TETRMAS NORTE | E128: ='[1]Tasa de Falla'!E128 -> 132 | F128: ='[1]Tasa de Falla'!F128 -> 78.4 | G128: =IF('[1]Tasa de Falla'!IR128=0,"",'[1]Tasa de Falla'!IR128) -> XXXX | H128: =IF('[1]Tasa de Falla'!IS128=0,"",'[1]Tasa de Falla'!IS128) ->  | I128: =IF('[1]Tasa de Falla'!IT128=0,"",'[1]Tasa de Falla'!IT128) ->  | J128: =IF('[1]Tasa de Falla'!IU128=0,"",'[1]Tasa de Falla'!IU128) ->  | K128: =IF('[1]Tasa de Falla'!IV128=0,"",'[1]Tasa de Falla'!IV128) ->  | L128: =IF('[1]Tasa de Falla'!IW128=0,"",'[1]Tasa de Falla'!IW128) ->  | M128: =IF('[1]Tasa de Falla'!IX128=0,"",'[1]Tasa de Falla'!IX128) ->  | N128: =IF('[1]Tasa de Falla'!IY128=0,"",'[1]Tasa de Falla'!IY128) ->  | O128: =IF('[1]Tasa de Falla'!IZ128=0,"",'[1]Tasa de Falla'!IZ128) -> 1 | P128: =IF('[1]Tasa de Falla'!JA128=0,"",'[1]Tasa de Falla'!JA128) -> 1 | Q128: =IF('[1]Tasa de Falla'!JB128=0,"",'[1]Tasa de Falla'!JB128) ->  | R128: =IF('[1]Tasa de Falla'!JC128=0,"",'[1]Tasa de Falla'!JC128) -> 
C129: ='[1]Tasa de Falla'!C129 -> 112 | D129: ='[1]Tasa de Falla'!D129 -> PI 150 NORTE - LA RIOJA ESTE | E129: ='[1]Tasa de Falla'!E129 -> 132 | F129: ='[1]Tasa de Falla'!F129 -> 4 | G129: =IF('[1]Tasa de Falla'!IR129=0,"",'[1]Tasa de Falla'!IR129) -> XXXX | H129: =IF('[1]Tasa de Falla'!IS129=0,"",'[1]Tasa de Falla'!IS129) ->  | I129: =IF('[1]Tasa de Falla'!IT129=0,"",'[1]Tasa de Falla'!IT129) ->  | J129: =IF('[1]Tasa de Falla'!IU129=0,"",'[1]Tasa de Falla'!IU129) ->  | K129: =IF('[1]Tasa de Falla'!IV129=0,"",'[1]Tasa de Falla'!IV129) ->  | L129: =IF('[1]Tasa de Falla'!IW129=0,"",'[1]Tasa de Falla'!IW129) ->  | M129: =IF('[1]Tasa de Falla'!IX129=0,"",'[1]Tasa de Falla'!IX129) ->  | N129: =IF('[1]Tasa de Falla'!IY129=0,"",'[1]Tasa de Falla'!IY129) ->  | O129: =IF('[1]Tasa de Falla'!IZ129=0,"",'[1]Tasa de Falla'!IZ129) ->  | P129: =IF('[1]Tasa de Falla'!JA129=0,"",'[1]Tasa de Falla'!JA129) ->  | Q129: =IF('[1]Tasa de Falla'!JB129=0,"",'[1]Tasa de Falla'!JB129) ->  | R129: =IF('[1]Tasa de Falla'!JC129=0,"",'[1]Tasa de Falla'!JC129) -> 
C130: ='[1]Tasa de Falla'!C130 -> 113 | D130: ='[1]Tasa de Falla'!D130 -> PI 150 SUR - LA RIOJA ESTE | E130: ='[1]Tasa de Falla'!E130 -> 132 | F130: ='[1]Tasa de Falla'!F130 -> 4 | G130: =IF('[1]Tasa de Falla'!IR130=0,"",'[1]Tasa de Falla'!IR130) -> XXXX | H130: =IF('[1]Tasa de Falla'!IS130=0,"",'[1]Tasa de Falla'!IS130) ->  | I130: =IF('[1]Tasa de Falla'!IT130=0,"",'[1]Tasa de Falla'!IT130) ->  | J130: =IF('[1]Tasa de Falla'!IU130=0,"",'[1]Tasa de Falla'!IU130) ->  | K130: =IF('[1]Tasa de Falla'!IV130=0,"",'[1]Tasa de Falla'!IV130) ->  | L130: =IF('[1]Tasa de Falla'!IW130=0,"",'[1]Tasa de Falla'!IW130) ->  | M130: =IF('[1]Tasa de Falla'!IX130=0,"",'[1]Tasa de Falla'!IX130) ->  | N130: =IF('[1]Tasa de Falla'!IY130=0,"",'[1]Tasa de Falla'!IY130) ->  | O130: =IF('[1]Tasa de Falla'!IZ130=0,"",'[1]Tasa de Falla'!IZ130) ->  | P130: =IF('[1]Tasa de Falla'!JA130=0,"",'[1]Tasa de Falla'!JA130) ->  | Q130: =IF('[1]Tasa de Falla'!JB130=0,"",'[1]Tasa de Falla'!JB130) ->  | R130: =IF('[1]Tasa de Falla'!JC130=0,"",'[1]Tasa de Falla'!JC130) -> 
C131: ='[1]Tasa de Falla'!C131 -> 114 | D131: ='[1]Tasa de Falla'!D131 -> QUIMILI - CAMPO GALLO 132 1 | E131: ='[1]Tasa de Falla'!E131 -> 132 | F131: ='[1]Tasa de Falla'!F131 -> 140 | G131: =IF('[1]Tasa de Falla'!IR131=0,"",'[1]Tasa de Falla'!IR131) -> XXXX | H131: =IF('[1]Tasa de Falla'!IS131=0,"",'[1]Tasa de Falla'!IS131) -> XXXX | I131: =IF('[1]Tasa de Falla'!IT131=0,"",'[1]Tasa de Falla'!IT131) ->  | J131: =IF('[1]Tasa de Falla'!IU131=0,"",'[1]Tasa de Falla'!IU131) ->  | K131: =IF('[1]Tasa de Falla'!IV131=0,"",'[1]Tasa de Falla'!IV131) ->  | L131: =IF('[1]Tasa de Falla'!IW131=0,"",'[1]Tasa de Falla'!IW131) ->  | M131: =IF('[1]Tasa de Falla'!IX131=0,"",'[1]Tasa de Falla'!IX131) ->  | N131: =IF('[1]Tasa de Falla'!IY131=0,"",'[1]Tasa de Falla'!IY131) ->  | O131: =IF('[1]Tasa de Falla'!IZ131=0,"",'[1]Tasa de Falla'!IZ131) ->  | P131: =IF('[1]Tasa de Falla'!JA131=0,"",'[1]Tasa de Falla'!JA131) ->  | Q131: =IF('[1]Tasa de Falla'!JB131=0,"",'[1]Tasa de Falla'!JB131) ->  | R131: =IF('[1]Tasa de Falla'!JC131=0,"",'[1]Tasa de Falla'!JC131) -> 
C132: ='[1]Tasa de Falla'!C132 -> 115 | D132: ='[1]Tasa de Falla'!D132 -> CAMPO GALLO - COPO 132 1 | E132: ='[1]Tasa de Falla'!E132 -> 132 | F132: ='[1]Tasa de Falla'!F132 -> 90 | G132: =IF('[1]Tasa de Falla'!IR132=0,"",'[1]Tasa de Falla'!IR132) -> XXXX | H132: =IF('[1]Tasa de Falla'!IS132=0,"",'[1]Tasa de Falla'!IS132) -> XXXX | I132: =IF('[1]Tasa de Falla'!IT132=0,"",'[1]Tasa de Falla'!IT132) ->  | J132: =IF('[1]Tasa de Falla'!IU132=0,"",'[1]Tasa de Falla'!IU132) ->  | K132: =IF('[1]Tasa de Falla'!IV132=0,"",'[1]Tasa de Falla'!IV132) ->  | L132: =IF('[1]Tasa de Falla'!IW132=0,"",'[1]Tasa de Falla'!IW132) ->  | M132: =IF('[1]Tasa de Falla'!IX132=0,"",'[1]Tasa de Falla'!IX132) ->  | N132: =IF('[1]Tasa de Falla'!IY132=0,"",'[1]Tasa de Falla'!IY132) ->  | O132: =IF('[1]Tasa de Falla'!IZ132=0,"",'[1]Tasa de Falla'!IZ132) ->  | P132: =IF('[1]Tasa de Falla'!JA132=0,"",'[1]Tasa de Falla'!JA132) ->  | Q132: =IF('[1]Tasa de Falla'!JB132=0,"",'[1]Tasa de Falla'!JB132) ->  | R132: =IF('[1]Tasa de Falla'!JC132=0,"",'[1]Tasa de Falla'!JC132) -> 
C133: ='[1]Tasa de Falla'!C133 -> 116 | D133: ='[1]Tasa de Falla'!D133 -> PICHANAL - SENDA HACHADA 132 1 | E133: ='[1]Tasa de Falla'!E133 -> 132 | F133: ='[1]Tasa de Falla'!F133 -> 46.5 | G133: =IF('[1]Tasa de Falla'!IR133=0,"",'[1]Tasa de Falla'!IR133) -> XXXX | H133: =IF('[1]Tasa de Falla'!IS133=0,"",'[1]Tasa de Falla'!IS133) -> XXXX | I133: =IF('[1]Tasa de Falla'!IT133=0,"",'[1]Tasa de Falla'!IT133) -> XXXX | J133: =IF('[1]Tasa de Falla'!IU133=0,"",'[1]Tasa de Falla'!IU133) -> XXXX | K133: =IF('[1]Tasa de Falla'!IV133=0,"",'[1]Tasa de Falla'!IV133) ->  | L133: =IF('[1]Tasa de Falla'!IW133=0,"",'[1]Tasa de Falla'!IW133) ->  | M133: =IF('[1]Tasa de Falla'!IX133=0,"",'[1]Tasa de Falla'!IX133) ->  | N133: =IF('[1]Tasa de Falla'!IY133=0,"",'[1]Tasa de Falla'!IY133) ->  | O133: =IF('[1]Tasa de Falla'!IZ133=0,"",'[1]Tasa de Falla'!IZ133) ->  | P133: =IF('[1]Tasa de Falla'!JA133=0,"",'[1]Tasa de Falla'!JA133) ->  | Q133: =IF('[1]Tasa de Falla'!JB133=0,"",'[1]Tasa de Falla'!JB133) ->  | R133: =IF('[1]Tasa de Falla'!JC133=0,"",'[1]Tasa de Falla'!JC133) -> 
C134: ='[1]Tasa de Falla'!C134 -> 117 | D134: ='[1]Tasa de Falla'!D134 -> SENDA HACHADA - TARTAGAL 132 1 | E134: ='[1]Tasa de Falla'!E134 -> 132 | F134: ='[1]Tasa de Falla'!F134 -> 58.5 | G134: =IF('[1]Tasa de Falla'!IR134=0,"",'[1]Tasa de Falla'!IR134) -> XXXX | H134: =IF('[1]Tasa de Falla'!IS134=0,"",'[1]Tasa de Falla'!IS134) -> XXXX | I134: =IF('[1]Tasa de Falla'!IT134=0,"",'[1]Tasa de Falla'!IT134) -> XXXX | J134: =IF('[1]Tasa de Falla'!IU134=0,"",'[1]Tasa de Falla'!IU134) -> XXXX | K134: =IF('[1]Tasa de Falla'!IV134=0,"",'[1]Tasa de Falla'!IV134) ->  | L134: =IF('[1]Tasa de Falla'!IW134=0,"",'[1]Tasa de Falla'!IW134) ->  | M134: =IF('[1]Tasa de Falla'!IX134=0,"",'[1]Tasa de Falla'!IX134) ->  | N134: =IF('[1]Tasa de Falla'!IY134=0,"",'[1]Tasa de Falla'!IY134) ->  | O134: =IF('[1]Tasa de Falla'!IZ134=0,"",'[1]Tasa de Falla'!IZ134) ->  | P134: =IF('[1]Tasa de Falla'!JA134=0,"",'[1]Tasa de Falla'!JA134) ->  | Q134: =IF('[1]Tasa de Falla'!JB134=0,"",'[1]Tasa de Falla'!JB134) ->  | R134: =IF('[1]Tasa de Falla'!JC134=0,"",'[1]Tasa de Falla'!JC134) -> 
C135: ='[1]Tasa de Falla'!C135 -> 118 | D135: ='[1]Tasa de Falla'!D135 -> ESTATICA - INDEPENDENCIA.TUC. 132 2 | E135: ='[1]Tasa de Falla'!E135 -> 132 | F135: ='[1]Tasa de Falla'!F135 -> 3.1 | G135: =IF('[1]Tasa de Falla'!IR135=0,"",'[1]Tasa de Falla'!IR135) -> XXXX | H135: =IF('[1]Tasa de Falla'!IS135=0,"",'[1]Tasa de Falla'!IS135) -> XXXX | I135: =IF('[1]Tasa de Falla'!IT135=0,"",'[1]Tasa de Falla'!IT135) -> XXXX | J135: =IF('[1]Tasa de Falla'!IU135=0,"",'[1]Tasa de Falla'!IU135) -> XXXX | K135: =IF('[1]Tasa de Falla'!IV135=0,"",'[1]Tasa de Falla'!IV135) -> XXXX | L135: =IF('[1]Tasa de Falla'!IW135=0,"",'[1]Tasa de Falla'!IW135) -> XXXX | M135: =IF('[1]Tasa de Falla'!IX135=0,"",'[1]Tasa de Falla'!IX135) ->  | N135: =IF('[1]Tasa de Falla'!IY135=0,"",'[1]Tasa de Falla'!IY135) ->  | O135: =IF('[1]Tasa de Falla'!IZ135=0,"",'[1]Tasa de Falla'!IZ135) -> 1 | P135: =IF('[1]Tasa de Falla'!JA135=0,"",'[1]Tasa de Falla'!JA135) ->  | Q135: =IF('[1]Tasa de Falla'!JB135=0,"",'[1]Tasa de Falla'!JB135) ->  | R135: =IF('[1]Tasa de Falla'!JC135=0,"",'[1]Tasa de Falla'!JC135) -> 
C136: ='[1]Tasa de Falla'!C136 -> 119 | D136: ='[1]Tasa de Falla'!D136 -> SENDA HACHADA - DRAGONES 132 1 | E136: ='[1]Tasa de Falla'!E136 -> 132 | F136: ='[1]Tasa de Falla'!F136 -> 65 | G136: =IF('[1]Tasa de Falla'!IR136=0,"",'[1]Tasa de Falla'!IR136) -> XXXX | H136: =IF('[1]Tasa de Falla'!IS136=0,"",'[1]Tasa de Falla'!IS136) -> XXXX | I136: =IF('[1]Tasa de Falla'!IT136=0,"",'[1]Tasa de Falla'!IT136) -> XXXX | J136: =IF('[1]Tasa de Falla'!IU136=0,"",'[1]Tasa de Falla'!IU136) -> XXXX | K136: =IF('[1]Tasa de Falla'!IV136=0,"",'[1]Tasa de Falla'!IV136) -> XXXX | L136: =IF('[1]Tasa de Falla'!IW136=0,"",'[1]Tasa de Falla'!IW136) -> XXXX | M136: =IF('[1]Tasa de Falla'!IX136=0,"",'[1]Tasa de Falla'!IX136) -> XXXX | N136: =IF('[1]Tasa de Falla'!IY136=0,"",'[1]Tasa de Falla'!IY136) -> XXXX | O136: =IF('[1]Tasa de Falla'!IZ136=0,"",'[1]Tasa de Falla'!IZ136) -> XXXX | P136: =IF('[1]Tasa de Falla'!JA136=0,"",'[1]Tasa de Falla'!JA136) -> XXXX | Q136: =IF('[1]Tasa de Falla'!JB136=0,"",'[1]Tasa de Falla'!JB136) -> XXXX | R136: =IF('[1]Tasa de Falla'!JC136=0,"",'[1]Tasa de Falla'!JC136) -> XXXX
C137: ='[1]Tasa de Falla'!C137 -> 120 | D137: ='[1]Tasa de Falla'!D137 -> COBOS - SALTA ESTE 132 1 | E137: ='[1]Tasa de Falla'!E137 -> 132 | F137: ='[1]Tasa de Falla'!F137 -> 45.6 | G137: =IF('[1]Tasa de Falla'!IR137=0,"",'[1]Tasa de Falla'!IR137) -> XXXX | H137: =IF('[1]Tasa de Falla'!IS137=0,"",'[1]Tasa de Falla'!IS137) -> XXXX | I137: =IF('[1]Tasa de Falla'!IT137=0,"",'[1]Tasa de Falla'!IT137) -> XXXX | J137: =IF('[1]Tasa de Falla'!IU137=0,"",'[1]Tasa de Falla'!IU137) -> XXXX | K137: =IF('[1]Tasa de Falla'!IV137=0,"",'[1]Tasa de Falla'!IV137) -> XXXX | L137: =IF('[1]Tasa de Falla'!IW137=0,"",'[1]Tasa de Falla'!IW137) -> XXXX | M137: =IF('[1]Tasa de Falla'!IX137=0,"",'[1]Tasa de Falla'!IX137) ->  | N137: =IF('[1]Tasa de Falla'!IY137=0,"",'[1]Tasa de Falla'!IY137) -> 1 | O137: =IF('[1]Tasa de Falla'!IZ137=0,"",'[1]Tasa de Falla'!IZ137) ->  | P137: =IF('[1]Tasa de Falla'!JA137=0,"",'[1]Tasa de Falla'!JA137) ->  | Q137: =IF('[1]Tasa de Falla'!JB137=0,"",'[1]Tasa de Falla'!JB137) ->  | R137: =IF('[1]Tasa de Falla'!JC137=0,"",'[1]Tasa de Falla'!JC137) -> 
C138: ='[1]Tasa de Falla'!C138 -> 121 | D138: ='[1]Tasa de Falla'!D138 -> SANTIAGO - SANTIAGO SUR | E138: ='[1]Tasa de Falla'!E138 -> 132 | F138: ='[1]Tasa de Falla'!F138 -> 8.4 | G138: =IF('[1]Tasa de Falla'!IR138=0,"",'[1]Tasa de Falla'!IR138) -> XXXX | H138: =IF('[1]Tasa de Falla'!IS138=0,"",'[1]Tasa de Falla'!IS138) -> XXXX | I138: =IF('[1]Tasa de Falla'!IT138=0,"",'[1]Tasa de Falla'!IT138) -> XXXX | J138: =IF('[1]Tasa de Falla'!IU138=0,"",'[1]Tasa de Falla'!IU138) -> XXXX | K138: =IF('[1]Tasa de Falla'!IV138=0,"",'[1]Tasa de Falla'!IV138) -> XXXX | L138: =IF('[1]Tasa de Falla'!IW138=0,"",'[1]Tasa de Falla'!IW138) -> XXXX | M138: =IF('[1]Tasa de Falla'!IX138=0,"",'[1]Tasa de Falla'!IX138) -> XXXX | N138: =IF('[1]Tasa de Falla'!IY138=0,"",'[1]Tasa de Falla'!IY138) ->  | O138: =IF('[1]Tasa de Falla'!IZ138=0,"",'[1]Tasa de Falla'!IZ138) ->  | P138: =IF('[1]Tasa de Falla'!JA138=0,"",'[1]Tasa de Falla'!JA138) ->  | Q138: =IF('[1]Tasa de Falla'!JB138=0,"",'[1]Tasa de Falla'!JB138) ->  | R138: =IF('[1]Tasa de Falla'!JC138=0,"",'[1]Tasa de Falla'!JC138) -> 1
C139: ='[1]Tasa de Falla'!C139 -> 122 | D139: ='[1]Tasa de Falla'!D139 -> SANTIAGO OESTE - SANTIAGO | E139: ='[1]Tasa de Falla'!E139 -> 132 | F139: ='[1]Tasa de Falla'!F139 -> 8.4 | G139: =IF('[1]Tasa de Falla'!IR139=0,"",'[1]Tasa de Falla'!IR139) -> XXXX | H139: =IF('[1]Tasa de Falla'!IS139=0,"",'[1]Tasa de Falla'!IS139) -> XXXX | I139: =IF('[1]Tasa de Falla'!IT139=0,"",'[1]Tasa de Falla'!IT139) -> XXXX | J139: =IF('[1]Tasa de Falla'!IU139=0,"",'[1]Tasa de Falla'!IU139) -> XXXX | K139: =IF('[1]Tasa de Falla'!IV139=0,"",'[1]Tasa de Falla'!IV139) -> XXXX | L139: =IF('[1]Tasa de Falla'!IW139=0,"",'[1]Tasa de Falla'!IW139) -> XXXX | M139: =IF('[1]Tasa de Falla'!IX139=0,"",'[1]Tasa de Falla'!IX139) -> XXXX | N139: =IF('[1]Tasa de Falla'!IY139=0,"",'[1]Tasa de Falla'!IY139) -> XXXX | O139: =IF('[1]Tasa de Falla'!IZ139=0,"",'[1]Tasa de Falla'!IZ139) -> XXXX | P139: =IF('[1]Tasa de Falla'!JA139=0,"",'[1]Tasa de Falla'!JA139) -> XXXX | Q139: =IF('[1]Tasa de Falla'!JB139=0,"",'[1]Tasa de Falla'!JB139) -> XXXX | R139: =IF('[1]Tasa de Falla'!JC139=0,"",'[1]Tasa de Falla'!JC139) -> XXXX
C140: ='[1]Tasa de Falla'!C140 -> 123 | D140: ='[1]Tasa de Falla'!D140 -> LA BANDA - MISQUI MAYU II - SANTIAGO ESTE | E140: ='[1]Tasa de Falla'!E140 -> 132 | F140: ='[1]Tasa de Falla'!F140 -> 4.92 | G140: =IF('[1]Tasa de Falla'!IR140=0,"",'[1]Tasa de Falla'!IR140) -> XXXX | H140: =IF('[1]Tasa de Falla'!IS140=0,"",'[1]Tasa de Falla'!IS140) -> XXXX | I140: =IF('[1]Tasa de Falla'!IT140=0,"",'[1]Tasa de Falla'!IT140) -> XXXX | J140: =IF('[1]Tasa de Falla'!IU140=0,"",'[1]Tasa de Falla'!IU140) -> XXXX | K140: =IF('[1]Tasa de Falla'!IV140=0,"",'[1]Tasa de Falla'!IV140) -> XXXX | L140: =IF('[1]Tasa de Falla'!IW140=0,"",'[1]Tasa de Falla'!IW140) -> XXXX | M140: =IF('[1]Tasa de Falla'!IX140=0,"",'[1]Tasa de Falla'!IX140) -> XXXX | N140: =IF('[1]Tasa de Falla'!IY140=0,"",'[1]Tasa de Falla'!IY140) ->  | O140: =IF('[1]Tasa de Falla'!IZ140=0,"",'[1]Tasa de Falla'!IZ140) ->  | P140: =IF('[1]Tasa de Falla'!JA140=0,"",'[1]Tasa de Falla'!JA140) ->  | Q140: =IF('[1]Tasa de Falla'!JB140=0,"",'[1]Tasa de Falla'!JB140) -> 1 | R140: =IF('[1]Tasa de Falla'!JC140=0,"",'[1]Tasa de Falla'!JC140) -> 
C141: ='[1]Tasa de Falla'!C141 -> 124 | D141: ='[1]Tasa de Falla'!D141 -> CABRA CORRAL - GUACHIPAS - PAMPA GRANDE | E141: ='[1]Tasa de Falla'!E141 -> 132 | F141: ='[1]Tasa de Falla'!F141 -> 72.1 | G141: =IF('[1]Tasa de Falla'!IR141=0,"",'[1]Tasa de Falla'!IR141) -> XXXX | H141: =IF('[1]Tasa de Falla'!IS141=0,"",'[1]Tasa de Falla'!IS141) -> XXXX | I141: =IF('[1]Tasa de Falla'!IT141=0,"",'[1]Tasa de Falla'!IT141) -> XXXX | J141: =IF('[1]Tasa de Falla'!IU141=0,"",'[1]Tasa de Falla'!IU141) -> XXXX | K141: =IF('[1]Tasa de Falla'!IV141=0,"",'[1]Tasa de Falla'!IV141) -> XXXX | L141: =IF('[1]Tasa de Falla'!IW141=0,"",'[1]Tasa de Falla'!IW141) -> XXXX | M141: =IF('[1]Tasa de Falla'!IX141=0,"",'[1]Tasa de Falla'!IX141) -> XXXX | N141: =IF('[1]Tasa de Falla'!IY141=0,"",'[1]Tasa de Falla'!IY141) -> XXXX | O141: =IF('[1]Tasa de Falla'!IZ141=0,"",'[1]Tasa de Falla'!IZ141) -> XXXX | P141: =IF('[1]Tasa de Falla'!JA141=0,"",'[1]Tasa de Falla'!JA141) -> XXXX | Q141: =IF('[1]Tasa de Falla'!JB141=0,"",'[1]Tasa de Falla'!JB141) -> XXXX | R141: =IF('[1]Tasa de Falla'!JC141=0,"",'[1]Tasa de Falla'!JC141) -> XXXX
C142: ='[1]Tasa de Falla'!C142 -> 125 | D142: ='[1]Tasa de Falla'!D142 -> EL TABACAL - PI. TABACAL II - ORAN | E142: ='[1]Tasa de Falla'!E142 -> 132 | F142: ='[1]Tasa de Falla'!F142 -> 12.04 | G142: =IF('[1]Tasa de Falla'!IR142=0,"",'[1]Tasa de Falla'!IR142) -> XXXX | H142: =IF('[1]Tasa de Falla'!IS142=0,"",'[1]Tasa de Falla'!IS142) -> XXXX | I142: =IF('[1]Tasa de Falla'!IT142=0,"",'[1]Tasa de Falla'!IT142) -> XXXX | J142: =IF('[1]Tasa de Falla'!IU142=0,"",'[1]Tasa de Falla'!IU142) -> XXXX | K142: =IF('[1]Tasa de Falla'!IV142=0,"",'[1]Tasa de Falla'!IV142) -> XXXX | L142: =IF('[1]Tasa de Falla'!IW142=0,"",'[1]Tasa de Falla'!IW142) -> XXXX | M142: =IF('[1]Tasa de Falla'!IX142=0,"",'[1]Tasa de Falla'!IX142) -> XXXX | N142: =IF('[1]Tasa de Falla'!IY142=0,"",'[1]Tasa de Falla'!IY142) -> XXXX | O142: =IF('[1]Tasa de Falla'!IZ142=0,"",'[1]Tasa de Falla'!IZ142) -> XXXX | P142: =IF('[1]Tasa de Falla'!JA142=0,"",'[1]Tasa de Falla'!JA142) -> XXXX | Q142: =IF('[1]Tasa de Falla'!JB142=0,"",'[1]Tasa de Falla'!JB142) -> XXXX | R142: =IF('[1]Tasa de Falla'!JC142=0,"",'[1]Tasa de Falla'!JC142) -> XXXX
C143: ='[1]Tasa de Falla'!C143 -> 126 | D143: ='[1]Tasa de Falla'!D143 -> GUEMES - CAMPO SANTO - MINETTI | E143: ='[1]Tasa de Falla'!E143 -> 132 | F143: ='[1]Tasa de Falla'!F143 -> 41.8 | G143: =IF('[1]Tasa de Falla'!IR143=0,"",'[1]Tasa de Falla'!IR143) ->  | H143: =IF('[1]Tasa de Falla'!IS143=0,"",'[1]Tasa de Falla'!IS143) ->  | I143: =IF('[1]Tasa de Falla'!IT143=0,"",'[1]Tasa de Falla'!IT143) ->  | J143: =IF('[1]Tasa de Falla'!IU143=0,"",'[1]Tasa de Falla'!IU143) ->  | K143: =IF('[1]Tasa de Falla'!IV143=0,"",'[1]Tasa de Falla'!IV143) ->  | L143: =IF('[1]Tasa de Falla'!IW143=0,"",'[1]Tasa de Falla'!IW143) -> 2 | M143: =IF('[1]Tasa de Falla'!IX143=0,"",'[1]Tasa de Falla'!IX143) -> 3 | N143: =IF('[1]Tasa de Falla'!IY143=0,"",'[1]Tasa de Falla'!IY143) ->  | O143: =IF('[1]Tasa de Falla'!IZ143=0,"",'[1]Tasa de Falla'!IZ143) ->  | P143: =IF('[1]Tasa de Falla'!JA143=0,"",'[1]Tasa de Falla'!JA143) -> 1 | Q143: =IF('[1]Tasa de Falla'!JB143=0,"",'[1]Tasa de Falla'!JB143) -> 1 | R143: =IF('[1]Tasa de Falla'!JC143=0,"",'[1]Tasa de Falla'!JC143) -> 
C144: ='[1]Tasa de Falla'!C144 -> 127 | D144: ='[1]Tasa de Falla'!D144 -> GUEMES - CAMPO SANTO - PARQUE IND. | E144: ='[1]Tasa de Falla'!E144 -> 132 | F144: ='[1]Tasa de Falla'!F144 -> 38.86 | G144: =IF('[1]Tasa de Falla'!IR144=0,"",'[1]Tasa de Falla'!IR144) ->  | H144: =IF('[1]Tasa de Falla'!IS144=0,"",'[1]Tasa de Falla'!IS144) ->  | I144: =IF('[1]Tasa de Falla'!IT144=0,"",'[1]Tasa de Falla'!IT144) ->  | J144: =IF('[1]Tasa de Falla'!IU144=0,"",'[1]Tasa de Falla'!IU144) ->  | K144: =IF('[1]Tasa de Falla'!IV144=0,"",'[1]Tasa de Falla'!IV144) ->  | L144: =IF('[1]Tasa de Falla'!IW144=0,"",'[1]Tasa de Falla'!IW144) ->  | M144: =IF('[1]Tasa de Falla'!IX144=0,"",'[1]Tasa de Falla'!IX144) ->  | N144: =IF('[1]Tasa de Falla'!IY144=0,"",'[1]Tasa de Falla'!IY144) ->  | O144: =IF('[1]Tasa de Falla'!IZ144=0,"",'[1]Tasa de Falla'!IZ144) ->  | P144: =IF('[1]Tasa de Falla'!JA144=0,"",'[1]Tasa de Falla'!JA144) ->  | Q144: =IF('[1]Tasa de Falla'!JB144=0,"",'[1]Tasa de Falla'!JB144) ->  | R144: =IF('[1]Tasa de Falla'!JC144=0,"",'[1]Tasa de Falla'!JC144) -> 
C145: ='[1]Tasa de Falla'!C145 -> 128 | D145: ='[1]Tasa de Falla'!D145 -> SANTIAGO CENTRO - MISQUI MAYU I - SANTIAGO ESTE | E145: ='[1]Tasa de Falla'!E145 -> 132 | F145: ='[1]Tasa de Falla'!F145 -> 10.66 | G145: =IF('[1]Tasa de Falla'!IR145=0,"",'[1]Tasa de Falla'!IR145) -> XXXX | H145: =IF('[1]Tasa de Falla'!IS145=0,"",'[1]Tasa de Falla'!IS145) -> XXXX | I145: =IF('[1]Tasa de Falla'!IT145=0,"",'[1]Tasa de Falla'!IT145) -> XXXX | J145: =IF('[1]Tasa de Falla'!IU145=0,"",'[1]Tasa de Falla'!IU145) -> XXXX | K145: =IF('[1]Tasa de Falla'!IV145=0,"",'[1]Tasa de Falla'!IV145) -> XXXX | L145: =IF('[1]Tasa de Falla'!IW145=0,"",'[1]Tasa de Falla'!IW145) -> XXXX | M145: =IF('[1]Tasa de Falla'!IX145=0,"",'[1]Tasa de Falla'!IX145) -> XXXX | N145: =IF('[1]Tasa de Falla'!IY145=0,"",'[1]Tasa de Falla'!IY145) ->  | O145: =IF('[1]Tasa de Falla'!IZ145=0,"",'[1]Tasa de Falla'!IZ145) ->  | P145: =IF('[1]Tasa de Falla'!JA145=0,"",'[1]Tasa de Falla'!JA145) ->  | Q145: =IF('[1]Tasa de Falla'!JB145=0,"",'[1]Tasa de Falla'!JB145) ->  | R145: =IF('[1]Tasa de Falla'!JC145=0,"",'[1]Tasa de Falla'!JC145) -> 
C146: ='[1]Tasa de Falla'!C146 -> 129 | D146: ='[1]Tasa de Falla'!D146 -> LA RIOJA SUR - PI. PATQUIA 2 | E146: ='[1]Tasa de Falla'!E146 -> 132 | F146: ='[1]Tasa de Falla'!F146 -> 40 | G146: =IF('[1]Tasa de Falla'!IR146=0,"",'[1]Tasa de Falla'!IR146) ->  | H146: =IF('[1]Tasa de Falla'!IS146=0,"",'[1]Tasa de Falla'!IS146) ->  | I146: =IF('[1]Tasa de Falla'!IT146=0,"",'[1]Tasa de Falla'!IT146) ->  | J146: =IF('[1]Tasa de Falla'!IU146=0,"",'[1]Tasa de Falla'!IU146) ->  | K146: =IF('[1]Tasa de Falla'!IV146=0,"",'[1]Tasa de Falla'!IV146) ->  | L146: =IF('[1]Tasa de Falla'!IW146=0,"",'[1]Tasa de Falla'!IW146) ->  | M146: =IF('[1]Tasa de Falla'!IX146=0,"",'[1]Tasa de Falla'!IX146) ->  | N146: =IF('[1]Tasa de Falla'!IY146=0,"",'[1]Tasa de Falla'!IY146) ->  | O146: =IF('[1]Tasa de Falla'!IZ146=0,"",'[1]Tasa de Falla'!IZ146) ->  | P146: =IF('[1]Tasa de Falla'!JA146=0,"",'[1]Tasa de Falla'!JA146) ->  | Q146: =IF('[1]Tasa de Falla'!JB146=0,"",'[1]Tasa de Falla'!JB146) ->  | R146: =IF('[1]Tasa de Falla'!JC146=0,"",'[1]Tasa de Falla'!JC146) -> 
C147: ='[1]Tasa de Falla'!C147 -> 130 | D147: ='[1]Tasa de Falla'!D147 -> LA RIOJA SUR - PI. CIRCUNVALACION 1 | E147: ='[1]Tasa de Falla'!E147 -> 132 | F147: ='[1]Tasa de Falla'!F147 -> 41.35 | G147: =IF('[1]Tasa de Falla'!IR147=0,"",'[1]Tasa de Falla'!IR147) -> XXXX | H147: =IF('[1]Tasa de Falla'!IS147=0,"",'[1]Tasa de Falla'!IS147) -> XXXX | I147: =IF('[1]Tasa de Falla'!IT147=0,"",'[1]Tasa de Falla'!IT147) ->  | J147: =IF('[1]Tasa de Falla'!IU147=0,"",'[1]Tasa de Falla'!IU147) ->  | K147: =IF('[1]Tasa de Falla'!IV147=0,"",'[1]Tasa de Falla'!IV147) ->  | L147: =IF('[1]Tasa de Falla'!IW147=0,"",'[1]Tasa de Falla'!IW147) ->  | M147: =IF('[1]Tasa de Falla'!IX147=0,"",'[1]Tasa de Falla'!IX147) ->  | N147: =IF('[1]Tasa de Falla'!IY147=0,"",'[1]Tasa de Falla'!IY147) ->  | O147: =IF('[1]Tasa de Falla'!IZ147=0,"",'[1]Tasa de Falla'!IZ147) ->  | P147: =IF('[1]Tasa de Falla'!JA147=0,"",'[1]Tasa de Falla'!JA147) ->  | Q147: =IF('[1]Tasa de Falla'!JB147=0,"",'[1]Tasa de Falla'!JB147) ->  | R147: =IF('[1]Tasa de Falla'!JC147=0,"",'[1]Tasa de Falla'!JC147) -> 
E149: Longitud Total | F149: =SUM(F16:F148)-F19-F21-F22-F26-F27-F37-F39-F40-F43-F44-F47-F48-F49-F53-F60-F65-F78-F82-F96-F101-F111 -> 6071.38
F150: Indisponibilidades Forzadas | G150: =SUM(G17:G148) -> 17 | H150: =SUM(H17:H148) -> 10 | I150: =SUM(I17:I148) -> 19 | J150: 12 | K150: 14 | L150: 15 | M150: 10 | N150: 4 | O150: 11 | P150: 15 | Q150: 6 | R150: 9
F151: TASA DE FALLA | G151: =+'[1]Tasa de Falla'!IR154 -> 3.2 | H151: =+'[1]Tasa de Falla'!IS154 -> 3.29 | I151: =+'[1]Tasa de Falla'!IT154 -> 2.89 | J151: =+'[1]Tasa de Falla'!IU154 -> 2.57 | K151: =+'[1]Tasa de Falla'!IV154 -> 2.31 | L151: =+'[1]Tasa de Falla'!IW154 -> 2.39 | M151: =+'[1]Tasa de Falla'!IX154 -> 2.4 | N151: =+'[1]Tasa de Falla'!IY154 -> 2.51 | O151: =+'[1]Tasa de Falla'!IZ154 -> 2.26 | P151: =+'[1]Tasa de Falla'!JA154 -> 2.44 | Q151: =+'[1]Tasa de Falla'!JB154 -> 2.61 | R151: =+'[1]Tasa de Falla'!JC154 -> 2.67 | S151: =+'[1]Tasa de Falla'!JD154 -> 2.74
C153: XXX | D153: Línea no computada en el mes | I153: TASA DE FALLA | L153: =S151 -> 2.74 | N153: SALIDAS x AÑO / 100 km

Sheet DATO
A1: Mes | B1: Mes | C1: Dia | D1: Año
A2: enero | B2: 01 | C2: 31 | D2: 2006
A3: febrero | B3: 02 | C3: =IF(MOD(E14,4)=0,29,28) -> 28 | D3: =+D2+1 -> 2007
A4: marzo | B4: 03 | C4: 31 | D4: 2008
A5: abril | B5: 04 | C5: 30 | D5: 2009
A6: mayo | B6: 05 | C6: 31 | D6: 2010
A7: junio | B7: 06 | C7: 30 | D7: 2011
A8: julio | B8: 07 | C8: 31 | D8: 2012
A9: agosto | B9: 08 | C9: 31 | D9: 2013
A10: septiembre | B10: 09 | C10: 30 | D10: 2014
A11: octubre | B11: 10 | C11: 31 | D11: 2015
A12: noviembre | B12: 11 | C12: 30
A13: diciembre | B13: 12 | C13: 31 | I13: Total
A14: 10 | B14: 11 | C14: =CELL("CONTENIDO",OFFSET(A1,B14,0)) -> noviembre | D14: =CELL("CONTENIDO",OFFSET(C1,B14,0)) -> 30 | E14: =CELL("CONTENIDO",OFFSET(D1,A14,0)) -> 2015 | F14: ="Desde el 01 al " & D14 & " de " & C14 & " de " & E14 -> Desde el 01 al 30 de noviembre de 2015 | G14: =CELL("CONTENIDO",OFFSET(B1,B14,0)) -> 11 | H14: =RIGHT(E14,2) -> 15 | I14: B14
B15: ="\\rugor\files\Transporte\Transporte\AA PROCESO AUT ARCHIVOS J\TRANSNOA\" &E14 -> \\rugor\files\Transporte\Transporte\AA PROCESO AUT ARCHIVOS J\TRANSNOA\2015 | G15: ="J"&G14&H14&"NOA" -> J1115NOA
B16: ="\\rugor\files\Transporte\transporte\AA PROCESO AUT\INTERCAMBIO\" &H14&G14 -> \\rugor\files\Transporte\transporte\AA PROCESO AUT\INTERCAMBIO\1511
A17: Hoja | B17: FilaInicio | C17: FilasPlantilla | D17: Columnas | E17: NombreHoja | F17: OrigenDeDatos | G17: Col00 | H17: Col01 | I17: Col02 | J17: Col03 | K17: Col04 | L17: Col05 | M17: Col06 | N17: Col07 | O17: Col08 | P17: Col09 | Q17: Col10 | R17: Col11 | S17: Col12 | T17: Col13 | U17: Col14 | V17: Col15 | W17: FILHTOTAL | X17: COLHTOTAL | Y17: FILHCALC | Z17: COLHCALC | AA17: FILTRANSP | AB17: COLTRANSP | AC17: COL TSAL
A18: MODELO L | B18: 21 | C18: 20 | D18: 11 | E18: ="LI-" & $G$14 -> LI-11 | F18: TRANSNOA_INDISPONIBILIDADES_LINEAS_TRANSNOA.XLS | G18: 3 | H18: 5 | I18: 4 | J18: 6 | K18: 7 | L18: 8 | M18: 0 | N18: 10 | O18: 11 | P18: 14 | Q18: 0 | R18: 26 | S18: 0 | T18: 0 | U18: 0 | V18: 0 | W18: 19 | X18: 10 | Y18: 42 | Z18: 27 | AA18: 19 | AB18: 27 | AC18: 14
A19: MODELO T | B19: 24 | C19: 20 | D19: 13 | E19: ="T-" & $G$14 -> T-11 | F19: TRANSNOA_INDISPONIBILIDADES_TRAFOS_TRANSNOA.XLS | G19: 3 | H19: 5 | I19: 4 | J19: 6 | K19: 7 | L19: 8 | M19: 9 | N19: 11 | O19: 12 | P19: 15 | Q19: 16 | R19: 18 | S19: 28 | T19: 17 | U19: 0 | V19: 0 | W19: 25 | X19: 10 | Y19: 45 | Z19: 29 | AA19: 22 | AB19: 29 | AC19: 15
A20: MODELO S | B20: 23 | C20: 20 | D20: 10 | E20: ="SA-" & $G$14 -> SA-11 | F20: TRANSNOA_INDISPONIBILIDADES_SALIDAS_TRANSNOA.XLS | G20: 3 | H20: 5 | I20: 4 | J20: 6 | K20: 7 | L20: 8 | M20: 10 | N20: 11 | O20: 14 | P20: 15 | Q20: 21 | R20: 0 | S20: 0 | T20: 0 | U20: 0 | V20: 0 | W20: 29 | X20: 10 | Y20: 44 | Z20: 22 | AA20: 21 | AB20: 22 | AC20: 14
A21: MODELO L RIOJA | B21: 21 | C21: 20 | D21: 11 | E21: ="LI-RIOJA-" & $G$14 -> LI-RIOJA-11 | F21: TRANSNOA_INDISPONIBILIDADES_LINEAS_RIOJA.XLS | G21: 3 | H21: 5 | I21: 4 | J21: 6 | K21: 7 | L21: 8 | M21: 0 | N21: 10 | O21: 11 | P21: 14 | Q21: 2 | R21: 26 | S21: 0 | T21: 0 | U21: 0 | V21: 0 | W21: 21 | X21: 10 | Y21: 42 | Z21: 27 | AA21: 19 | AB21: 27 | AC21: 14
A22: MODELO L EDESA | B22: 21 | C22: 20 | D22: 11 | E22: ="LI-EDESA-" & $G$14 -> LI-EDESA-11 | F22: TRANSNOA_INDISPONIBILIDADES_LINEAS_EDESA.XLS | G22: 3 | H22: 5 | I22: 4 | J22: 6 | K22: 7 | L22: 8 | M22: 0 | N22: 10 | O22: 11 | P22: 14 | Q22: 2 | R22: 26 | S22: 0 | T22: 0 | U22: 0 | V22: 0 | W22: 20 | X22: 10 | Y22: 42 | Z22: 27 | AA22: 19 | AB22: 27 | AC22: 14
A23: MODELO T EDESA | B23: 24 | C23: 20 | D23: 13 | E23: ="T-EDESA-" & $G$14 -> T-EDESA-11 | F23: TRANSNOA_INDISPONIBILIDADES_TRAFOS_EDESA.XLS | G23: 3 | H23: 5 | I23: 4 | J23: 6 | K23: 7 | L23: 8 | M23: 9 | N23: 11 | O23: 12 | P23: 15 | Q23: 16 | R23: 18 | S23: 28 | T23: 17 | U23: 0 | V23: 0 | W23: 26 | X23: 10 | Y23: 45 | Z23: 29 | AA23: 22 | AB23: 29 | AC23: 15
A24: MODELO S EDESA | B24: 23 | C24: 20 | D24: 10 | E24: ="SA-EDESA-" & $G$14 -> SA-EDESA-11 | F24: TRANSNOA_INDISPONIBILIDADES_SALIDAS_EDESA.XLS | G24: 3 | H24: 5 | I24: 4 | J24: 6 | K24: 7 | L24: 8 | M24: 10 | N24: 11 | O24: 14 | P24: 15 | Q24: 21 | R24: 0 | S24: 0 | T24: 0 | U24: 0 | V24: 0 | W24: 30 | X24: 10 | Y24: 44 | Z24: 22 | AA24: 21 | AB24: 22 | AC24: 14
A25: MODELO VST | B25: 19 | C25: 24 | D25: 4 | E25: ="CAUSAS-VST-" & $G$14 -> CAUSAS-VST-11 | F25: TRANSNOA_CAUSAS_VST.XLS | G25: 3 | H25: 4 | I25: 5 | J25: 6 | K25: 7 | L25: 0 | M25: 0 | N25: 0 | O25: 0 | P25: 0 | Q25: 0 | R25: 0 | S25: 0 | T25: 0 | U25: 0 | V25: 0 | W25: 999 | X25: 999 | Y25: 0 | Z25: 0 | AA25: 0 | AB25: 0 | AC25: 0
